Workbook

Sheet Main
B10: 2024-06-14
B12: Sheet No. | C12: Template Name | D12: Summary
B13: 1 | C13: Future Intra | D13: For Intraday trading in F&O segment
B14: 2 | C14: Cash Intra | D14: For Intraday trading in cash market segment
B15: 3 | C15: Mid-cap Intra | D15: For Intraday trading in Mid-cap stocks
B16: 4 | C16: Bulk Deals | D16: Reveals Bulk Deals carried on NSE & BSE
B17: 5 | C17: Call Tracker
K27: `

Sheet Future Intra
M5: Back to Main Page
A6: FOR INTRA DAY TRADING | L6: =Main!B10 -> 2024-06-14
A9: Sr.no | B9: Sector | C9: Scrip | D9: Expiry Date | E9: CLOSE RATE | F9: Pivot Point | G9: Supports | J9: Resistances
E10: Point | F10: Point | G10: S1 | H10: S2 | I10: S3 | J10: R1 | K10: R2 | L10: R3 | M10: HIGH | N10: LOW | O10: OI | P10: % Change in OI
A11: 1 | B11: Index | C11: NIFTY | D11: 2024-06-27 | E11: 23399.25 | F11: 23417.53 | G11: 23353.07 | H11: 23306.88 | I11: 23242.42 | J11: 23463.72 | K11: 23528.18 | L11: 23574.37 | M11: 23482 | N11: 23371.35 | O11: 14439700 | P11: -0.86%
A12: 2 | B12: Index | C12: BANKNIFTY | D12: 2024-06-26 | E12: 49912.65 | F12: 49972.95 | G12: 49790.10 | H12: 49667.55 | I12: 49484.70 | J12: 50095.50 | K12: 50278.35 | L12: 50400.90 | M12: 50155.8 | N12: 49850.4 | O12: 2686665 | P12: -0.89%
A13: 3 | B13: Index | C13: FINNIFTY | D13: 2024-06-25 | E13: 22337.70 | F13: 22352.63 | G13: 22296.07 | H13: 22254.43 | I13: 22197.87 | J13: 22394.27 | K13: 22450.83 | L13: 22492.47 | M13: 22409.2 | N13: 22311 | O13: 56985 | P13: 0.15%
A14: 4 | B14: Index | C14: MIDCPNIFTY | D14: 2024-06-24 | E14: 11945.95 | F14: 11941.12 | G14: 11901.08 | H14: 11856.22 | I14: 11816.18 | J14: 11985.98 | K14: 12026.02 | L14: 12070.88 | M14: 11981.15 | N14: 11896.25 | O14: 1669775 | P14: 1.70%
A15: 5 | B15: Index | C15: NIFTYNXT50 | D15: 2024-06-28 | E15: 70852.55 | F15: 70683.87 | G15: 70418.73 | H15: 69984.92 | I15: 69719.78 | J15: 71117.68 | K15: 71382.82 | L15: 71816.63 | M15: 70949 | N15: 70250.05 | O15: 7300 | P15: 18.89%
A16: 6 | B16: Chemicals | C16: AARTIIND | D16: 2024-06-27 | E16: 677.35 | F16: 674.85 | G16: 669.70 | H16: 662.05 | I16: 656.90 | J16: 682.50 | K16: 687.65 | L16: 695.30 | M16: 680 | N16: 667.2 | O16: 11430000 | P16: -1.50%
A17: 7 | B17: Capital_Goods | C17: ABB | D17: 2024-06-27 | E17: 8480.70 | F17: 8443.60 | G17: 8362.25 | H17: 8243.80 | I17: 8162.45 | J17: 8562.05 | K17: 8643.40 | L17: 8761.85 | M17: 8524.95 | N17: 8325.15 | O17: 1146625 | P17: 1.59%
A18: 8 | B18: Pharma | C18: ABBOTINDIA | D18: 2024-06-27 | E18: 27642.35 | F18: 27652.98 | G18: 27530.97 | H18: 27419.58 | I18: 27297.57 | J18: 27764.37 | K18: 27886.38 | L18: 27997.77 | M18: 27775 | N18: 27541.6 | O18: 151360 | P18: -0.32%
A19: 9 | B19: Finance | C19: ABCAPITAL | D19: 2024-06-27 | E19: 239.85 | F19: 238.83 | G19: 235.87 | H19: 231.88 | I19: 228.92 | J19: 242.82 | K19: 245.78 | L19: 249.77 | M19: 241.8 | N19: 234.85 | O19: 67532400 | P19: -0.22%
A20: 10 | B20: Textile | C20: ABFRL | D20: 2024-06-27 | E20: 327.55 | F20: 327.87 | G20: 325.33 | H20: 323.12 | I20: 320.58 | J20: 330.08 | K20: 332.62 | L20: 334.83 | M20: 330.4 | N20: 325.65 | O20: 36098400 | P20: 0.47%
A21: 11 | B21: Cement | C21: ACC | D21: 2024-06-27 | E21: 2636.10 | F21: 2629.88 | G21: 2611.22 | H21: 2586.33 | I21: 2567.67 | J21: 2654.77 | K21: 2673.43 | L21: 2698.32 | M21: 2648.55 | N21: 2605 | O21: 4818600 | P21: -0.29%
A22: 12 | B22: Infrastructure | C22: ADANIENT | D22: 2024-06-27 | E22: 3235.05 | F22: 3238.00 | G22: 3213.05 | H22: 3191.05 | I22: 3166.10 | J22: 3260.00 | K22: 3284.95 | L22: 3306.95 | M22: 3262.95 | N22: 3216 | O22: 14008200 | P22: 1.40%
A23: 13 | B23: Infrastructure | C23: ADANIPORTS | D23: 2024-06-27 | E23: 1399.95 | F23: 1398.20 | G23: 1386.50 | H23: 1373.05 | I23: 1361.35 | J23: 1411.65 | K23: 1423.35 | L23: 1436.80 | M23: 1409.9 | N23: 1384.75 | O23: 33468800 | P23: -0.01%
A24: 14 | B24: Pharma | C24: ALKEM | D24: 2024-06-27 | E24: 5111.70 | F24: 5105.57 | G24: 5076.13 | H24: 5040.57 | I24: 5011.13 | J24: 5141.13 | K24: 5170.57 | L24: 5206.13 | M24: 5135 | N24: 5070 | O24: 1056800 | P24: 7.08%
A25: 15 | B25: Cement | C25: AMBUJACEM | D25: 2024-06-27 | E25: 664.75 | F25: 666.68 | G25: 653.37 | H25: 641.98 | I25: 628.67 | J25: 678.07 | K25: 691.38 | L25: 702.77 | M25: 680 | N25: 655.3 | O25: 39220200 | P25: 9.71%
A26: 16 | B26: Pharma | C26: APOLLOHOSP | D26: 2024-06-27 | E26: 6210.85 | F26: 6198.40 | G26: 6180.80 | H26: 6150.75 | I26: 6133.15 | J26: 6228.45 | K26: 6246.05 | L26: 6276.10 | M26: 6216 | N26: 6168.35 | O26: 2099125 | P26: -3.92%
A27: 17 | B27: Automobile | C27: APOLLOTYRE | D27: 2024-06-27 | E27: 478.45 | F27: 479.83 | G27: 475.77 | H27: 473.08 | I27: 469.02 | J27: 482.52 | K27: 486.58 | L27: 489.27 | M27: 483.9 | N27: 477.15 | O27: 17710600 | P27: 3.12%
A28: 18 | B28: Automobile | C28: ASHOKLEY | D28: 2024-06-27 | E28: 237.05 | F28: 237.88 | G28: 235.07 | H28: 233.08 | I28: 230.27 | J28: 239.87 | K28: 242.68 | L28: 244.67 | M28: 240.7 | N28: 235.9 | O28: 85610000 | P28: 1.03%
A29: 19 | B29: FMCG | C29: ASIANPAINT | D29: 2024-06-27 | E29: 2911.95 | F29: 2913.48 | G29: 2901.57 | H29: 2891.18 | I29: 2879.27 | J29: 2923.87 | K29: 2935.78 | L29: 2946.17 | M29: 2925.4 | N29: 2903.1 | O29: 12402200 | P29: -0.51%
A30: 20 | B30: Capital_Goods | C30: ASTRAL | D30: 2024-06-27 | E30: 2240.85 | F30: 2239.50 | G30: 2226.60 | H30: 2212.35 | I30: 2199.45 | J30: 2253.75 | K30: 2266.65 | L30: 2280.90 | M30: 2252.4 | N30: 2225.25 | O30: 2671393 | P30: -0.87%
A31: 21 | B31: Chemicals | C31: ATUL | D31: 2024-06-27 | E31: 6218.25 | F31: 6191.90 | G31: 6153.95 | H31: 6089.65 | I31: 6051.70 | J31: 6256.20 | K31: 6294.15 | L31: 6358.45 | M31: 6229.85 | N31: 6127.6 | O31: 507600 | P31: -2.61%
A32: 22 | B32: Banking | C32: AUBANK | D32: 2024-06-27 | E32: 663.50 | F32: 665.12 | G32: 658.53 | H32: 653.57 | I32: 646.98 | J32: 670.08 | K32: 676.67 | L32: 681.63 | M32: 671.7 | N32: 660.15 | O32: 25089000 | P32: 0.32%
A33: 23 | B33: Pharma | C33: AUROPHARMA | D33: 2024-06-27 | E33: 1255.95 | F33: 1257.13 | G33: 1248.42 | H33: 1240.88 | I33: 1232.17 | J33: 1264.67 | K33: 1273.38 | L33: 1280.92 | M33: 1265.85 | N33: 1249.6 | O33: 12463550 | P33: 0.01%
A34: 24 | B34: Banking | C34: AXISBANK | D34: 2024-06-27 | E34: 1178.95 | F34: 1186.83 | G34: 1170.02 | H34: 1161.08 | I34: 1144.27 | J34: 1195.77 | K34: 1212.58 | L34: 1221.52 | M34: 1203.65 | N34: 1177.9 | O34: 42223125 | P34: 1.41%
A35: 25 | B35: Automobile | C35: BAJAJ-AUTO | D35: 2024-06-27 | E35: 9863.75 | F35: 9839.58 | G35: 9794.17 | H35: 9724.58 | I35: 9679.17 | J35: 9909.17 | K35: 9954.58 | L35: 10024.17 | M35: 9885 | N35: 9770 | O35: 2155625 | P35: 1.34%
A36: 26 | B36: Finance | C36: BAJAJFINSV | D36: 2024-06-27 | E36: 1590.85 | F36: 1590.78 | G36: 1583.37 | H36: 1575.88 | I36: 1568.47 | J36: 1598.27 | K36: 1605.68 | L36: 1613.17 | M36: 1598.2 | N36: 1583.3 | O36: 11659500 | P36: -0.12%
A37: 27 | B37: Finance | C37: BAJFINANCE | D37: 2024-06-27 | E37: 7264.05 | F37: 7255.18 | G37: 7215.77 | H37: 7167.48 | I37: 7128.07 | J37: 7303.47 | K37: 7342.88 | L37: 7391.17 | M37: 7294.6 | N37: 7206.9 | O37: 8219250 | P37: -3.76%
A38: 28 | B38: Automobile | C38: BALKRISIND | D38: 2024-06-27 | E38: 3193.60 | F38: 3213.27 | G38: 3168.28 | H38: 3142.97 | I38: 3097.98 | J38: 3238.58 | K38: 3283.57 | L38: 3308.88 | M38: 3258.25 | N38: 3187.95 | O38: 1910100 | P38: 0.89%
A39: 29 | B39: FMCG | C39: BALRAMCHIN | D39: 2024-06-27 | E39: 441.80 | F39: 435.12 | G39: 426.73 | H39: 411.67 | I39: 403.28 | J39: 450.18 | K39: 458.57 | L39: 473.63 | M39: 443.5 | N39: 420.05 | O39: 11171200 | P39: -6.92%
A40: 30 | B40: Banking | C40: BANDHANBNK | D40: 2024-06-27 | E40: 194.75 | F40: 196.03 | G40: 193.02 | H40: 191.28 | I40: 188.27 | J40: 197.77 | K40: 200.78 | L40: 202.52 | M40: 199.05 | N40: 194.3 | O40: 99630700 | P40: -2.02%
A41: 31 | B41: Banking | C41: BANKBARODA | D41: 2024-06-27 | E41: 282.95 | F41: 284.25 | G41: 280.40 | H41: 277.85 | I41: 274.00 | J41: 286.80 | K41: 290.65 | L41: 293.20 | M41: 288.1 | N41: 281.7 | O41: 151155225 | P41: -1.22%
A42: 32 | B42: FMCG | C42: BATAINDIA | D42: 2024-06-27 | E42: 1470.65 | F42: 1470.02 | G42: 1463.68 | H42: 1456.72 | I42: 1450.38 | J42: 1476.98 | K42: 1483.32 | L42: 1490.28 | M42: 1476.35 | N42: 1463.05 | O42: 3739125 | P42: 0.46%
A43: 33 | B43: Capital_Goods | C43: BEL | D43: 2024-06-27 | E43: 302.05 | F43: 297.92 | G43: 291.63 | H43: 281.22 | I43: 274.93 | J43: 308.33 | K43: 314.62 | L43: 325.03 | M43: 304.2 | N43: 287.5 | O43: 135591600 | P43: -1.42%
A44: 34 | B44: FMCG | C44: BERGEPAINT | D44: 2024-06-27 | E44: 502.00 | F44: 501.67 | G44: 497.68 | H44: 493.37 | I44: 489.38 | J44: 505.98 | K44: 509.97 | L44: 514.28 | M44: 505.65 | N44: 497.35 | O44: 25241040 | P44: -1.59%
A45: 35 | B45: Automobile | C45: BHARATFORG | D45: 2024-06-27 | E45: 1642.20 | F45: 1642.17 | G45: 1627.58 | H45: 1612.97 | I45: 1598.38 | J45: 1656.78 | K45: 1671.37 | L45: 1685.98 | M45: 1656.75 | N45: 1627.55 | O45: 5707500 | P45: -1.27%
A46: 36 | B46: Telecom | C46: BHARTIARTL | D46: 2024-06-27 | E46: 1426.80 | F46: 1433.57 | G46: 1415.23 | H46: 1403.67 | I46: 1385.33 | J46: 1445.13 | K46: 1463.47 | L46: 1475.03 | M46: 1451.9 | N46: 1422 | O46: 38199975 | P46: -4.65%
A47: 37 | B47: Capital_Goods | C47: BHEL | D47: 2024-06-27 | E47: 305.10 | F47: 301.67 | G47: 296.83 | H47: 288.57 | I47: 283.73 | J47: 309.93 | K47: 314.77 | L47: 323.03 | M47: 306.5 | N47: 293.4 | O47: 74324250 | P47: 1.80%
A48: 38 | B48: Pharma | C48: BIOCON | D48: 2024-06-27 | E48: 339.15 | F48: 339.78 | G48: 336.42 | H48: 333.68 | I48: 330.32 | J48: 342.52 | K48: 345.88 | L48: 348.62 | M48: 343.15 | N48: 337.05 | O48: 48430000 | P48: -0.30%
A49: 39 | B49: Automobile | C49: BOSCHLTD | D49: 2024-06-27 | E49: 32503.70 | F49: 32211.48 | G49: 31773.02 | H49: 31042.33 | I49: 30603.87 | J49: 32942.17 | K49: 33380.63 | L49: 34111.32 | M49: 32649.95 | N49: 31480.8 | O49: 305925 | P49: 0.92%
A50: 40 | B50: Oil_Gas | C50: BPCL | D50: 2024-06-27 | E50: 620.60 | F50: 619.37 | G50: 615.73 | H50: 610.87 | I50: 607.23 | J50: 624.23 | K50: 627.87 | L50: 632.73 | M50: 623 | N50: 614.5 | O50: 37110600 | P50: -1.20%
A51: 41 | B51: FMCG | C51: BRITANNIA | D51: 2024-06-27 | E51: 5398.90 | F51: 5405.25 | G51: 5334.85 | H51: 5270.80 | I51: 5200.40 | J51: 5469.30 | K51: 5539.70 | L51: 5603.75 | M51: 5475.65 | N51: 5341.2 | O51: 2304400 | P51: 4.85%
A52: 42 | B52: Technology | C52: BSOFT | D52: 2024-06-27 | E52: 684.35 | F52: 687.65 | G52: 674.40 | H52: 664.45 | I52: 651.20 | J52: 697.60 | K52: 710.85 | L52: 720.80 | M52: 700.9 | N52: 677.7 | O52: 14417000 | P52: 7.57%
A53: 43 | B53: Banking | C53: CANBK | D53: 2024-06-27 | E53: 122.35 | F53: 123.10 | G53: 121.00 | H53: 119.65 | I53: 117.55 | J53: 124.45 | K53: 126.55 | L53: 127.90 | M53: 125.2 | N53: 121.75 | O53: 220995000 | P53: 2.88%
A54: 44 | B54: Finance | C54: CANFINHOME | D54: 2024-06-27 | E54: 818.20 | F54: 813.57 | G54: 806.73 | H54: 795.27 | I54: 788.43 | J54: 825.03 | K54: 831.87 | L54: 843.33 | M54: 820.4 | N54: 802.1 | O54: 3498300 | P54: -4.88%
A55: 45 | B55: Chemicals | C55: CHAMBLFERT | D55: 2024-06-27 | E55: 436.10 | F55: 433.42 | G55: 428.73 | H55: 421.37 | I55: 416.68 | J55: 440.78 | K55: 445.47 | L55: 452.83 | M55: 438.1 | N55: 426.05 | O55: 10869900 | P55: 0.62%
A56: 46 | B56: Finance | C56: CHOLAFIN | D56: 2024-06-27 | E56: 1435.85 | F56: 1413.77 | G56: 1388.63 | H56: 1341.42 | I56: 1316.28 | J56: 1460.98 | K56: 1486.12 | L56: 1533.33 | M56: 1438.9 | N56: 1366.55 | O56: 9698125 | P56: -1.84%
A57: 47 | B57: Pharma | C57: CIPLA | D57: 2024-06-27 | E57: 1545.45 | F57: 1540.52 | G57: 1528.23 | H57: 1511.02 | I57: 1498.73 | J57: 1557.73 | K57: 1570.02 | L57: 1587.23 | M57: 1552.8 | N57: 1523.3 | O57: 10688600 | P57: -3.34%
A58: 48 | B58: Metals | C58: COALINDIA | D58: 2024-06-27 | E58: 488.50 | F58: 489.00 | G58: 484.10 | H58: 479.70 | I58: 474.80 | J58: 493.40 | K58: 498.30 | L58: 502.70 | M58: 493.9 | N58: 484.6 | O58: 55965000 | P58: 1.08%
A59: 49 | B59: Technology | C59: COFORGE | D59: 2024-06-27 | E59: 5278.50 | F59: 5277.68 | G59: 5218.37 | H59: 5158.23 | I59: 5098.92 | J59: 5337.82 | K59: 5397.13 | L59: 5457.27 | M59: 5337 | N59: 5217.55 | O59: 2262450 | P59: -3.31%
A60: 50 | B60: FMCG | C60: COLPAL | D60: 2024-06-27 | E60: 2946.20 | F60: 2938.70 | G60: 2910.65 | H60: 2875.10 | I60: 2847.05 | J60: 2974.25 | K60: 3002.30 | L60: 3037.85 | M60: 2966.75 | N60: 2903.15 | O60: 2671550 | P60: 0.24%
A61: 51 | B61: Infrastructure | C61: CONCOR | D61: 2024-06-27 | E61: 1144.45 | F61: 1141.82 | G61: 1133.63 | H61: 1122.82 | I61: 1114.63 | J61: 1152.63 | K61: 1160.82 | L61: 1171.63 | M61: 1150 | N61: 1131 | O61: 9057000 | P61: 0.97%
A62: 52 | B62: Chemicals | C62: COROMANDEL | D62: 2024-06-27 | E62: 1479.75 | F62: 1477.52 | G62: 1460.23 | H62: 1440.72 | I62: 1423.43 | J62: 1497.03 | K62: 1514.32 | L62: 1533.83 | M62: 1494.8 | N62: 1458 | O62: 3216500 | P62: 4.43%
A63: 53 | B63: Capital_Goods | C63: CROMPTON | D63: 2024-06-27 | E63: 426.50 | F63: 424.78 | G63: 421.82 | H63: 417.13 | I63: 414.17 | J63: 429.47 | K63: 432.43 | L63: 437.12 | M63: 427.75 | N63: 420.1 | O63: 18496800 | P63: -0.78%
A64: 54 | B64: Banking | C64: CUB | D64: 2024-06-27 | E64: 148.85 | F64: 149.50 | G64: 147.85 | H64: 146.85 | I64: 145.20 | J64: 150.50 | K64: 152.15 | L64: 153.15 | M64: 151.15 | N64: 148.5 | O64: 25315000 | P64: 0.86%
A65: 55 | B65: Capital_Goods | C65: CUMMINSIND | D65: 2024-06-27 | E65: 3720.35 | F65: 3721.45 | G65: 3689.05 | H65: 3657.75 | I65: 3625.35 | J65: 3752.75 | K65: 3785.15 | L65: 3816.45 | M65: 3753.85 | N65: 3690.15 | O65: 4142100 | P65: -0.63%
A66: 56 | B66: FMCG | C66: DABUR | D66: 2024-06-27 | E66: 610.05 | F66: 604.53 | G66: 594.07 | H66: 578.08 | I66: 567.62 | J66: 620.52 | K66: 630.98 | L66: 646.97 | M66: 615 | N66: 588.55 | O66: 21007500 | P66: -6.79%
A67: 57 | B67: Cement | C67: DALBHARAT | D67: 2024-06-27 | E67: 1904.65 | F67: 1898.98 | G67: 1882.62 | H67: 1860.58 | I67: 1844.22 | J67: 1921.02 | K67: 1937.38 | L67: 1959.42 | M67: 1915.35 | N67: 1876.95 | O67: 3224200 | P67: 3.40%
A68: 58 | B68: Chemicals | C68: DEEPAKNTR | D68: 2024-06-27 | E68: 2419.75 | F68: 2401.77 | G68: 2373.53 | H68: 2327.32 | I68: 2299.08 | J68: 2447.98 | K68: 2476.22 | L68: 2522.43 | M68: 2430 | N68: 2355.55 | O68: 2217600 | P68: -1.02%
A69: 59 | B69: Pharma | C69: DIVISLAB | D69: 2024-06-27 | E69: 4596.70 | F69: 4572.87 | G69: 4524.83 | H69: 4452.97 | I69: 4404.93 | J69: 4644.73 | K69: 4692.77 | L69: 4764.63 | M69: 4620.9 | N69: 4501 | O69: 2476400 | P69: -1.35%
A70: 60 | B70: Capital_Goods | C70: DIXON | D70: 2024-06-27 | E70: 10880.35 | F70: 10714.78 | G70: 10529.57 | H70: 10178.78 | I70: 9993.57 | J70: 11065.57 | K70: 11250.78 | L70: 11601.57 | M70: 10900 | N70: 10364 | O70: 1671300 | P70: 9.61%
A71: 61 | B71: Realty | C71: DLF | D71: 2024-06-27 | E71: 875.40 | F71: 872.20 | G71: 862.60 | H71: 849.80 | I71: 840.20 | J71: 885.00 | K71: 894.60 | L71: 907.40 | M71: 881.8 | N71: 859.4 | O71: 40495125 | P71: 0.25%
A72: 62 | B72: Pharma | C72: DRREDDY | D72: 2024-06-27 | E72: 6100.05 | F72: 6092.02 | G72: 6059.08 | H72: 6018.12 | I72: 5985.18 | J72: 6132.98 | K72: 6165.92 | L72: 6206.88 | M72: 6124.95 | N72: 6051.05 | O72: 2718250 | P72: 4.03%
A73: 63 | B73: Automobile | C73: EICHERMOT | D73: 2024-06-27 | E73: 4819.55 | F73: 4832.55 | G73: 4768.10 | H73: 4716.65 | I73: 4652.20 | J73: 4884.00 | K73: 4948.45 | L73: 4999.90 | M73: 4897 | N73: 4781.1 | O73: 3888850 | P73: 1.60%
A74: 64 | B74: Automobile | C74: ESCORTS | D74: 2024-06-27 | E74: 4244.20 | F74: 4214.48 | G74: 4170.77 | H74: 4097.33 | I74: 4053.62 | J74: 4287.92 | K74: 4331.63 | L74: 4405.07 | M74: 4258.2 | N74: 4141.05 | O74: 1285900 | P74: 0.86%
A75: 65 | B75: Automobile | C75: EXIDEIND | D75: 2024-06-27 | E75: 543.60 | F75: 545.03 | G75: 540.82 | H75: 538.03 | I75: 533.82 | J75: 547.82 | K75: 552.03 | L75: 554.82 | M75: 549.25 | N75: 542.25 | O75: 20892600 | P75: -0.57%
A76: 66 | B76: Banking | C76: FEDERALBNK | D76: 2024-06-27 | E76: 172.80 | F76: 173.40 | G76: 171.20 | H76: 169.60 | I76: 167.40 | J76: 175.00 | K76: 177.20 | L76: 178.80 | M76: 175.6 | N76: 171.8 | O76: 77235000 | P76: -0.90%
A77: 67 | B77: Oil_Gas | C77: GAIL | D77: 2024-06-27 | E77: 220.45 | F77: 218.58 | G77: 216.32 | H77: 212.18 | I77: 209.92 | J77: 222.72 | K77: 224.98 | L77: 229.12 | M77: 220.85 | N77: 214.45 | O77: 140283225 | P77: 1.68%
A78: 68 | B78: Pharma | C78: GLENMARK | D78: 2024-06-27 | E78: 1225.75 | F78: 1216.98 | G78: 1200.27 | H78: 1174.78 | I78: 1158.07 | J78: 1242.47 | K78: 1259.18 | L78: 1284.67 | M78: 1233.7 | N78: 1191.5 | O78: 9631625 | P78: -0.28%
A79: 69 | B79: Infrastructure | C79: GMRINFRA | D79: 2024-06-27 | E79: 91.80 | F79: 91.28 | G79: 90.07 | H79: 88.33 | I79: 87.12 | J79: 93.02 | K79: 94.23 | L79: 95.97 | M79: 92.5 | N79: 89.55 | O79: 249288750 | P79: -4.02%
A80: 70 | B80: Chemicals | C80: GNFC | D80: 2024-06-27 | E80: 690.10 | F80: 689.70 | G80: 683.40 | H80: 676.70 | I80: 670.40 | J80: 696.40 | K80: 702.70 | L80: 709.40 | M80: 696 | N80: 683 | O80: 7382700 | P80: -0.92%
A81: 71 | B81: FMCG | C81: GODREJCP | D81: 2024-06-27 | E81: 1409.25 | F81: 1404.18 | G81: 1395.37 | H81: 1381.48 | I81: 1372.67 | J81: 1418.07 | K81: 1426.88 | L81: 1440.77 | M81: 1413 | N81: 1390.3 | O81: 5865500 | P81: -0.04%
A82: 72 | B82: Realty | C82: GODREJPROP | D82: 2024-06-27 | E82: 3038.25 | F82: 3010.05 | G82: 2968.20 | H82: 2898.15 | I82: 2856.30 | J82: 3080.10 | K82: 3121.95 | L82: 3192.00 | M82: 3051.9 | N82: 2940 | O82: 3730675 | P82: 3.90%
A83: 73 | B83: Pharma | C83: GRANULES | D83: 2024-06-27 | E83: 463.55 | F83: 470.20 | G83: 455.35 | H83: 447.15 | I83: 432.30 | J83: 478.40 | K83: 493.25 | L83: 501.45 | M83: 485.05 | N83: 462 | O83: 8926000 | P83: 1.22%
A84: 74 | B84: Cement | C84: GRASIM | D84: 2024-06-27 | E84: 2460.15 | F84: 2458.48 | G84: 2439.97 | H84: 2419.78 | I84: 2401.27 | J84: 2478.67 | K84: 2497.18 | L84: 2517.37 | M84: 2477 | N84: 2438.3 | O84: 7491129 | P84: -0.23%
A85: 75 | B85: Oil_Gas | C85: GUJGASLTD | D85: 2024-06-27 | E85: 633.20 | F85: 626.45 | G85: 613.90 | H85: 594.60 | I85: 582.05 | J85: 645.75 | K85: 658.30 | L85: 677.60 | M85: 639 | N85: 607.15 | O85: 8461250 | P85: 10.57%
A86: 76 | B86: Capital_Goods | C86: HAL | D86: 2024-06-27 | E86: 5117.75 | F86: 5037.97 | G86: 4942.63 | H86: 4767.52 | I86: 4672.18 | J86: 5213.08 | K86: 5308.42 | L86: 5483.53 | M86: 5133.3 | N86: 4862.85 | O86: 12647100 | P86: -0.45%
A87: 77 | B87: Capital_Goods | C87: HAVELLS | D87: 2024-06-27 | E87: 1844.85 | F87: 1846.68 | G87: 1835.72 | H87: 1826.58 | I87: 1815.62 | J87: 1855.82 | K87: 1866.78 | L87: 1875.92 | M87: 1857.65 | N87: 1837.55 | O87: 6231000 | P87: 3.98%
A88: 78 | B88: Technology | C88: HCLTECH | D88: 2024-06-27 | E88: 1445.20 | F88: 1447.65 | G88: 1436.30 | H88: 1427.40 | I88: 1416.05 | J88: 1456.55 | K88: 1467.90 | L88: 1476.80 | M88: 1459 | N88: 1438.75 | O88: 19401200 | P88: -8.85%
A89: 79 | B89: Finance | C89: HDFCAMC | D89: 2024-06-27 | E89: 3930.10 | F89: 3955.57 | G89: 3887.13 | H89: 3844.17 | I89: 3775.73 | J89: 3998.53 | K89: 4066.97 | L89: 4109.93 | M89: 4024 | N89: 3912.6 | O89: 2805750 | P89: -1.61%
A90: 80 | B90: Banking | C90: HDFCBANK | D90: 2024-06-27 | E90: 1583.70 | F90: 1583.40 | G90: 1578.20 | H90: 1572.70 | I90: 1567.50 | J90: 1588.90 | K90: 1594.10 | L90: 1599.60 | M90: 1588.6 | N90: 1577.9 | O90: 176134200 | P90: -0.74%
A91: 81 | B91: Finance | C91: HDFCLIFE | D91: 2024-06-27 | E91: 591.50 | F91: 584.32 | G91: 572.18 | H91: 552.87 | I91: 540.73 | J91: 603.63 | K91: 615.77 | L91: 635.08 | M91: 596.45 | N91: 565 | O91: 40139000 | P91: -7.93%
A92: 82 | B92: Automobile | C92: HEROMOTOCO | D92: 2024-06-27 | E92: 5835.90 | F92: 5812.68 | G92: 5770.07 | H92: 5704.23 | I92: 5661.62 | J92: 5878.52 | K92: 5921.13 | L92: 5986.97 | M92: 5855.3 | N92: 5746.85 | O92: 3714300 | P92: -0.96%
A93: 83 | B93: Metals | C93: HINDALCO | D93: 2024-06-27 | E93: 682.55 | F93: 681.88 | G93: 678.77 | H93: 674.98 | I93: 671.87 | J93: 685.67 | K93: 688.78 | L93: 692.57 | M93: 685 | N93: 678.1 | O93: 41374200 | P93: -1.75%
A94: 84 | B94: Metals | C94: HINDCOPPER | D94: 2024-06-27 | E94: 336.65 | F94: 336.03 | G94: 333.07 | H94: 329.48 | I94: 326.52 | J94: 339.62 | K94: 342.58 | L94: 346.17 | M94: 339 | N94: 332.45 | O94: 36103600 | P94: -1.84%
A95: 85 | B95: Oil_Gas | C95: HINDPETRO | D95: 2024-06-27 | E95: 530.70 | F95: 530.68 | G95: 526.37 | H95: 522.03 | I95: 517.72 | J95: 535.02 | K95: 539.33 | L95: 543.67 | M95: 535 | N95: 526.35 | O95: 33890400 | P95: 3.44%
A96: 86 | B96: FMCG | C96: HINDUNILVR | D96: 2024-06-27 | E96: 2468.30 | F96: 2459.48 | G96: 2433.42 | H96: 2398.53 | I96: 2372.47 | J96: 2494.37 | K96: 2520.43 | L96: 2555.32 | M96: 2485.55 | N96: 2424.6 | O96: 18886800 | P96: 0.42%
A97: 87 | B97: Banking | C97: ICICIBANK | D97: 2024-06-27 | E97: 1108.90 | F97: 1113.13 | G97: 1102.82 | H97: 1096.73 | I97: 1086.42 | J97: 1119.22 | K97: 1129.53 | L97: 1135.62 | M97: 1123.45 | N97: 1107.05 | O97: 72084600 | P97: 1.09%
A98: 88 | B98: Finance | C98: ICICIGI | D98: 2024-06-27 | E98: 1664.65 | F98: 1659.88 | G98: 1644.17 | H98: 1623.68 | I98: 1607.97 | J98: 1680.37 | K98: 1696.08 | L98: 1716.57 | M98: 1675.6 | N98: 1639.4 | O98: 3590500 | P98: 0.15%
A99: 89 | B99: Finance | C99: ICICIPRULI | D99: 2024-06-27 | E99: 598.50 | F99: 591.43 | G99: 582.07 | H99: 565.63 | I99: 556.27 | J99: 607.87 | K99: 617.23 | L99: 633.67 | M99: 600.8 | N99: 575 | O99: 12679500 | P99: 4.50%
A100: 90 | B100: Telecom | C100: IDEA | D100: 2024-06-27 | E100: 16.15 | F100: 16.30 | G100: 15.85 | H100: 15.55 | I100: 15.10 | J100: 16.60 | K100: 17.05 | L100: 17.35 | M100: 16.75 | N100: 16 | O100: 3751360000 | P100: -0.16%
A101: 91 | B101: Finance | C101: IDFC | D101: 2024-06-27 | E101: 114.55 | F101: 114.73 | G101: 113.97 | H101: 113.38 | I101: 112.62 | J101: 115.32 | K101: 116.08 | L101: 116.67 | M101: 115.5 | N101: 114.15 | O101: 94665000 | P101: 0.83%
A102: 92 | B102: Banking | C102: IDFCFIRSTB | D102: 2024-06-27 | E102: 77.75 | F102: 77.97 | G102: 77.43 | H102: 77.12 | I102: 76.58 | J102: 78.28 | K102: 78.82 | L102: 79.13 | M102: 78.5 | N102: 77.65 | O102: 362775000 | P102: 0.74%
A103: 93 | B103: Power | C103: IEX | D103: 2024-06-27 | E103: 178.85 | F103: 178.78 | G103: 175.22 | H103: 171.58 | I103: 168.02 | J103: 182.42 | K103: 185.98 | L103: 189.62 | M103: 182.35 | N103: 175.15 | O103: 73353750 | P103: 3.03%
A104: 94 | B104: Oil_Gas | C104: IGL | D104: 2024-06-27 | E104: 488.30 | F104: 486.55 | G104: 481.10 | H104: 473.90 | I104: 468.45 | J104: 493.75 | K104: 499.20 | L104: 506.40 | M104: 492 | N104: 479.35 | O104: 17386875 | P104: -2.39%
A105: 95 | B105: Infrastructure | C105: INDHOTEL | D105: 2024-06-27 | E105: 590.55 | F105: 590.10 | G105: 585.40 | H105: 580.25 | I105: 575.55 | J105: 595.25 | K105: 599.95 | L105: 605.10 | M105: 594.8 | N105: 584.95 | O105: 17387000 | P105: -3.82%
A106: 96 | B106: Cement | C106: INDIACEM | D106: 2024-06-27 | E106: 219.25 | F106: 219.92 | G106: 217.33 | H106: 215.42 | I106: 212.83 | J106: 221.83 | K106: 224.42 | L106: 226.33 | M106: 222.5 | N106: 218 | O106: 27213600 | P106: -1.48%
A107: 97 | B107: FMCG | C107: INDIAMART | D107: 2024-06-27 | E107: 2580.50 | F107: 2586.95 | G107: 2562.05 | H107: 2543.60 | I107: 2518.70 | J107: 2605.40 | K107: 2630.30 | L107: 2648.75 | M107: 2611.85 | N107: 2568.5 | O107: 1068000 | P107: -0.53%
A108: 98 | B108: Infrastructure | C108: INDIGO | D108: 2024-06-27 | E108: 4318.75 | F108: 4305.43 | G108: 4258.97 | H108: 4199.18 | I108: 4152.72 | J108: 4365.22 | K108: 4411.68 | L108: 4471.47 | M108: 4351.9 | N108: 4245.65 | O108: 9303900 | P108: 2.41%
A109: 99 | B109: Banking | C109: INDUSINDBK | D109: 2024-06-27 | E109: 1509.10 | F109: 1502.20 | G109: 1492.10 | H109: 1475.10 | I109: 1465.00 | J109: 1519.20 | K109: 1529.30 | L109: 1546.30 | M109: 1512.3 | N109: 1485.2 | O109: 23079500 | P109: -0.38%
A110: 100 | B110: Telecom | C110: INDUSTOWER | D110: 2024-06-27 | E110: 340.75 | F110: 341.38 | G110: 337.37 | H110: 333.98 | I110: 329.97 | J110: 344.77 | K110: 348.78 | L110: 352.17 | M110: 345.4 | N110: 338 | O110: 77747800 | P110: 0.31%
A111: 101 | B111: Technology | C111: INFY | D111: 2024-06-27 | E111: 1496.95 | F111: 1499.53 | G111: 1492.17 | H111: 1487.38 | I111: 1480.02 | J111: 1504.32 | K111: 1511.68 | L111: 1516.47 | M111: 1506.9 | N111: 1494.75 | O111: 47367600 | P111: 1.29%
A112: 102 | B112: Oil_Gas | C112: IOC | D112: 2024-06-27 | E112: 169.35 | F112: 169.30 | G112: 168.25 | H112: 167.15 | I112: 166.10 | J112: 170.40 | K112: 171.45 | L112: 172.55 | M112: 170.35 | N112: 168.2 | O112: 152845875 | P112: -0.03%
A113: 103 | B113: Pharma | C113: IPCALAB | D113: 2024-06-27 | E113: 1193.00 | F113: 1191.88 | G113: 1182.67 | H113: 1172.33 | I113: 1163.12 | J113: 1202.22 | K113: 1211.43 | L113: 1221.77 | M113: 1201.1 | N113: 1181.55 | O113: 2871050 | P113: 5.44%
A114: 104 | B114: Infrastructure | C114: IRCTC | D114: 2024-06-27 | E114: 1021.20 | F114: 1024.07 | G114: 1011.63 | H114: 1002.07 | I114: 989.63 | J114: 1033.63 | K114: 1046.07 | L114: 1055.63 | M114: 1036.5 | N114: 1014.5 | O114: 17373125 | P114: 1.17%
A115: 105 | B115: FMCG | C115: ITC | D115: 2024-06-27 | E115: 431.75 | F115: 433.12 | G115: 429.93 | H115: 428.12 | I115: 424.93 | J115: 434.93 | K115: 438.12 | L115: 439.93 | M115: 436.3 | N115: 431.3 | O115: 103811200 | P115: 2.76%
A116: 106 | B116: Metals | C116: JINDALSTEL | D116: 2024-06-27 | E116: 1044.90 | F116: 1045.87 | G116: 1037.13 | H116: 1029.37 | I116: 1020.63 | J116: 1053.63 | K116: 1062.37 | L116: 1070.13 | M116: 1054.6 | N116: 1038.1 | O116: 11535000 | P116: 1.20%
A117: 107 | B117: Cement | C117: JKCEMENT | D117: 2024-06-27 | E117: 4250.25 | F117: 4263.23 | G117: 4218.97 | H117: 4187.68 | I117: 4143.42 | J117: 4294.52 | K117: 4338.78 | L117: 4370.07 | M117: 4307.5 | N117: 4231.95 | O117: 533375 | P117: 4.89%
A118: 108 | B118: Metals | C118: JSWSTEEL | D118: 2024-06-27 | E118: 917.55 | F118: 919.08 | G118: 909.97 | H118: 902.38 | I118: 893.27 | J118: 926.67 | K118: 935.78 | L118: 943.37 | M118: 928.2 | N118: 911.5 | O118: 14858100 | P118: 0.55%
A119: 109 | B119: FMCG | C119: JUBLFOOD | D119: 2024-06-27 | E119: 531.95 | F119: 533.07 | G119: 527.88 | H119: 523.82 | I119: 518.63 | J119: 537.13 | K119: 542.32 | L119: 546.38 | M119: 538.25 | N119: 529 | O119: 22362500 | P119: -0.02%
A120: 110 | B120: Banking | C120: KOTAKBANK | D120: 2024-06-27 | E120: 1727.70 | F120: 1729.22 | G120: 1719.63 | H120: 1711.57 | I120: 1701.98 | J120: 1737.28 | K120: 1746.87 | L120: 1754.93 | M120: 1738.8 | N120: 1721.15 | O120: 39333200 | P120: -2.32%
A121: 111 | B121: Finance | C121: LTF | D121: 2024-06-27 | E121: 173.90 | F121: 174.28 | G121: 172.17 | H121: 170.43 | I121: 168.32 | J121: 176.02 | K121: 178.13 | L121: 179.87 | M121: 176.4 | N121: 172.55 | O121: 52352646 | P121: -10.69%
A122: 112 | B122: Pharma | C122: LALPATHLAB | D122: 2024-06-27 | E122: 2786.90 | F122: 2798.00 | G122: 2746.10 | H122: 2705.30 | I122: 2653.40 | J122: 2838.80 | K122: 2890.70 | L122: 2931.50 | M122: 2849.9 | N122: 2757.2 | O122: 1441200 | P122: 3.87%
A123: 113 | B123: Pharma | C123: LAURUSLABS | D123: 2024-06-27 | E123: 439.95 | F123: 439.55 | G123: 434.20 | H123: 428.45 | I123: 423.10 | J123: 445.30 | K123: 450.65 | L123: 456.40 | M123: 444.9 | N123: 433.8 | O123: 16840200 | P123: 4.73%
A124: 114 | B124: Finance | C124: LICHSGFIN | D124: 2024-06-27 | E124: 720.00 | F124: 718.07 | G124: 709.13 | H124: 698.27 | I124: 689.33 | J124: 728.93 | K124: 737.87 | L124: 748.73 | M124: 727 | N124: 707.2 | O124: 27868000 | P124: -1.79%
A125: 115 | B125: Capital_Goods | C125: LT | D125: 2024-06-27 | E125: 3679.25 | F125: 3662.10 | G125: 3628.85 | H125: 3578.45 | I125: 3545.20 | J125: 3712.50 | K125: 3745.75 | L125: 3796.15 | M125: 3695.35 | N125: 3611.7 | O125: 14538150 | P125: -3.94%
A126: 116 | B126: Technology | C126: LTIM | D126: 2024-06-27 | E126: 5017.65 | F126: 5017.27 | G126: 4970.33 | H126: 4923.02 | I126: 4876.08 | J126: 5064.58 | K126: 5111.52 | L126: 5158.83 | M126: 5064.2 | N126: 4969.95 | O126: 4004850 | P126: 3.50%
A127: 117 | B127: Technology | C127: LTTS | D127: 2024-06-27 | E127: 4875.05 | F127: 4887.65 | G127: 4847.45 | H127: 4819.85 | I127: 4779.65 | J127: 4915.25 | K127: 4955.45 | L127: 4983.05 | M127: 4927.85 | N127: 4860.05 | O127: 1505900 | P127: -0.71%
A128: 118 | B128: Pharma | C128: LUPIN | D128: 2024-06-27 | E128: 1610.70 | F128: 1613.53 | G128: 1602.32 | H128: 1593.93 | I128: 1582.72 | J128: 1621.92 | K128: 1633.13 | L128: 1641.52 | M128: 1624.75 | N128: 1605.15 | O128: 7148500 | P128: -0.76%
A129: 119 | B129: Automobile | C129: M&M | D129: 2024-06-27 | E129: 2866.90 | F129: 2846.97 | G129: 2813.93 | H129: 2760.97 | I129: 2727.93 | J129: 2899.93 | K129: 2932.97 | L129: 2985.93 | M129: 2880 | N129: 2794 | O129: 15549450 | P129: 3.41%
A130: 120 | B130: Finance | C130: M&MFIN | D130: 2024-06-27 | E130: 294.00 | F130: 292.63 | G130: 288.47 | H130: 282.93 | I130: 278.77 | J130: 298.17 | K130: 302.33 | L130: 307.87 | M130: 296.8 | N130: 287.1 | O130: 30420000 | P130: -0.21%
A131: 121 | B131: Finance | C131: MANAPPURAM | D131: 2024-06-27 | E131: 186.90 | F131: 186.53 | G131: 184.72 | H131: 182.53 | I131: 180.72 | J131: 188.72 | K131: 190.53 | L131: 192.72 | M131: 188.35 | N131: 184.35 | O131: 44454000 | P131: -5.21%
A132: 122 | B132: FMCG | C132: MARICO | D132: 2024-06-27 | E132: 613.30 | F132: 618.05 | G132: 601.95 | H132: 590.60 | I132: 574.50 | J132: 629.40 | K132: 645.50 | L132: 656.85 | M132: 634.15 | N132: 606.7 | O132: 17985600 | P132: 27.57%
A133: 123 | B133: Automobile | C133: MARUTI | D133: 2024-06-27 | E133: 12876.65 | F133: 12876.07 | G133: 12787.13 | H133: 12697.62 | I133: 12608.68 | J133: 12965.58 | K133: 13054.52 | L133: 13144.03 | M133: 12965 | N133: 12786.55 | O133: 2395550 | P133: -0.03%
A134: 124 | B134: FMCG | C134: UNITDSPR | D134: 2024-06-27 | E134: 1278.25 | F134: 1285.30 | G134: 1267.00 | H134: 1255.75 | I134: 1237.45 | J134: 1296.55 | K134: 1314.85 | L134: 1326.10 | M134: 1303.6 | N134: 1274.05 | O134: 9282700 | P134: 2.16%
A135: 125 | B135: Technology | C135: MCX | D135: 2024-06-27 | E135: 3893.70 | F135: 3846.57 | G135: 3787.13 | H135: 3680.57 | I135: 3621.13 | J135: 3953.13 | K135: 4012.57 | L135: 4119.13 | M135: 3906 | N135: 3740 | O135: 2651800 | P135: -1.38%
A136: 126 | B136: Pharma | C136: METROPOLIS | D136: 2024-06-27 | E136: 1997.70 | F136: 1997.93 | G136: 1966.02 | H136: 1934.33 | I136: 1902.42 | J136: 2029.62 | K136: 2061.53 | L136: 2093.22 | M136: 2029.85 | N136: 1966.25 | O136: 1809200 | P136: -0.70%
A137: 127 | B137: Finance | C137: MFSL | D137: 2024-06-27 | E137: 989.05 | F137: 976.70 | G137: 957.40 | H137: 925.75 | I137: 906.45 | J137: 1008.35 | K137: 1027.65 | L137: 1059.30 | M137: 996 | N137: 945.05 | O137: 5488800 | P137: 4.76%
A138: 128 | B138: Oil_Gas | C138: MGL | D138: 2024-06-27 | E138: 1466.50 | F138: 1457.10 | G138: 1444.45 | H138: 1422.40 | I138: 1409.75 | J138: 1479.15 | K138: 1491.80 | L138: 1513.85 | M138: 1469.75 | N138: 1435.05 | O138: 2040000 | P138: -4.01%
A139: 129 | B139: Automobile | C139: MOTHERSON | D139: 2024-06-27 | E139: 168.90 | F139: 168.18 | G139: 167.22 | H139: 165.53 | I139: 164.57 | J139: 169.87 | K139: 170.83 | L139: 172.52 | M139: 169.15 | N139: 166.5 | O139: 107579200 | P139: 2.10%
A140: 130 | B140: Technology | C140: MPHASIS | D140: 2024-06-27 | E140: 2458.50 | F140: 2447.43 | G140: 2430.17 | H140: 2401.83 | I140: 2384.57 | J140: 2475.77 | K140: 2493.03 | L140: 2521.37 | M140: 2464.7 | N140: 2419.1 | O140: 4814150 | P140: 1.83%
A141: 131 | B141: Automobile | C141: MRF | D141: 2024-06-27 | E141: 126333.10 | F141: 126476.35 | G141: 125877.75 | H141: 125422.40 | I141: 124823.80 | J141: 126931.70 | K141: 127530.30 | L141: 127985.65 | M141: 127074.95 | N141: 126021 | O141: 54050 | P141: 0.72%
A142: 132 | B142: Finance | C142: MUTHOOTFIN | D142: 2024-06-27 | E142: 1798.80 | F142: 1799.60 | G142: 1788.75 | H142: 1778.70 | I142: 1767.85 | J142: 1809.65 | K142: 1820.50 | L142: 1830.55 | M142: 1810.45 | N142: 1789.55 | O142: 3940750 | P142: 1.13%
A143: 133 | B143: Metals | C143: NATIONALUM | D143: 2024-06-27 | E143: 186.75 | F143: 186.30 | G143: 184.65 | H143: 182.55 | I143: 180.90 | J143: 188.40 | K143: 190.05 | L143: 192.15 | M143: 187.95 | N143: 184.2 | O143: 71572500 | P143: -0.99%
A144: 134 | B144: Technology | C144: NAUKRI | D144: 2024-06-27 | E144: 6288.85 | F144: 6317.37 | G144: 6246.73 | H144: 6204.62 | I144: 6133.98 | J144: 6359.48 | K144: 6430.12 | L144: 6472.23 | M144: 6388 | N144: 6275.25 | O144: 1346850 | P144: 2.25%
A145: 135 | B145: Chemicals | C145: NAVINFLUOR | D145: 2024-06-27 | E145: 3574.40 | F145: 3563.45 | G145: 3530.90 | H145: 3487.40 | I145: 3454.85 | J145: 3606.95 | K145: 3639.50 | L145: 3683.00 | M145: 3596 | N145: 3519.95 | O145: 1280625 | P145: -2.50%
A146: 136 | B146: FMCG | C146: NESTLEIND | D146: 2024-06-27 | E146: 2560.25 | F146: 2579.20 | G146: 2537.00 | H146: 2513.75 | I146: 2471.55 | J146: 2602.45 | K146: 2644.65 | L146: 2667.90 | M146: 2621.4 | N146: 2555.95 | O146: 5738000 | P146: 2.68%
A147: 137 | B147: Metals | C147: NMDC | D147: 2024-06-27 | E147: 265.90 | F147: 266.00 | G147: 263.00 | H147: 260.10 | I147: 257.10 | J147: 268.90 | K147: 271.90 | L147: 274.80 | M147: 269 | N147: 263.1 | O147: 76252500 | P147: 0.37%
A148: 138 | B148: Power | C148: NTPC | D148: 2024-06-27 | E148: 370.25 | F148: 371.47 | G148: 367.08 | H148: 363.92 | I148: 359.53 | J148: 374.63 | K148: 379.02 | L148: 382.18 | M148: 375.85 | N148: 368.3 | O148: 93241500 | P148: -1.73%
A149: 139 | B149: Realty | C149: OBEROIRLTY | D149: 2024-06-27 | E149: 1936.95 | F149: 1936.12 | G149: 1922.03 | H149: 1907.12 | I149: 1893.03 | J149: 1951.03 | K149: 1965.12 | L149: 1980.03 | M149: 1950.2 | N149: 1921.2 | O149: 6090700 | P149: 3.50%
A150: 140 | B150: Technology | C150: OFSS | D150: 2024-06-27 | E150: 9683.40 | F150: 9412.85 | G150: 9090.70 | H150: 8498.00 | I150: 8175.85 | J150: 10005.55 | K150: 10327.70 | L150: 10920.40 | M150: 9735 | N150: 8820.15 | O150: 1078000 | P150: 33.32%
A151: 141 | B151: Oil_Gas | C151: ONGC | D151: 2024-06-27 | E151: 276.85 | F151: 276.00 | G151: 273.90 | H151: 270.95 | I151: 268.85 | J151: 278.95 | K151: 281.05 | L151: 284.00 | M151: 278.1 | N151: 273.05 | O151: 78120350 | P151: -3.30%
A152: 142 | B152: Textile | C152: PAGEIND | D152: 2024-06-27 | E152: 38748.35 | F152: 38702.93 | G152: 38445.87 | H152: 38143.38 | I152: 37886.32 | J152: 39005.42 | K152: 39262.48 | L152: 39564.97 | M152: 38960 | N152: 38400.45 | O152: 204315 | P152: -0.53%
A153: 143 | B153: Pharma | C153: PEL | D153: 2024-06-27 | E153: 883.70 | F153: 882.93 | G153: 869.87 | H153: 856.03 | I153: 842.97 | J153: 896.77 | K153: 909.83 | L153: 923.67 | M153: 896 | N153: 869.1 | O153: 13338000 | P153: 3.61%
A154: 144 | B154: Technology | C154: PERSISTENT | D154: 2024-06-27 | E154: 3804.50 | F154: 3815.10 | G154: 3782.00 | H154: 3759.50 | I154: 3726.40 | J154: 3837.60 | K154: 3870.70 | L154: 3893.20 | M154: 3848.2 | N154: 3792.6 | O154: 2555000 | P154: 2.52%
A155: 145 | B155: Oil_Gas | C155: PETRONET | D155: 2024-06-27 | E155: 323.90 | F155: 323.32 | G155: 320.63 | H155: 317.37 | I155: 314.68 | J155: 326.58 | K155: 329.27 | L155: 332.53 | M155: 326 | N155: 320.05 | O155: 40668000 | P155: -1.01%
A156: 146 | B156: Finance | C156: PFC | D156: 2024-06-27 | E156: 503.60 | F156: 500.60 | G156: 495.80 | H156: 488.00 | I156: 483.20 | J156: 508.40 | K156: 513.20 | L156: 521.00 | M156: 505.4 | N156: 492.8 | O156: 60595975 | P156: -4.18%
A157: 147 | B157: FMCG | C157: PIDILITIND | D157: 2024-06-27 | E157: 3090.05 | F157: 3091.18 | G157: 3073.57 | H157: 3057.08 | I157: 3039.47 | J157: 3107.67 | K157: 3125.28 | L157: 3141.77 | M157: 3108.8 | N157: 3074.7 | O157: 2366750 | P157: 3.58%
A158: 148 | B158: Chemicals | C158: PIIND | D158: 2024-06-27 | E158: 3644.30 | F158: 3645.53 | G158: 3626.12 | H158: 3607.93 | I158: 3588.52 | J158: 3663.72 | K158: 3683.13 | L158: 3701.32 | M158: 3664.95 | N158: 3627.35 | O158: 1669000 | P158: 0.71%
A159: 149 | B159: Banking | C159: PNB | D159: 2024-06-27 | E159: 125.55 | F159: 126.03 | G159: 124.27 | H159: 122.98 | I159: 121.22 | J159: 127.32 | K159: 129.08 | L159: 130.37 | M159: 127.8 | N159: 124.75 | O159: 298176000 | P159: 2.51%
A160: 150 | B160: Capital_Goods | C160: POLYCAB | D160: 2024-06-27 | E160: 7068.35 | F160: 7041.65 | G160: 6991.70 | H160: 6915.05 | I160: 6865.10 | J160: 7118.30 | K160: 7168.25 | L160: 7244.90 | M160: 7091.6 | N160: 6965 | O160: 1650325 | P160: 2.64%
A161: 151 | B161: Power | C161: POWERGRID | D161: 2024-06-27 | E161: 322.25 | F161: 323.85 | G161: 319.40 | H161: 316.55 | I161: 312.10 | J161: 326.70 | K161: 331.15 | L161: 334.00 | M161: 328.3 | N161: 321 | O161: 67032000 | P161: 2.86%
A162: 152 | B162: Media | C162: PVRINOX | D162: 2024-06-27 | E162: 1392.65 | F162: 1389.68 | G162: 1369.32 | H162: 1345.98 | I162: 1325.62 | J162: 1413.02 | K162: 1433.38 | L162: 1456.72 | M162: 1410.05 | N162: 1366.35 | O162: 4496536 | P162: 3.83%
A163: 153 | B163: Cement | C163: RAMCOCEM | D163: 2024-06-27 | E163: 868.15 | F163: 863.62 | G163: 851.53 | H163: 834.92 | I163: 822.83 | J163: 880.23 | K163: 892.32 | L163: 908.93 | M163: 875.7 | N163: 847 | O163: 9764800 | P163: -2.61%
A164: 154 | B164: Banking | C164: RBLBANK | D164: 2024-06-27 | E164: 260.60 | F164: 260.43 | G164: 257.87 | H164: 255.13 | I164: 252.57 | J164: 263.17 | K164: 265.73 | L164: 268.47 | M164: 263 | N164: 257.7 | O164: 56187500 | P164: 1.35%
A165: 155 | B165: Finance | C165: RECLTD | D165: 2024-06-27 | E165: 522.30 | F165: 521.32 | G165: 516.63 | H165: 510.97 | I165: 506.28 | J165: 526.98 | K165: 531.67 | L165: 537.33 | M165: 526 | N165: 515.65 | O165: 59978000 | P165: -0.32%
A166: 156 | B166: Oil_Gas | C166: RELIANCE | D166: 2024-06-27 | E166: 2933.20 | F166: 2938.52 | G166: 2923.03 | H166: 2912.87 | I166: 2897.38 | J166: 2948.68 | K166: 2964.17 | L166: 2974.33 | M166: 2954 | N166: 2928.35 | O166: 39899500 | P166: 0.42%
A167: 157 | B167: Metals | C167: SAIL | D167: 2024-06-27 | E167: 149.95 | F167: 149.88 | G167: 147.07 | H167: 144.18 | I167: 141.37 | J167: 152.77 | K167: 155.58 | L167: 158.47 | M167: 152.7 | N167: 147 | O167: 171488000 | P167: -2.26%
A168: 158 | B168: Finance | C168: SBICARD | D168: 2024-06-27 | E168: 729.70 | F168: 727.92 | G168: 722.28 | H168: 714.87 | I168: 709.23 | J168: 735.33 | K168: 740.97 | L168: 748.38 | M168: 733.55 | N168: 720.5 | O168: 17661600 | P168: 0.09%
A169: 159 | B169: Finance | C169: SBILIFE | D169: 2024-06-27 | E169: 1450.85 | F169: 1457.97 | G169: 1431.18 | H169: 1411.52 | I169: 1384.73 | J169: 1477.63 | K169: 1504.42 | L169: 1524.08 | M169: 1484.75 | N169: 1438.3 | O169: 9256875 | P169: -2.20%
A170: 160 | B170: Banking | C170: SBIN | D170: 2024-06-27 | E170: 844.80 | F170: 843.42 | G170: 839.13 | H170: 833.47 | I170: 829.18 | J170: 849.08 | K170: 853.37 | L170: 859.03 | M170: 847.7 | N170: 837.75 | O170: 88254750 | P170: -1.08%
A171: 161 | B171: Cement | C171: SHREECEM | D171: 2024-06-27 | E171: 27492.75 | F171: 27457.67 | G171: 27255.13 | H171: 27017.52 | I171: 26814.98 | J171: 27695.28 | K171: 27897.82 | L171: 28135.43 | M171: 27660.2 | N171: 27220.05 | O171: 264825 | P171: -0.61%
A172: 162 | B172: Capital_Goods | C172: SIEMENS | D172: 2024-06-27 | E172: 7419.00 | F172: 7344.25 | G172: 7192.65 | H172: 6966.30 | I172: 6814.70 | J172: 7570.60 | K172: 7722.20 | L172: 7948.55 | M172: 7495.85 | N172: 7117.9 | O172: 1728900 | P172: 4.48%
A173: 163 | B173: Textile | C173: SRF | D173: 2024-06-27 | E173: 2402.85 | F173: 2395.55 | G173: 2381.20 | H173: 2359.55 | I173: 2345.20 | J173: 2417.20 | K173: 2431.55 | L173: 2453.20 | M173: 2409.9 | N173: 2373.9 | O173: 4098750 | P173: -3.60%
A174: 164 | B174: Finance | C174: SHRIRAMFIN | D174: 2024-06-27 | E174: 2686.65 | F174: 2656.12 | G174: 2617.23 | H174: 2547.82 | I174: 2508.93 | J174: 2725.53 | K174: 2764.42 | L174: 2833.83 | M174: 2695 | N174: 2586.7 | O174: 5865600 | P174: -5.46%
A175: 165 | B175: Pharma | C175: SUNPHARMA | D175: 2024-06-27 | E175: 1512.00 | F175: 1509.85 | G175: 1504.70 | H175: 1497.40 | I175: 1492.25 | J175: 1517.15 | K175: 1522.30 | L175: 1529.60 | M175: 1515 | N175: 1502.55 | O175: 16641450 | P175: -0.76%
A176: 166 | B176: Media | C176: SUNTV | D176: 2024-06-27 | E176: 759.85 | F176: 764.20 | G176: 752.35 | H176: 744.85 | I176: 733.00 | J176: 771.70 | K176: 783.55 | L176: 791.05 | M176: 776.05 | N176: 756.7 | O176: 8365500 | P176: 9.93%
A177: 167 | B177: Pharma | C177: SYNGENE | D177: 2024-06-27 | E177: 699.05 | F177: 700.02 | G177: 694.08 | H177: 689.12 | I177: 683.18 | J177: 704.98 | K177: 710.92 | L177: 715.88 | M177: 705.95 | N177: 695.05 | O177: 5445000 | P177: 3.13%
A178: 168 | B178: Chemicals | C178: TATACHEM | D178: 2024-06-27 | E178: 1119.35 | F178: 1120.98 | G178: 1107.72 | H178: 1096.08 | I178: 1082.82 | J178: 1132.62 | K178: 1145.88 | L178: 1157.52 | M178: 1134.25 | N178: 1109.35 | O178: 7687900 | P178: 0.24%
A179: 169 | B179: Telecom | C179: TATACOMM | D179: 2024-06-27 | E179: 1883.00 | F179: 1890.65 | G179: 1859.35 | H179: 1835.70 | I179: 1804.40 | J179: 1914.30 | K179: 1945.60 | L179: 1969.25 | M179: 1921.95 | N179: 1867 | O179: 7006000 | P179: 9.11%
A180: 170 | B180: FMCG | C180: TATACONSUM | D180: 2024-06-27 | E180: 1115.80 | F180: 1117.37 | G180: 1103.53 | H180: 1091.27 | I180: 1077.43 | J180: 1129.63 | K180: 1143.47 | L180: 1155.73 | M180: 1131.2 | N180: 1105.1 | O180: 11196000 | P180: 4.58%
A181: 171 | B181: Automobile | C181: TATAMOTORS | D181: 2024-06-27 | E181: 989.40 | F181: 992.28 | G181: 979.72 | H181: 970.03 | I181: 957.47 | J181: 1001.97 | K181: 1014.53 | L181: 1024.22 | M181: 1004.85 | N181: 982.6 | O181: 81231600 | P181: 4.08%
A182: 172 | B182: Power | C182: TATAPOWER | D182: 2024-06-27 | E182: 453.80 | F182: 454.73 | G182: 450.32 | H182: 446.83 | I182: 442.42 | J182: 458.22 | K182: 462.63 | L182: 466.12 | M182: 459.15 | N182: 451.25 | O182: 85543425 | P182: 1.85%
A183: 173 | B183: Metals | C183: TATASTEEL | D183: 2024-06-27 | E183: 182.85 | F183: 182.93 | G183: 181.17 | H183: 179.48 | I183: 177.72 | J183: 184.62 | K183: 186.38 | L183: 188.07 | M183: 184.7 | N183: 181.25 | O183: 206959500 | P183: 1.35%
A184: 174 | B184: Technology | C184: TCS | D184: 2024-06-27 | E184: 3882.35 | F184: 3881.18 | G184: 3857.97 | H184: 3833.58 | I184: 3810.37 | J184: 3905.57 | K184: 3928.78 | L184: 3953.17 | M184: 3904.4 | N184: 3856.8 | O184: 19003250 | P184: 0.16%
A185: 175 | B185: Technology | C185: TECHM | D185: 2024-06-27 | E185: 1390.50 | F185: 1389.38 | G185: 1379.82 | H185: 1369.13 | I185: 1359.57 | J185: 1400.07 | K185: 1409.63 | L185: 1420.32 | M185: 1398.95 | N185: 1378.7 | O185: 16296600 | P185: -2.62%
A186: 176 | B186: FMCG | C186: TITAN | D186: 2024-06-27 | E186: 3464.30 | F186: 3442.65 | G186: 3413.65 | H186: 3363.00 | I186: 3334.00 | J186: 3493.30 | K186: 3522.30 | L186: 3572.95 | M186: 3471.65 | N186: 3392 | O186: 8330350 | P186: 0.40%
A187: 177 | B187: Pharma | C187: TORNTPHARM | D187: 2024-06-27 | E187: 2877.00 | F187: 2878.38 | G187: 2851.42 | H187: 2825.83 | I187: 2798.87 | J187: 2903.97 | K187: 2930.93 | L187: 2956.52 | M187: 2905.35 | N187: 2852.8 | O187: 1399250 | P187: 2.23%
A188: 178 | B188: Textile | C188: TRENT | D188: 2024-06-27 | E188: 5041.60 | F188: 5052.40 | G188: 4965.25 | H188: 4888.90 | I188: 4801.75 | J188: 5128.75 | K188: 5215.90 | L188: 5292.25 | M188: 5139.55 | N188: 4976.05 | O188: 3115800 | P188: 0.63%
A189: 179 | B189: Automobile | C189: TVSMOTOR | D189: 2024-06-27 | E189: 2447.60 | F189: 2446.20 | G189: 2424.40 | H189: 2401.20 | I189: 2379.40 | J189: 2469.40 | K189: 2491.20 | L189: 2514.40 | M189: 2468 | N189: 2423 | O189: 7004200 | P189: 0.40%
A190: 180 | B190: FMCG | C190: UBL | D190: 2024-06-27 | E190: 2126.35 | F190: 2136.45 | G190: 2111.90 | H190: 2097.45 | I190: 2072.90 | J190: 2150.90 | K190: 2175.45 | L190: 2189.90 | M190: 2161 | N190: 2122 | O190: 1945600 | P190: 0.66%
A191: 181 | B191: Cement | C191: ULTRACEMCO | D191: 2024-06-27 | E191: 11163.10 | F191: 11164.30 | G191: 10989.75 | H191: 10816.40 | I191: 10641.85 | J191: 11337.65 | K191: 11512.20 | L191: 11685.55 | M191: 11338.85 | N191: 10990.95 | O191: 2137500 | P191: 4.63%
A192: 182 | B192: Chemicals | C192: UPL | D192: 2024-06-27 | E192: 559.05 | F192: 556.98 | G192: 549.97 | H192: 540.88 | I192: 533.87 | J192: 566.07 | K192: 573.08 | L192: 582.17 | M192: 564 | N192: 547.9 | O192: 38201800 | P192: 0.80%
A193: 183 | B193: Metals | C193: VEDL | D193: 2024-06-27 | E193: 440.20 | F193: 442.97 | G193: 436.48 | H193: 432.77 | I193: 426.28 | J193: 446.68 | K193: 453.17 | L193: 456.88 | M193: 449.45 | N193: 439.25 | O193: 81827100 | P193: -0.05%
A194: 184 | B194: Capital_Goods | C194: VOLTAS | D194: 2024-06-27 | E194: 1483.70 | F194: 1474.50 | G194: 1457.45 | H194: 1431.20 | I194: 1414.15 | J194: 1500.75 | K194: 1517.80 | L194: 1544.05 | M194: 1491.55 | N194: 1448.25 | O194: 7217400 | P194: 4.30%
A195: 185 | B195: Technology | C195: WIPRO | D195: 2024-06-27 | E195: 483.85 | F195: 482.80 | G195: 480.05 | H195: 476.25 | I195: 473.50 | J195: 486.60 | K195: 489.35 | L195: 493.15 | M195: 485.55 | N195: 479 | O195: 59296500 | P195: -1.10%
A196: 186 | B196: Media | C196: ZEEL | D196: 2024-06-27 | E196: 165.70 | F196: 166.63 | G196: 163.07 | H196: 160.43 | I196: 156.87 | J196: 169.27 | K196: 172.83 | L196: 175.47 | M196: 170.2 | N196: 164 | O196: 125757000 | P196: 1.23%
A197: 187 | B197: Pharma | C197: ZYDUSLIFE | D197: 2024-06-27 | E197: 1095.25 | F197: 1096.28 | G197: 1086.77 | H197: 1078.28 | I197: 1068.77 | J197: 1104.77 | K197: 1114.28 | L197: 1122.77 | M197: 1105.8 | N197: 1087.8 | O197: 10716300 | P197: -1.15%
A210: Pivot Point: This is trigger point for intra day buy/sell based on the price range of the previous day
A211: As per the tool,the trader should take BUY position just above Pivot and keep the stop loss of pivot point and the first target would be Resistance 1(R1)
A212: If R1 is crossed then R2 becomes the next target with stop loss of at R1
A213: Similarly if price goes below pivot point then the trader should sell and keep a stop loss of pivot point and the first target would be S1
A214: If S1 is crossed then S2 becomes the next target with stop loss of at S1
A216: Disclaimer:
A217: This document has been prepared by the Retail Research Desk of Asit C Mehta
A218: Investment Intermediates Ltd. and is meant for use of the recipient only
A219: and is not for circulation. This document is not to be reported or
... 6 more rows

Sheet Cash Intra
M5: Back to Main Page
A6: FOR INTRA DAY TRADING | K6: =Main!B10 -> 2024-06-14
A8: Sr.no | C8: CLOSE RATE | D8: Pivot Point | E8: Supports | H8: Resistances
E9: S1 | F9: S2 | G9: S3 | H9: R1 | I9: R2 | J9: R3 | K9: HIGH | L9: LOW | M9: Total Trade Quanity in Lakhs
A10: 1 | B10: Nifty 50 | C10: 23398.90 | D10: 23411.28 | E10: 23341.52 | F10: 23284.13 | G10: 23214.37 | H10: 23468.67 | I10: 23538.43 | J10: 23595.82 | K10: 23481.05 | L10: 23353.90
A11: 2 | B11: Nifty Bank | C11: 49846.70 | D11: 49944.27 | E11: 49702.08 | F11: 49557.47 | G11: 49315.28 | H11: 50088.88 | I11: 50331.07 | J11: 50475.68 | K11: 50186.45 | L11: 49799.65
A12: 3 | B12: Nifty CPSE | C12: 6735.70 | D12: 6718.63 | E12: 6663.97 | F12: 6592.23 | G12: 6537.57 | H12: 6790.37 | I12: 6845.03 | J12: 6916.77 | K12: 6773.30 | L12: 6646.90
A13: 4 | B13: Nifty Infra | C13: 8978.10 | D13: 8974.90 | E13: 8939.65 | F13: 8901.20 | G13: 8865.95 | H13: 9013.35 | I13: 9048.60 | J13: 9087.05 | K13: 9010.15 | L13: 8936.45
A14: 5 | B14: Nifty IT | C14: 34902.05 | D14: 34908.27 | E14: 34776.98 | F14: 34651.92 | G14: 34520.63 | H14: 35033.33 | I14: 35164.62 | J14: 35289.68 | K14: 35039.55 | L14: 34783.20
A15: 6 | B15: Nifty PSE | C15: 10710.15 | D15: 10666.58 | E15: 10606.82 | F15: 10503.48 | G15: 10443.72 | H15: 10769.92 | I15: 10829.68 | J15: 10933.02 | K15: 10726.35 | L15: 10563.25
A16: 7 | B16: Nifty Midcap 50 | C16: 15378.35 | D16: 15349.62 | E16: 15312.08 | F16: 15245.82 | G16: 15208.28 | H16: 15415.88 | I16: 15453.42 | J16: 15519.68 | K16: 15387.15 | L16: 15283.35
A17: 8 | B17: ABB | C17: 8446.6 | D17: 8413.85 | E17: 8337.80 | F17: 8229.00 | G17: 8152.95 | H17: 8522.65 | I17: 8598.70 | J17: 8707.50 | K17: 8489.9 | L17: 8305.05 | M17: 3.86195
A18: 9 | B18: ACC | C18: 2635.8 | D18: 2630.13 | E18: 2616.27 | F18: 2596.73 | G18: 2582.87 | H18: 2649.67 | I18: 2663.53 | J18: 2683.07 | K18: 2644 | L18: 2610.6 | M18: 3.84618
A19: 10 | B19: APLAPOLLO | C19: 1539.35 | D19: 1559.72 | E19: 1514.63 | F19: 1489.92 | G19: 1444.83 | H19: 1584.43 | I19: 1629.52 | J19: 1654.23 | K19: 1604.8 | L19: 1535 | M19: 7.05356
A20: 11 | B20: AUBANK | C20: 668.15 | D20: 671.03 | E20: 663.12 | F20: 658.08 | G20: 650.17 | H20: 676.07 | I20: 683.98 | J20: 689.02 | K20: 678.95 | L20: 666 | M20: 17.86679
A21: 12 | B21: ADANIENSOL | C21: 1017.65 | D21: 1021.17 | E21: 1010.53 | F21: 1003.42 | G21: 992.78 | H21: 1028.28 | I21: 1038.92 | J21: 1046.03 | K21: 1031.8 | L21: 1014.05 | M21: 6.11962
A22: 13 | B22: ADANIENT | C22: 3224.8 | D22: 3228.68 | E22: 3203.37 | F22: 3181.93 | G22: 3156.62 | H22: 3250.12 | I22: 3275.43 | J22: 3296.87 | K22: 3254 | L22: 3207.25 | M22: 32.02978
A23: 14 | B23: ADANIGREEN | C23: 1797.55 | D23: 1814.48 | E23: 1775.12 | F23: 1752.68 | G23: 1713.32 | H23: 1836.92 | I23: 1876.28 | J23: 1898.72 | K23: 1853.85 | L23: 1792.05 | M23: 8.36369
A24: 15 | B24: ADANIPORTS | C24: 1404.45 | D24: 1401.17 | E24: 1391.33 | F24: 1378.22 | G24: 1368.38 | H24: 1414.28 | I24: 1424.12 | J24: 1437.23 | K24: 1411 | L24: 1388.05 | M24: 28.39159
A25: 16 | B25: ADANIPOWER | C25: 753.8 | D25: 757.83 | E25: 745.97 | F25: 738.13 | G25: 726.27 | H25: 765.67 | I25: 777.53 | J25: 785.37 | K25: 769.7 | L25: 750 | M25: 87.12685
A26: 17 | B26: ATGL | C26: 945.8 | D26: 949.60 | E26: 939.20 | F26: 932.60 | G26: 922.20 | H26: 956.20 | I26: 966.60 | J26: 973.20 | K26: 960 | L26: 943 | M26: 8.66098
A27: 18 | B27: AWL | C27: 344.3 | D27: 345.67 | E27: 342.63 | F27: 340.97 | G27: 337.93 | H27: 347.33 | I27: 350.37 | J27: 352.03 | K27: 348.7 | L27: 344 | M27: 10.31957
A28: 19 | B28: ABCAPITAL | C28: 239.08 | D28: 238.28 | E28: 235.41 | F28: 231.73 | G28: 228.86 | H28: 241.96 | I28: 244.83 | J28: 248.51 | K28: 241.16 | L28: 234.61 | M28: 102.60024
A29: 20 | B29: ABFRL | C29: 326.9 | D29: 327.38 | E29: 324.67 | F29: 322.43 | G29: 319.72 | H29: 329.62 | I29: 332.33 | J29: 334.57 | K29: 330.1 | L29: 325.15 | M29: 21.70899
A30: 21 | B30: ALKEM | C30: 5089.7 | D30: 5085.20 | E30: 5055.50 | F30: 5021.30 | G30: 4991.60 | H30: 5119.40 | I30: 5149.10 | J30: 5183.30 | K30: 5114.9 | L30: 5051 | M30: 1.11983
A31: 22 | B31: AMBUJACEM | C31: 664.5 | D31: 666.53 | E31: 652.62 | F31: 640.73 | G31: 626.82 | H31: 678.42 | I31: 692.33 | J31: 704.22 | K31: 680.45 | L31: 654.65 | M31: 80.12245
A32: 23 | B32: APOLLOHOSP | C32: 6206.2 | D32: 6192.25 | E32: 6173.95 | F32: 6141.70 | G32: 6123.40 | H32: 6224.50 | I32: 6242.80 | J32: 6275.05 | K32: 6210.55 | L32: 6160 | M32: 4.01804
A33: 24 | B33: APOLLOTYRE | C33: 476.7 | D33: 478.15 | E33: 474.50 | F33: 472.30 | G33: 468.65 | H33: 480.35 | I33: 484.00 | J33: 486.20 | K33: 481.8 | L33: 475.95 | M33: 16.44139
A34: 25 | B34: ASHOKLEY | C34: 236.79 | D34: 237.62 | E34: 234.72 | F34: 232.65 | G34: 229.75 | H34: 239.69 | I34: 242.59 | J34: 244.66 | K34: 240.52 | L34: 235.55 | M34: 91.09087
A35: 26 | B35: ASIANPAINT | C35: 2910 | D35: 2914.67 | E35: 2900.33 | F35: 2890.67 | G35: 2876.33 | H35: 2924.33 | I35: 2938.67 | J35: 2948.33 | K35: 2929 | L35: 2905 | M35: 7.2638
A36: 27 | B36: ASTRAL | C36: 2236.2 | D36: 2235.78 | E36: 2222.62 | F36: 2209.03 | G36: 2195.87 | H36: 2249.37 | I36: 2262.53 | J36: 2276.12 | K36: 2248.95 | L36: 2222.2 | M36: 2.92695
A37: 28 | B37: AUROPHARMA | C37: 1254.65 | D37: 1253.82 | E37: 1246.33 | F37: 1238.02 | G37: 1230.53 | H37: 1262.13 | I37: 1269.62 | J37: 1277.93 | K37: 1261.3 | L37: 1245.5 | M37: 5.56663
A38: 29 | B38: DMART | C38: 4656.65 | D38: 4678.88 | E38: 4617.82 | F38: 4578.98 | G38: 4517.92 | H38: 4717.72 | I38: 4778.78 | J38: 4817.62 | K38: 4739.95 | L38: 4640.05 | M38: 2.38268
A39: 30 | B39: AXISBANK | C39: 1174.65 | D39: 1183.37 | E39: 1164.73 | F39: 1154.82 | G39: 1136.18 | H39: 1193.28 | I39: 1211.92 | J39: 1221.83 | K39: 1202 | L39: 1173.45 | M39: 53.21148
A40: 31 | B40: BAJAJ-AUTO | C40: 9923.4 | D40: 9896.22 | E40: 9852.43 | F40: 9781.47 | G40: 9737.68 | H40: 9967.18 | I40: 10010.97 | J40: 10081.93 | K40: 9940 | L40: 9825.25 | M40: 2.77783
A41: 32 | B41: BAJFINANCE | C41: 7294.95 | D41: 7284.03 | E41: 7243.07 | F41: 7191.18 | G41: 7150.22 | H41: 7335.92 | I41: 7376.88 | J41: 7428.77 | K41: 7325 | L41: 7232.15 | M41: 13.45495
A42: 33 | B42: BAJAJFINSV | C42: 1590.1 | D42: 1588.88 | E42: 1582.22 | F42: 1574.33 | G42: 1567.67 | H42: 1596.77 | I42: 1603.43 | J42: 1611.32 | K42: 1595.55 | L42: 1581 | M42: 10.95701
A43: 34 | B43: BAJAJHLDNG | C43: 8253.45 | D43: 8314.98 | E43: 8164.97 | F43: 8076.48 | G43: 7926.47 | H43: 8403.47 | I43: 8553.48 | J43: 8641.97 | K43: 8465 | L43: 8226.5 | M43: 0.27651
A44: 35 | B44: BALKRISIND | C44: 3190.05 | D44: 3205.72 | E44: 3166.48 | F44: 3142.92 | G44: 3103.68 | H44: 3229.28 | I44: 3268.52 | J44: 3292.08 | K44: 3244.95 | L44: 3182.15 | M44: 2.07395
A45: 36 | B45: BANDHANBNK | C45: 194.23 | D45: 195.58 | E45: 192.31 | F45: 190.39 | G45: 187.12 | H45: 197.50 | I45: 200.77 | J45: 202.69 | K45: 198.85 | L45: 193.66 | M45: 88.2065
A46: 37 | B46: BANKBARODA | C46: 282.7 | D46: 283.05 | E46: 280.90 | F46: 279.10 | G46: 276.95 | H46: 284.85 | I46: 287.00 | J46: 288.80 | K46: 285.2 | L46: 281.25 | M46: 143.22702
A47: 38 | B47: BANKINDIA | C47: 124.51 | D47: 124.92 | E47: 123.64 | F47: 122.77 | G47: 121.49 | H47: 125.79 | I47: 127.07 | J47: 127.94 | K47: 126.2 | L47: 124.05 | M47: 100.97817
A48: 39 | B48: BATAINDIA | C48: 1468.4 | D48: 1468.80 | E48: 1459.60 | F48: 1450.80 | G48: 1441.60 | H48: 1477.60 | I48: 1486.80 | J48: 1495.60 | K48: 1478 | L48: 1460 | M48: 2.62442
A49: 40 | B49: BERGEPAINT | C49: 501.35 | D49: 501.10 | E49: 497.25 | F49: 493.15 | G49: 489.30 | H49: 505.20 | I49: 509.05 | J49: 513.15 | K49: 504.95 | L49: 497 | M49: 19.71064
A50: 41 | B50: BDL | C50: 1491.1 | D50: 1464.37 | E50: 1428.73 | F50: 1366.37 | G50: 1330.73 | H50: 1526.73 | I50: 1562.37 | J50: 1624.73 | K50: 1500 | L50: 1402 | M50: 42.94918
A51: 42 | B51: BEL | C51: 300.9 | D51: 296.98 | E51: 290.97 | F51: 281.03 | G51: 275.02 | H51: 306.92 | I51: 312.93 | J51: 322.87 | K51: 303 | L51: 287.05 | M51: 495.11492
A52: 43 | B52: BHARATFORG | C52: 1636.95 | D52: 1638.53 | E52: 1622.07 | F52: 1607.18 | G52: 1590.72 | H52: 1653.42 | I52: 1669.88 | J52: 1684.77 | K52: 1655 | L52: 1623.65 | M52: 11.43028
A53: 44 | B53: BHEL | C53: 303.95 | D53: 300.63 | E53: 295.72 | F53: 287.48 | G53: 282.57 | H53: 308.87 | I53: 313.78 | J53: 322.02 | K53: 305.55 | L53: 292.4 | M53: 260.07861
A54: 45 | B54: BPCL | C54: 619.35 | D54: 618.12 | E54: 614.73 | F54: 610.12 | G54: 606.73 | H54: 622.73 | I54: 626.12 | J54: 630.73 | K54: 621.5 | L54: 613.5 | M54: 60.25162
A55: 46 | B55: BHARTIARTL | C55: 1425.75 | D55: 1434.05 | E55: 1412.15 | F55: 1398.55 | G55: 1376.65 | H55: 1447.65 | I55: 1469.55 | J55: 1483.15 | K55: 1455.95 | L55: 1420.45 | M55: 79.90376
A56: 47 | B56: BIOCON | C56: 338.15 | D56: 339.05 | E56: 335.70 | F56: 333.25 | G56: 329.90 | H56: 341.50 | I56: 344.85 | J56: 347.30 | K56: 342.4 | L56: 336.6 | M56: 24.07975
A57: 48 | B57: BOSCHLTD | C57: 32433.15 | D57: 32189.07 | E57: 31694.88 | F57: 30956.62 | G57: 30462.43 | H57: 32927.33 | I57: 33421.52 | J57: 34159.78 | K57: 32683.25 | L57: 31450.8 | M57: 0.56576
A58: 49 | B58: BRITANNIA | C58: 5379.45 | D58: 5390.37 | E58: 5330.78 | F58: 5282.12 | G58: 5222.53 | H58: 5439.03 | I58: 5498.62 | J58: 5547.28 | K58: 5449.95 | L58: 5341.7 | M58: 4.34594
A59: 50 | B59: CGPOWER | C59: 667.75 | D59: 669.45 | E59: 661.10 | F59: 654.45 | G59: 646.10 | H59: 676.10 | I59: 684.45 | J59: 691.10 | K59: 677.8 | L59: 662.8 | M59: 11.71905
A60: 51 | B60: CANBK | C60: 121.92 | D60: 122.77 | E60: 120.55 | F60: 119.17 | G60: 116.95 | H60: 124.15 | I60: 126.37 | J60: 127.75 | K60: 125 | L60: 121.4 | M60: 625.31469
A61: 52 | B61: CHOLAFIN | C61: 1436.1 | D61: 1413.95 | E61: 1387.95 | F61: 1339.80 | G61: 1313.80 | H61: 1462.10 | I61: 1488.10 | J61: 1536.25 | K61: 1439.95 | L61: 1365.8 | M61: 47.92044
A62: 53 | B62: CIPLA | C62: 1544.55 | D62: 1538.65 | E62: 1526.30 | F62: 1508.05 | G62: 1495.70 | H62: 1556.90 | I62: 1569.25 | J62: 1587.50 | K62: 1551 | L62: 1520.4 | M62: 15.25789
A63: 54 | B63: COALINDIA | C63: 487.9 | D63: 488.43 | E63: 482.97 | F63: 478.03 | G63: 472.57 | H63: 493.37 | I63: 498.83 | J63: 503.77 | K63: 493.9 | L63: 483.5 | M63: 74.38571
A64: 55 | B64: COFORGE | C64: 5273.25 | D64: 5263.75 | E64: 5209.50 | F64: 5145.75 | G64: 5091.50 | H64: 5327.50 | I64: 5381.75 | J64: 5445.50 | K64: 5318 | L64: 5200 | M64: 5.29415
A65: 56 | B65: COLPAL | C65: 2936.2 | D65: 2935.55 | E65: 2904.65 | F65: 2873.10 | G65: 2842.20 | H65: 2967.10 | I65: 2998.00 | J65: 3029.55 | K65: 2966.45 | L65: 2904 | M65: 2.04635
A66: 57 | B66: CONCOR | C66: 1140.3 | D66: 1140.08 | E66: 1126.77 | F66: 1113.23 | G66: 1099.92 | H66: 1153.62 | I66: 1166.93 | J66: 1180.47 | K66: 1153.4 | L66: 1126.55 | M66: 16.96148
A67: 58 | B67: COROMANDEL | C67: 1498.35 | D67: 1491.77 | E67: 1477.63 | F67: 1456.92 | G67: 1442.78 | H67: 1512.48 | I67: 1526.62 | J67: 1547.33 | K67: 1505.9 | L67: 1471.05 | M67: 4.06115
A68: 59 | B68: CROMPTON | C68: 425.05 | D68: 423.35 | E68: 420.30 | F68: 415.55 | G68: 412.50 | H68: 428.10 | I68: 431.15 | J68: 435.90 | K68: 426.4 | L68: 418.6 | M68: 20.79757
A69: 60 | B69: CUMMINSIND | C69: 3712.5 | D69: 3716.17 | E69: 3679.98 | F69: 3647.47 | G69: 3611.28 | H69: 3748.68 | I69: 3784.87 | J69: 3817.38 | K69: 3752.35 | L69: 3683.65 | M69: 9.7879
A70: 61 | B70: DLF | C70: 874.05 | D70: 870.90 | E70: 861.35 | F70: 848.65 | G70: 839.10 | H70: 883.60 | I70: 893.15 | J70: 905.85 | K70: 880.45 | L70: 858.2 | M70: 40.81481
A71: 62 | B71: DABUR | C71: 609.65 | D71: 604.12 | E71: 593.68 | F71: 577.72 | G71: 567.28 | H71: 620.08 | I71: 630.52 | J71: 646.48 | K71: 614.55 | L71: 588.15 | M71: 79.63596
A72: 63 | B72: DALBHARAT | C72: 1901.8 | D72: 1896.78 | E72: 1883.57 | F72: 1865.33 | G72: 1852.12 | H72: 1915.02 | I72: 1928.23 | J72: 1946.47 | K72: 1910 | L72: 1878.55 | M72: 3.45055
A73: 64 | B73: DEEPAKNTR | C73: 2411.05 | D73: 2394.87 | E73: 2368.73 | F73: 2326.42 | G73: 2300.28 | H73: 2437.18 | I73: 2463.32 | J73: 2505.63 | K73: 2421 | L73: 2352.55 | M73: 5.02975
A74: 65 | B74: DELHIVERY | C74: 393.4 | D74: 392.13 | E74: 388.77 | F74: 384.13 | G74: 380.77 | H74: 396.77 | I74: 400.13 | J74: 404.77 | K74: 395.5 | L74: 387.5 | M74: 22.20747
A75: 66 | B75: DEVYANI | C75: 179.98 | D75: 179.08 | E75: 177.95 | F75: 175.93 | G75: 174.80 | H75: 181.10 | I75: 182.23 | J75: 184.25 | K75: 180.2 | L75: 177.05 | M75: 18.5562
A76: 67 | B76: DIVISLAB | C76: 4593.5 | D76: 4569.12 | E76: 4521.23 | F76: 4448.97 | G76: 4401.08 | H76: 4641.38 | I76: 4689.27 | J76: 4761.53 | K76: 4617 | L76: 4496.85 | M76: 12.75865
A77: 68 | B77: DIXON | C77: 10855.7 | D77: 10699.63 | E77: 10510.47 | F77: 10165.23 | G77: 9976.07 | H77: 11044.87 | I77: 11234.03 | J77: 11579.27 | K77: 10888.8 | L77: 10354.4 | M77: 6.26786
A78: 69 | B78: LALPATHLAB | C78: 2777.65 | D78: 2790.80 | E78: 2738.95 | F78: 2700.25 | G78: 2648.40 | H78: 2829.50 | I78: 2881.35 | J78: 2920.05 | K78: 2842.65 | L78: 2752.1 | M78: 4.28217
A79: 70 | B79: DRREDDY | C79: 6095.85 | D79: 6082.42 | E79: 6044.93 | F79: 5994.02 | G79: 5956.53 | H79: 6133.33 | I79: 6170.82 | J79: 6221.73 | K79: 6119.9 | L79: 6031.5 | M79: 4.3823
A80: 71 | B80: EICHERMOT | C80: 4801.5 | D80: 4819.70 | E80: 4749.80 | F80: 4698.10 | G80: 4628.20 | H80: 4871.40 | I80: 4941.30 | J80: 4993.00 | K80: 4889.6 | L80: 4768 | M80: 8.4078
A81: 72 | B81: ESCORTS | C81: 4247.65 | D81: 4210.55 | E81: 4160.65 | F81: 4073.65 | G81: 4023.75 | H81: 4297.55 | I81: 4347.45 | J81: 4434.45 | K81: 4260.45 | L81: 4123.55 | M81: 3.68758
A82: 73 | B82: NYKAA | C82: 167.03 | D82: 168.48 | E82: 165.05 | F82: 163.08 | G82: 159.65 | H82: 170.45 | I82: 173.88 | J82: 175.85 | K82: 171.9 | L82: 166.5 | M82: 32.06622
A83: 74 | B83: FEDERALBNK | C83: 172.26 | D83: 172.99 | E83: 170.87 | F83: 169.49 | G83: 167.37 | H83: 174.37 | I83: 176.49 | J83: 177.87 | K83: 175.1 | L83: 171.6 | M83: 118.00445
A84: 75 | B84: FACT | C84: 772.4 | D84: 775.42 | E84: 762.48 | F84: 752.57 | G84: 739.63 | H84: 785.33 | I84: 798.27 | J84: 808.18 | K84: 788.35 | L84: 765.5 | M84: 8.90729
A85: 76 | B85: FORTIS | C85: 483 | D85: 480.10 | E85: 471.20 | F85: 459.40 | G85: 450.50 | H85: 491.90 | I85: 500.80 | J85: 512.60 | K85: 489 | L85: 468.3 | M85: 13.63028
A86: 77 | B86: GAIL | C86: 219.83 | D86: 218.10 | E86: 216.00 | F86: 212.17 | G86: 210.07 | H86: 221.93 | I86: 224.03 | J86: 227.86 | K86: 220.2 | L86: 214.27 | M86: 263.08017
A87: 78 | B87: GLAND | C87: 1855.8 | D87: 1873.27 | E87: 1832.53 | F87: 1809.27 | G87: 1768.53 | H87: 1896.53 | I87: 1937.27 | J87: 1960.53 | K87: 1914 | L87: 1850 | M87: 2.63703
A88: 79 | B88: GODREJCP | C88: 1409.3 | D88: 1403.97 | E88: 1395.33 | F88: 1381.37 | G88: 1372.73 | H88: 1417.93 | I88: 1426.57 | J88: 1440.53 | K88: 1412.6 | L88: 1390 | M88: 8.73993
A89: 80 | B89: GODREJPROP | C89: 3030.75 | D89: 3004.57 | E89: 2961.18 | F89: 2891.62 | G89: 2848.23 | H89: 3074.13 | I89: 3117.52 | J89: 3187.08 | K89: 3047.95 | L89: 2935 | M89: 12.0684
A90: 81 | B90: GRASIM | C90: 2458.05 | D90: 2454.53 | E90: 2433.52 | F90: 2408.98 | G90: 2387.97 | H90: 2479.07 | I90: 2500.08 | J90: 2524.62 | K90: 2475.55 | L90: 2430 | M90: 5.1251
A91: 82 | B91: FLUOROCHEM | C91: 3290.75 | D91: 3270.92 | E91: 3242.83 | F91: 3194.92 | G91: 3166.83 | H91: 3318.83 | I91: 3346.92 | J91: 3394.83 | K91: 3299 | L91: 3223 | M91: 1.27784
A92: 83 | B92: GUJGASLTD | C92: 636.2 | D92: 630.40 | E92: 616.70 | F92: 597.20 | G92: 583.50 | H92: 649.90 | I92: 663.60 | J92: 683.10 | K92: 644.1 | L92: 610.9 | M92: 25.68931
A93: 84 | B93: HCLTECH | C93: 1444.15 | D93: 1446.32 | E93: 1434.93 | F93: 1425.72 | G93: 1414.33 | H93: 1455.53 | I93: 1466.92 | J93: 1476.13 | K93: 1457.7 | L93: 1437.1 | M93: 42.32861
A94: 85 | B94: HDFCAMC | C94: 3996.15 | D94: 4020.33 | E94: 3950.72 | F94: 3905.28 | G94: 3835.67 | H94: 4065.77 | I94: 4135.38 | J94: 4180.82 | K94: 4089.95 | L94: 3974.9 | M94: 4.69787
A95: 86 | B95: HDFCBANK | C95: 1580.75 | D95: 1580.15 | E95: 1574.60 | F95: 1568.45 | G95: 1562.90 | H95: 1586.30 | I95: 1591.85 | J95: 1598.00 | K95: 1585.7 | L95: 1574 | M95: 120.60096
A96: 87 | B96: HDFCLIFE | C96: 593.5 | D96: 585.63 | E96: 572.87 | F96: 552.23 | G96: 539.47 | H96: 606.27 | I96: 619.03 | J96: 639.67 | K96: 598.4 | L96: 565 | M96: 243.52341
A97: 88 | B97: HAVELLS | C97: 1838.5 | D97: 1841.28 | E97: 1829.52 | F97: 1820.53 | G97: 1808.77 | H97: 1850.27 | I97: 1862.03 | J97: 1871.02 | K97: 1853.05 | L97: 1832.3 | M97: 16.07614
A98: 89 | B98: HEROMOTOCO | C98: 5816 | D98: 5795.67 | E98: 5751.33 | F98: 5686.67 | G98: 5642.33 | H98: 5860.33 | I98: 5904.67 | J98: 5969.33 | K98: 5840 | L98: 5731 | M98: 5.47596
A99: 90 | B99: HINDALCO | C99: 680.7 | D99: 680.47 | E99: 676.28 | F99: 671.87 | G99: 667.68 | H99: 684.88 | I99: 689.07 | J99: 693.48 | K99: 684.65 | L99: 676.05 | M99: 95.55904
A100: 91 | B100: HAL | C100: 5099.7 | D100: 5024.42 | E100: 4931.28 | F100: 4762.87 | G100: 4669.73 | H100: 5192.83 | I100: 5285.97 | J100: 5454.38 | K100: 5117.55 | L100: 4856 | M100: 43.64888
A101: 92 | B101: HINDPETRO | C101: 528.35 | D101: 528.38 | E101: 524.47 | F101: 520.58 | G101: 516.67 | H101: 532.27 | I101: 536.18 | J101: 540.07 | K101: 532.3 | L101: 524.5 | M101: 47.75601
A102: 93 | B102: HINDUNILVR | C102: 2487.4 | D102: 2479.88 | E102: 2453.97 | F102: 2420.53 | G102: 2394.62 | H102: 2513.32 | I102: 2539.23 | J102: 2572.67 | K102: 2505.8 | L102: 2446.45 | M102: 31.23098
A103: 94 | B103: ICICIBANK | C103: 1107.35 | D103: 1111.85 | E103: 1100.50 | F103: 1093.65 | G103: 1082.30 | H103: 1118.70 | I103: 1130.05 | J103: 1136.90 | K103: 1123.2 | L103: 1105 | M103: 124.94254
A104: 95 | B104: ICICIGI | C104: 1662.7 | D104: 1662.88 | E104: 1650.82 | F104: 1638.93 | G104: 1626.87 | H104: 1674.77 | I104: 1686.83 | J104: 1698.72 | K104: 1674.95 | L104: 1651 | M104: 2.06868
A105: 96 | B105: ICICIPRULI | C105: 596.15 | D105: 589.52 | E105: 580.43 | F105: 564.72 | G105: 555.63 | H105: 605.23 | I105: 614.32 | J105: 630.03 | K105: 598.6 | L105: 573.8 | M105: 37.22751
A106: 97 | B106: IDFCFIRSTB | C106: 77.46 | D106: 77.73 | E106: 77.13 | F106: 76.79 | G106: 76.19 | H106: 78.07 | I106: 78.67 | J106: 79.01 | K106: 78.34 | L106: 77.4 | M106: 142.80118
A107: 98 | B107: ITC | C107: 430.3 | D107: 432.32 | E107: 427.73 | F107: 425.17 | G107: 420.58 | H107: 434.88 | I107: 439.47 | J107: 442.03 | K107: 436.9 | L107: 429.75 | M107: 92.83802
A108: 99 | B108: INDIANB | C108: 541.75 | D108: 541.18 | E108: 537.57 | F108: 533.38 | G108: 529.77 | H108: 545.37 | I108: 548.98 | J108: 553.17 | K108: 544.8 | L108: 537 | M108: 12.6042
A109: 100 | B109: INDHOTEL | C109: 589.3 | D109: 589.10 | E109: 584.20 | F109: 579.10 | G109: 574.20 | H109: 594.20 | I109: 599.10 | J109: 604.20 | K109: 594 | L109: 584 | M109: 30.84488
A110: 101 | B110: IOC | C110: 168.95 | D110: 169.07 | E110: 167.93 | F110: 166.92 | G110: 165.78 | H110: 170.08 | I110: 171.22 | J110: 172.23 | K110: 170.2 | L110: 168.05 | M110: 172.7958
A111: 102 | B111: IRCTC | C111: 1017.55 | D111: 1022.68 | E111: 1008.37 | F111: 999.18 | G111: 984.87 | H111: 1031.87 | I111: 1046.18 | J111: 1055.37 | K111: 1037 | L111: 1013.5 | M111: 19.96303
A112: 103 | B112: IRFC | C112: 175.13 | D112: 176.21 | E112: 173.47 | F112: 171.81 | G112: 169.07 | H112: 177.87 | I112: 180.61 | J112: 182.27 | K112: 178.95 | L112: 174.55 | M112: 317.50295
A113: 104 | B113: IGL | C113: 487.05 | D113: 485.33 | E113: 480.22 | F113: 473.38 | G113: 468.27 | H113: 492.17 | I113: 497.28 | J113: 504.12 | K113: 490.45 | L113: 478.5 | M113: 40.92669
A114: 105 | B114: INDUSTOWER | C114: 339.5 | D114: 341.03 | E114: 335.47 | F114: 331.43 | G114: 325.87 | H114: 345.07 | I114: 350.63 | J114: 354.67 | K114: 346.6 | L114: 337 | M114: 79.80545
A115: 106 | B115: INDUSINDBK | C115: 1507.25 | D115: 1499.48 | E115: 1488.97 | F115: 1470.68 | G115: 1460.17 | H115: 1517.77 | I115: 1528.28 | J115: 1546.57 | K115: 1510 | L115: 1481.2 | M115: 24.46832
A116: 107 | B116: NAUKRI | C116: 6266.7 | D116: 6293.05 | E116: 6220.10 | F116: 6173.50 | G116: 6100.55 | H116: 6339.65 | I116: 6412.60 | J116: 6459.20 | K116: 6366 | L116: 6246.45 | M116: 2.23143
A117: 108 | B117: INFY | C117: 1493.95 | D117: 1496.10 | E117: 1487.20 | F117: 1480.45 | G117: 1471.55 | H117: 1502.85 | I117: 1511.75 | J117: 1518.50 | K117: 1505 | L117: 1489.35 | M117: 73.07565
A118: 109 | B118: INDIGO | C118: 4302.65 | D118: 4293.68 | E118: 4238.97 | F118: 4175.28 | G118: 4120.57 | H118: 4357.37 | I118: 4412.08 | J118: 4475.77 | K118: 4348.4 | L118: 4230 | M118: 45.10241
A119: 110 | B119: IPCALAB | C119: 1199.8 | D119: 1198.27 | E119: 1186.53 | F119: 1173.27 | G119: 1161.53 | H119: 1211.53 | I119: 1223.27 | J119: 1236.53 | K119: 1210 | L119: 1185 | M119: 10.5324
A120: 111 | B120: JSWENERGY | C120: 659.45 | D120: 659.17 | E120: 649.48 | F120: 639.52 | G120: 629.83 | H120: 669.13 | I120: 678.82 | J120: 688.78 | K120: 668.85 | L120: 649.2 | M120: 18.72711
A121: 112 | B121: JSWSTEEL | C121: 915.75 | D121: 916.28 | E121: 907.52 | F121: 899.28 | G121: 890.52 | H121: 924.52 | I121: 933.28 | J121: 941.52 | K121: 925.05 | L121: 908.05 | M121: 17.88757
A122: 113 | B122: JINDALSTEL | C122: 1041.25 | D122: 1043.55 | E122: 1034.10 | F122: 1026.95 | G122: 1017.50 | H122: 1050.70 | I122: 1060.15 | J122: 1067.30 | K122: 1053 | L122: 1036.4 | M122: 11.62049
A123: 114 | B123: JUBLFOOD | C123: 532.6 | D123: 535.43 | E123: 528.17 | F123: 523.73 | G123: 516.47 | H123: 539.87 | I123: 547.13 | J123: 551.57 | K123: 542.7 | L123: 531 | M123: 13.97961
A124: 115 | B124: KPITTECH | C124: 1487.4 | D124: 1497.12 | E124: 1473.28 | F124: 1459.17 | G124: 1435.33 | H124: 1511.23 | I124: 1535.07 | J124: 1549.18 | K124: 1520.95 | L124: 1483 | M124: 10.67007
A125: 116 | B125: KOTAKBANK | C125: 1726.35 | D125: 1727.63 | E125: 1717.72 | F125: 1709.08 | G125: 1699.17 | H125: 1736.27 | I125: 1746.18 | J125: 1754.82 | K125: 1737.55 | L125: 1719 | M125: 60.16145
A126: 117 | B126: LTF | C126: 175.87 | D126: 176.68 | E126: 174.19 | F126: 172.50 | G126: 170.01 | H126: 178.37 | I126: 180.86 | J126: 182.55 | K126: 179.18 | L126: 175 | M126: 473.33091
A127: 118 | B127: LTTS | C127: 4905.1 | D127: 4914.48 | E127: 4873.57 | F127: 4842.03 | G127: 4801.12 | H127: 4946.02 | I127: 4986.93 | J127: 5018.47 | K127: 4955.4 | L127: 4882.95 | M127: 1.56208
A128: 119 | B128: LICHSGFIN | C128: 719.3 | D128: 717.33 | E128: 708.67 | F128: 698.03 | G128: 689.37 | H128: 727.97 | I128: 736.63 | J128: 747.27 | K128: 726 | L128: 706.7 | M128: 43.02152
A129: 120 | B129: LTIM | C129: 5047.2 | D129: 5036.80 | E129: 4981.45 | F129: 4915.70 | G129: 4860.35 | H129: 5102.55 | I129: 5157.90 | J129: 5223.65 | K129: 5092.15 | L129: 4971.05 | M129: 7.395
A130: 121 | B130: LT | C130: 3703.65 | D130: 3684.85 | E130: 3653.80 | F130: 3603.95 | G130: 3572.90 | H130: 3734.70 | I130: 3765.75 | J130: 3815.60 | K130: 3715.9 | L130: 3635 | M130: 29.655
A131: 122 | B131: LAURUSLABS | C131: 439.5 | D131: 438.63 | E131: 433.92 | F131: 428.33 | G131: 423.62 | H131: 444.22 | I131: 448.93 | J131: 454.52 | K131: 443.35 | L131: 433.05 | M131: 12.95787
A132: 123 | B132: LICI | C132: 1002.3 | D132: 1003.75 | E132: 994.05 | F132: 985.80 | G132: 976.10 | H132: 1012.00 | I132: 1021.70 | J132: 1029.95 | K132: 1013.45 | L132: 995.5 | M132: 15.7038
A133: 124 | B133: LUPIN | C133: 1605.45 | D133: 1611.33 | E133: 1596.47 | F133: 1587.48 | G133: 1572.62 | H133: 1620.32 | I133: 1635.18 | J133: 1644.17 | K133: 1626.2 | L133: 1602.35 | M133: 6.14981
A134: 125 | B134: MRF | C134: 126079.6 | D134: 126232.02 | E134: 125698.73 | F134: 125317.87 | G134: 124784.58 | H134: 126612.88 | I134: 127146.17 | J134: 127527.03 | K134: 126765.3 | L134: 125851.15 | M134: 0.02995
A135: 126 | B135: LODHA | C135: 1538.75 | D135: 1522.15 | E135: 1491.80 | F135: 1444.85 | G135: 1414.50 | H135: 1569.10 | I135: 1599.45 | J135: 1646.40 | K135: 1552.5 | L135: 1475.2 | M135: 18.59278
A136: 127 | B136: M&MFIN | C136: 293.3 | D136: 292.63 | E136: 288.77 | F136: 284.23 | G136: 280.37 | H136: 297.17 | I136: 301.03 | J136: 305.57 | K136: 296.5 | L136: 288.1 | M136: 38.12916
A137: 128 | B137: M&M | C137: 2861.7 | D137: 2843.15 | E137: 2807.20 | F137: 2752.70 | G137: 2716.75 | H137: 2897.65 | I137: 2933.60 | J137: 2988.10 | K137: 2879.1 | L137: 2788.65 | M137: 24.92637
A138: 129 | B138: MANKIND | C138: 2240.2 | D138: 2232.22 | E138: 2188.43 | F138: 2136.67 | G138: 2092.88 | H138: 2283.98 | I138: 2327.77 | J138: 2379.53 | K138: 2276 | L138: 2180.45 | M138: 10.38935
A139: 130 | B139: MARICO | C139: 611.25 | D139: 617.20 | E139: 599.40 | F139: 587.55 | G139: 569.75 | H139: 629.05 | I139: 646.85 | J139: 658.70 | K139: 635 | L139: 605.35 | M139: 131.74925
A140: 131 | B140: MARUTI | C140: 12846.85 | D140: 12842.15 | E140: 12744.30 | F140: 12641.75 | G140: 12543.90 | H140: 12944.70 | I140: 13042.55 | J140: 13145.10 | K140: 12940 | L140: 12739.6 | M140: 2.9724
A141: 132 | B141: MFSL | C141: 987.8 | D141: 974.32 | E141: 953.63 | F141: 919.47 | G141: 898.78 | H141: 1008.48 | I141: 1029.17 | J141: 1063.33 | K141: 995 | L141: 940.15 | M141: 30.54699
A142: 133 | B142: MAXHEALTH | C142: 890.05 | D142: 895.47 | E142: 876.13 | F142: 862.22 | G142: 842.88 | H142: 909.38 | I142: 928.72 | J142: 942.63 | K142: 914.8 | L142: 881.55 | M142: 37.46631
A143: 134 | B143: MAZDOCK | C143: 3389.9 | D143: 3336.30 | E143: 3262.60 | F143: 3135.30 | G143: 3061.60 | H143: 3463.60 | I143: 3537.30 | J143: 3664.60 | K143: 3410 | L143: 3209 | M143: 42.87321
A144: 139 | B144: MSUMI | C144: 72.62 | D144: 71.85 | E144: 69.41 | F144: 66.19 | G144: 63.75 | H144: 75.07 | I144: 77.51 | J144: 80.73 | K144: 74.3 | L144: 68.64 | M144: 414.75778
A145: 140 | B145: MPHASIS | C145: 2456.5 | D145: 2443.52 | E145: 2422.03 | F145: 2387.57 | G145: 2366.08 | H145: 2477.98 | I145: 2499.47 | J145: 2533.93 | K145: 2465 | L145: 2409.05 | M145: 31.0785
A146: 141 | B146: MUTHOOTFIN | C146: 1792.7 | D146: 1794.42 | E146: 1783.83 | F146: 1774.97 | G146: 1764.38 | H146: 1803.28 | I146: 1813.87 | J146: 1822.73 | K146: 1805 | L146: 1785.55 | M146: 4.41208
A147: 142 | B147: NHPC | C147: 102.3 | D147: 102.75 | E147: 101.42 | F147: 100.55 | G147: 99.22 | H147: 103.62 | I147: 104.95 | J147: 105.82 | K147: 104.07 | L147: 101.87 | M147: 420.52456
A148: 143 | B148: NMDC | C148: 265.35 | D148: 265.37 | E148: 262.63 | F148: 259.92 | G148: 257.18 | H148: 268.08 | I148: 270.82 | J148: 273.53 | K148: 268.1 | L148: 262.65 | M148: 83.38914
A149: 144 | B149: NTPC | C149: 369.95 | D149: 371.43 | E149: 366.47 | F149: 362.98 | G149: 358.02 | H149: 374.92 | I149: 379.88 | J149: 383.37 | K149: 376.4 | L149: 367.95 | M149: 112.43702
A150: 145 | B150: NAVINFLUOR | C150: 3562.05 | D150: 3558.03 | E150: 3524.07 | F150: 3486.08 | G150: 3452.12 | H150: 3596.02 | I150: 3629.98 | J150: 3667.97 | K150: 3592 | L150: 3520.05 | M150: 2.41256
A151: 146 | B151: NESTLEIND | C151: 2551.75 | D151: 2570.45 | E151: 2526.45 | F151: 2501.15 | G151: 2457.15 | H151: 2595.75 | I151: 2639.75 | J151: 2665.05 | K151: 2614.45 | L151: 2545.15 | M151: 10.81272
A152: 147 | B152: OBEROIRLTY | C152: 1934.9 | D152: 1932.37 | E152: 1918.38 | F152: 1901.87 | G152: 1887.88 | H152: 1948.88 | I152: 1962.87 | J152: 1979.38 | K152: 1946.35 | L152: 1915.85 | M152: 12.64291
A153: 148 | B153: ONGC | C153: 276.55 | D153: 275.68 | E153: 273.37 | F153: 270.18 | G153: 267.87 | H153: 278.87 | I153: 281.18 | J153: 284.37 | K153: 278 | L153: 272.5 | M153: 160.13386
A154: 149 | B154: OIL | C154: 677.85 | D154: 672.55 | E154: 658.80 | F154: 639.75 | G154: 626.00 | H154: 691.60 | I154: 705.35 | J154: 724.40 | K154: 686.3 | L154: 653.5 | M154: 66.5196
A155: 150 | B155: PAYTM | C155: 428.05 | D155: 424.20 | E155: 409.40 | F155: 390.75 | G155: 375.95 | H155: 442.85 | I155: 457.65 | J155: 476.30 | K155: 439 | L155: 405.55 | M155: 164.54024
A156: 151 | B156: POLICYBZR | C156: 1316.6 | D156: 1324.25 | E156: 1298.75 | F156: 1280.90 | G156: 1255.40 | H156: 1342.10 | I156: 1367.60 | J156: 1385.45 | K156: 1349.75 | L156: 1306.4 | M156: 5.46196
A157: 152 | B157: PIIND | C157: 3638.2 | D157: 3638.97 | E157: 3619.23 | F157: 3600.27 | G157: 3580.53 | H157: 3657.93 | I157: 3677.67 | J157: 3696.63 | K157: 3658.7 | L157: 3620 | M157: 1.49504
A158: 153 | B158: PAGEIND | C158: 38833 | D158: 38797.52 | E158: 38645.03 | F158: 38457.07 | G158: 38304.58 | H158: 38985.48 | I158: 39137.97 | J158: 39325.93 | K158: 38950 | L158: 38609.55 | M158: 0.09557
A159: 154 | B159: PATANJALI | C159: 1481.2 | D159: 1471.40 | E159: 1449.80 | F159: 1418.40 | G159: 1396.80 | H159: 1502.80 | I159: 1524.40 | J159: 1555.80 | K159: 1493 | L159: 1440 | M159: 5.86732
A160: 155 | B160: PERSISTENT | C160: 3790.7 | D160: 3801.57 | E160: 3768.83 | F160: 3746.97 | G160: 3714.23 | H160: 3823.43 | I160: 3856.17 | J160: 3878.03 | K160: 3834.3 | L160: 3779.7 | M160: 4.93209
A161: 156 | B161: PETRONET | C161: 323.05 | D161: 322.73 | E161: 319.97 | F161: 316.88 | G161: 314.12 | H161: 325.82 | I161: 328.58 | J161: 331.67 | K161: 325.5 | L161: 319.65 | M161: 36.14983
A162: 157 | B162: PIDILITIND | C162: 3078.6 | D162: 3082.08 | E162: 3060.57 | F162: 3042.53 | G162: 3021.02 | H162: 3100.12 | I162: 3121.63 | J162: 3139.67 | K162: 3103.6 | L162: 3064.05 | M162: 6.71337
A163: 158 | B163: PEL | C163: 880.6 | D163: 880.20 | E163: 867.90 | F163: 855.20 | G163: 842.90 | H163: 892.90 | I163: 905.20 | J163: 917.90 | K163: 892.5 | L163: 867.5 | M163: 19.19632
A164: 159 | B164: POLYCAB | C164: 7047.2 | D164: 7018.87 | E164: 6970.33 | F164: 6893.47 | G164: 6844.93 | H164: 7095.73 | I164: 7144.27 | J164: 7221.13 | K164: 7067.4 | L164: 6942 | M164: 3.78833
A165: 160 | B165: POONAWALLA | C165: 436.1 | D165: 439.03 | E165: 431.12 | F165: 426.13 | G165: 418.22 | H165: 444.02 | I165: 451.93 | J165: 456.92 | K165: 446.95 | L165: 434.05 | M165: 15.08922
A166: 161 | B166: PFC | C166: 503.55 | D166: 500.67 | E166: 495.48 | F166: 487.42 | G166: 482.23 | H166: 508.73 | I166: 513.92 | J166: 521.98 | K166: 505.85 | L166: 492.6 | M166: 225.83735
A167: 162 | B167: POWERGRID | C167: 321.45 | D167: 323.35 | E167: 318.75 | F167: 316.05 | G167: 311.45 | H167: 326.05 | I167: 330.65 | J167: 333.35 | K167: 327.95 | L167: 320.65 | M167: 117.56503
A168: 163 | B168: PRESTIGE | C168: 1872.6 | D168: 1878.93 | E168: 1847.87 | F168: 1823.13 | G168: 1792.07 | H168: 1903.67 | I168: 1934.73 | J168: 1959.47 | K168: 1910 | L168: 1854.2 | M168: 10.2572
A169: 164 | B169: PGHH | C169: 16899.95 | D169: 16837.50 | E169: 16675.00 | F169: 16450.05 | G169: 16287.55 | H169: 17062.45 | I169: 17224.95 | J169: 17449.90 | K169: 17000 | L169: 16612.55 | M169: 0.0527
A170: 165 | B170: PNB | C170: 126.57 | D170: 127.06 | E170: 125.31 | F170: 124.06 | G170: 122.31 | H170: 128.31 | I170: 130.06 | J170: 131.31 | K170: 128.8 | L170: 125.8 | M170: 238.10879
A171: 166 | B171: RECLTD | C171: 521.5 | D171: 520.78 | E171: 515.92 | F171: 510.33 | G171: 505.47 | H171: 526.37 | I171: 531.23 | J171: 536.82 | K171: 525.65 | L171: 515.2 | M171: 154.18171
A172: 167 | B172: RVNL | C172: 390.15 | D172: 390.57 | E172: 385.38 | F172: 380.62 | G172: 375.43 | H172: 395.33 | I172: 400.52 | J172: 405.28 | K172: 395.75 | L172: 385.8 | M172: 153.83097
A173: 168 | B173: RELIANCE | C173: 2930.5 | D173: 2931.73 | E173: 2918.97 | F173: 2907.43 | G173: 2894.67 | H173: 2943.27 | I173: 2956.03 | J173: 2967.57 | K173: 2944.5 | L173: 2920.2 | M173: 45.9058
A174: 169 | B174: SBICARD | C174: 727.05 | D174: 725.90 | E174: 720.20 | F174: 713.35 | G174: 707.65 | H174: 732.75 | I174: 738.45 | J174: 745.30 | K174: 731.6 | L174: 719.05 | M174: 19.90427
A175: 170 | B175: SBILIFE | C175: 1449.9 | D175: 1454.07 | E175: 1428.68 | F175: 1407.47 | G175: 1382.08 | H175: 1475.28 | I175: 1500.67 | J175: 1521.88 | K175: 1479.45 | L175: 1432.85 | M175: 30.86173
A176: 171 | B176: SRF | C176: 2399.9 | D176: 2393.38 | E176: 2378.77 | F176: 2357.63 | G176: 2343.02 | H176: 2414.52 | I176: 2429.13 | J176: 2450.27 | K176: 2408 | L176: 2372.25 | M176: 6.10948
A177: 172 | B177: MOTHERSON | C177: 168.76 | D177: 167.99 | E177: 166.97 | F177: 165.17 | G177: 164.15 | H177: 169.79 | I177: 170.81 | J177: 172.61 | K177: 169.02 | L177: 166.2 | M177: 176.8143
A178: 173 | B178: SHREECEM | C178: 27490.75 | D178: 27434.05 | E178: 27243.10 | F178: 26995.45 | G178: 26804.50 | H178: 27681.70 | I178: 27872.65 | J178: 28120.30 | K178: 27625 | L178: 27186.4 | M178: 0.29976
A179: 174 | B179: SHRIRAMFIN | C179: 2684.3 | D179: 2654.35 | E179: 2611.05 | F179: 2537.80 | G179: 2494.50 | H179: 2727.60 | I179: 2770.90 | J179: 2844.15 | K179: 2697.65 | L179: 2581.1 | M179: 20.04491
A180: 175 | B180: SIEMENS | C180: 7396.6 | D180: 7318.97 | E180: 7169.93 | F180: 6943.27 | G180: 6794.23 | H180: 7545.63 | I180: 7694.67 | J180: 7921.33 | K180: 7468 | L180: 7092.3 | M180: 8.69619
A181: 176 | B181: SONACOMS | C181: 651.9 | D181: 655.83 | E181: 647.07 | F181: 642.23 | G181: 633.47 | H181: 660.67 | I181: 669.43 | J181: 674.27 | K181: 664.6 | L181: 651 | M181: 9.96441
A182: 177 | B182: SBIN | C182: 843.9 | D182: 841.97 | E182: 838.03 | F182: 832.17 | G182: 828.23 | H182: 847.83 | I182: 851.77 | J182: 857.63 | K182: 845.9 | L182: 836.1 | M182: 125.23972
A183: 178 | B183: SAIL | C183: 149.63 | D183: 150.38 | E183: 148.25 | F183: 146.86 | G183: 144.73 | H183: 151.77 | I183: 153.90 | J183: 155.29 | K183: 152.52 | L183: 149 | M183: 171.25245
A184: 179 | B184: SUNPHARMA | C184: 1510.8 | D184: 1507.80 | E184: 1501.00 | F184: 1491.20 | G184: 1484.40 | H184: 1517.60 | I184: 1524.40 | J184: 1534.20 | K184: 1514.6 | L184: 1498 | M184: 14.12477
A185: 180 | B185: SUNTV | C185: 759.3 | D185: 762.93 | E185: 751.02 | F185: 742.73 | G185: 730.82 | H185: 771.22 | I185: 783.13 | J185: 791.42 | K185: 774.85 | L185: 754.65 | M185: 37.78762
A186: 181 | B186: SYNGENE | C186: 696.6 | D186: 697.77 | E186: 691.13 | F186: 685.67 | G186: 679.03 | H186: 703.23 | I186: 709.87 | J186: 715.33 | K186: 704.4 | L186: 692.3 | M186: 5.68053
A187: 182 | B187: TVSMOTOR | C187: 2441.65 | D187: 2437.88 | E187: 2414.77 | F187: 2387.88 | G187: 2364.77 | H187: 2464.77 | I187: 2487.88 | J187: 2514.77 | K187: 2461 | L187: 2411 | M187: 9.90069
A188: 183 | B188: TATACHEM | C188: 1116.3 | D188: 1117.45 | E188: 1104.90 | F188: 1093.50 | G188: 1080.95 | H188: 1128.85 | I188: 1141.40 | J188: 1152.80 | K188: 1130 | L188: 1106.05 | M188: 10.81926
A189: 184 | B189: TATACOMM | C189: 1877 | D189: 1889.33 | E189: 1852.67 | F189: 1828.33 | G189: 1791.67 | H189: 1913.67 | I189: 1950.33 | J189: 1974.67 | K189: 1926 | L189: 1865 | M189: 7.32633
A190: 185 | B190: TCS | C190: 3878.15 | D190: 3873.38 | E190: 3856.77 | F190: 3835.38 | G190: 3818.77 | H190: 3894.77 | I190: 3911.38 | J190: 3932.77 | K190: 3890 | L190: 3852 | M190: 19.32323
A191: 186 | B191: TATACONSUM | C191: 1114.6 | D191: 1117.22 | E191: 1101.43 | F191: 1088.27 | G191: 1072.48 | H191: 1130.38 | I191: 1146.17 | J191: 1159.33 | K191: 1133 | L191: 1104.05 | M191: 16.05436
A192: 187 | B192: TATAELXSI | C192: 7231.05 | D192: 7220.70 | E192: 7150.35 | F192: 7069.65 | G192: 6999.30 | H192: 7301.40 | I192: 7371.75 | J192: 7452.45 | K192: 7291.05 | L192: 7140 | M192: 1.6214
A193: 188 | B193: TATAMTRDVR | C193: 666.05 | D193: 666.77 | E193: 659.28 | F193: 652.52 | G193: 645.03 | H193: 673.53 | I193: 681.02 | J193: 687.78 | K193: 674.25 | L193: 660 | M193: 14.29104
A194: 189 | B194: TATAMOTORS | C194: 985.85 | D194: 989.53 | E194: 977.07 | F194: 968.28 | G194: 955.82 | H194: 998.32 | I194: 1010.78 | J194: 1019.57 | K194: 1002 | L194: 980.75 | M194: 121.57226
A195: 190 | B195: TATAPOWER | C195: 451.9 | D195: 453.18 | E195: 448.37 | F195: 444.83 | G195: 440.02 | H195: 456.72 | I195: 461.53 | J195: 465.07 | K195: 458 | L195: 449.65 | M195: 122.08021
A196: 191 | B196: TATASTEEL | C196: 182.56 | D196: 182.39 | E196: 180.68 | F196: 178.80 | G196: 177.09 | H196: 184.27 | I196: 185.98 | J196: 187.86 | K196: 184.1 | L196: 180.51 | M196: 366.69164
A197: 192 | B197: TECHM | C197: 1388.95 | D197: 1387.05 | E197: 1377.25 | F197: 1365.55 | G197: 1355.75 | H197: 1398.75 | I197: 1408.55 | J197: 1420.25 | K197: 1396.85 | L197: 1375.35 | M197: 19.53367
A198: 193 | B198: RAMCOCEM | C198: 866.25 | D198: 862.42 | E198: 849.83 | F198: 833.42 | G198: 820.83 | H198: 878.83 | I198: 891.42 | J198: 907.83 | K198: 875 | L198: 846 | M198: 22.82389
A199: 194 | B199: TITAN | C199: 3472.2 | D199: 3446.43 | E199: 3415.77 | F199: 3359.33 | G199: 3328.67 | H199: 3502.87 | I199: 3533.53 | J199: 3589.97 | K199: 3477.1 | L199: 3390 | M199: 17.53028
A200: 195 | B200: TORNTPHARM | C200: 2874.9 | D200: 2876.42 | E200: 2844.13 | F200: 2813.37 | G200: 2781.08 | H200: 2907.18 | I200: 2939.47 | J200: 2970.23 | K200: 2908.7 | L200: 2845.65 | M200: 2.18452
A201: 196 | B201: TORNTPOWER | C201: 1597.8 | D201: 1601.97 | E201: 1570.83 | F201: 1543.87 | G201: 1512.73 | H201: 1628.93 | I201: 1660.07 | J201: 1687.03 | K201: 1633.1 | L201: 1575 | M201: 4.02726
A202: 197 | B202: TRENT | C202: 5023.85 | D202: 5061.30 | E202: 4934.60 | F202: 4845.35 | G202: 4718.65 | H202: 5150.55 | I202: 5277.25 | J202: 5366.50 | K202: 5188 | L202: 4972.05 | M202: 9.32377
A203: 198 | B203: TIINDIA | C203: 4237 | D203: 4190.67 | E203: 4131.33 | F203: 4025.67 | G203: 3966.33 | H203: 4296.33 | I203: 4355.67 | J203: 4461.33 | K203: 4250 | L203: 4085 | M203: 1.88561
A204: 199 | B204: UPL | C204: 557.7 | D204: 555.60 | E204: 549.35 | F204: 541.00 | G204: 534.75 | H204: 563.95 | I204: 570.20 | J204: 578.55 | K204: 561.85 | L204: 547.25 | M204: 38.45237
A205: 200 | B205: ULTRACEMCO | C205: 11173.8 | D205: 11156.32 | E205: 11013.63 | F205: 10853.47 | G205: 10710.78 | H205: 11316.48 | I205: 11459.17 | J205: 11619.33 | K205: 11299 | L205: 10996.15 | M205: 6.02322
... 30 more rows

Sheet MidCap Intra
L5: Back To Main Page
A6: FOR INTRA DAY TRADING | K6: =Main!B10 -> 2024-06-14
A9: Sr.no | B9: Scrip | C9: CLOSE RATE | D9: Pivot Point | E9: Supports | H9: Resistances
E10: S1 | F10: S2 | G10: S3 | H10: R1 | I10: R2 | J10: R3 | K10: HIGH | L10: LOW | M10: Total Trade Quanity in Lakhs
A11: 1 | B11: 360ONE | C11: 782.15 | D11: 793.95 | E11: 768.20 | F11: 754.25 | G11: 728.50 | H11: 807.90 | I11: 833.65 | J11: 847.60 | K11: 819.7 | L11: 780 | M11: 9.0065
A12: 2 | B12: 3MINDIA | C12: 36894.6 | D12: 36599.57 | E12: 36099.13 | F12: 35303.67 | G12: 34803.23 | H12: 37395.03 | I12: 37895.47 | J12: 38690.93 | K12: 37100 | L12: 35804.1 | M12: 0.09335
A13: 3 | B13: ABB | C13: 8446.6 | D13: 8413.85 | E13: 8337.80 | F13: 8229.00 | G13: 8152.95 | H13: 8522.65 | I13: 8598.70 | J13: 8707.50 | K13: 8489.9 | L13: 8305.05 | M13: 3.86195
A14: 4 | B14: ACC | C14: 2635.8 | D14: 2630.13 | E14: 2616.27 | F14: 2596.73 | G14: 2582.87 | H14: 2649.67 | I14: 2663.53 | J14: 2683.07 | K14: 2644 | L14: 2610.6 | M14: 3.84618
A15: 5 | B15: AIAENG | C15: 3825.8 | D15: 3838.28 | E15: 3799.57 | F15: 3773.33 | G15: 3734.62 | H15: 3864.52 | I15: 3903.23 | J15: 3929.47 | K15: 3877 | L15: 3812.05 | M15: 0.28648
A16: 6 | B16: APLAPOLLO | C16: 1539.35 | D16: 1559.72 | E16: 1514.63 | F16: 1489.92 | G16: 1444.83 | H16: 1584.43 | I16: 1629.52 | J16: 1654.23 | K16: 1604.8 | L16: 1535 | M16: 7.05356
A17: 7 | B17: AUBANK | C17: 668.15 | D17: 671.03 | E17: 663.12 | F17: 658.08 | G17: 650.17 | H17: 676.07 | I17: 683.98 | J17: 689.02 | K17: 678.95 | L17: 666 | M17: 17.86679
A18: 8 | B18: AARTIIND | C18: 675.25 | D18: 672.75 | E18: 667.55 | F18: 659.85 | G18: 654.65 | H18: 680.45 | I18: 685.65 | J18: 693.35 | K18: 677.95 | L18: 665.05 | M18: 13.10157
A19: 9 | B19: AAVAS | C19: 1837.6 | D19: 1860.23 | E19: 1799.52 | F19: 1761.43 | G19: 1700.72 | H19: 1898.32 | I19: 1959.03 | J19: 1997.12 | K19: 1920.95 | L19: 1822.15 | M19: 3.96746
A20: 10 | B20: ABBOTINDIA | C20: 27616.7 | D20: 27610.92 | E20: 27509.33 | F20: 27401.97 | G20: 27300.38 | H20: 27718.28 | I20: 27819.87 | J20: 27927.23 | K20: 27712.5 | L20: 27503.55 | M20: 0.05056
A21: 11 | B21: ACE | C21: 1455.3 | D21: 1458.72 | E21: 1436.58 | F21: 1417.87 | G21: 1395.73 | H21: 1477.43 | I21: 1499.57 | J21: 1518.28 | K21: 1480.85 | L21: 1440 | M21: 2.93296
A22: 12 | B22: ADANIENSOL | C22: 1017.65 | D22: 1021.17 | E22: 1010.53 | F22: 1003.42 | G22: 992.78 | H22: 1028.28 | I22: 1038.92 | J22: 1046.03 | K22: 1031.8 | L22: 1014.05 | M22: 6.11962
A23: 13 | B23: ADANIENT | C23: 3224.8 | D23: 3228.68 | E23: 3203.37 | F23: 3181.93 | G23: 3156.62 | H23: 3250.12 | I23: 3275.43 | J23: 3296.87 | K23: 3254 | L23: 3207.25 | M23: 32.02978
A24: 14 | B24: ADANIGREEN | C24: 1797.55 | D24: 1814.48 | E24: 1775.12 | F24: 1752.68 | G24: 1713.32 | H24: 1836.92 | I24: 1876.28 | J24: 1898.72 | K24: 1853.85 | L24: 1792.05 | M24: 8.36369
A25: 15 | B25: ADANIPORTS | C25: 1404.45 | D25: 1401.17 | E25: 1391.33 | F25: 1378.22 | G25: 1368.38 | H25: 1414.28 | I25: 1424.12 | J25: 1437.23 | K25: 1411 | L25: 1388.05 | M25: 28.39159
A26: 16 | B26: ADANIPOWER | C26: 753.8 | D26: 757.83 | E26: 745.97 | F26: 738.13 | G26: 726.27 | H26: 765.67 | I26: 777.53 | J26: 785.37 | K26: 769.7 | L26: 750 | M26: 87.12685
A27: 17 | B27: ATGL | C27: 945.8 | D27: 949.60 | E27: 939.20 | F27: 932.60 | G27: 922.20 | H27: 956.20 | I27: 966.60 | J27: 973.20 | K27: 960 | L27: 943 | M27: 8.66098
A28: 18 | B28: AWL | C28: 344.3 | D28: 345.67 | E28: 342.63 | F28: 340.97 | G28: 337.93 | H28: 347.33 | I28: 350.37 | J28: 352.03 | K28: 348.7 | L28: 344 | M28: 10.31957
A29: 19 | B29: ABCAPITAL | C29: 239.08 | D29: 238.28 | E29: 235.41 | F29: 231.73 | G29: 228.86 | H29: 241.96 | I29: 244.83 | J29: 248.51 | K29: 241.16 | L29: 234.61 | M29: 102.60024
A30: 20 | B30: ABFRL | C30: 326.9 | D30: 327.38 | E30: 324.67 | F30: 322.43 | G30: 319.72 | H30: 329.62 | I30: 332.33 | J30: 334.57 | K30: 330.1 | L30: 325.15 | M30: 21.70899
A31: 21 | B31: AEGISLOG | C31: 841.1 | D31: 831.97 | E31: 776.28 | F31: 711.47 | G31: 655.78 | H31: 896.78 | I31: 952.47 | J31: 1017.28 | K31: 887.65 | L31: 767.15 | M31: 49.67272
A32: 22 | B32: AETHER | C32: 859.6 | D32: 852.20 | E32: 829.40 | F32: 799.20 | G32: 776.40 | H32: 882.40 | I32: 905.20 | J32: 935.40 | K32: 875 | L32: 822 | M32: 3.0737
A33: 23 | B33: AFFLE | C33: 1251.15 | D33: 1258.02 | E33: 1239.33 | F33: 1227.52 | G33: 1208.83 | H33: 1269.83 | I33: 1288.52 | J33: 1300.33 | K33: 1276.7 | L33: 1246.2 | M33: 1.70274
A34: 24 | B34: AJANTPHARM | C34: 2420.35 | D34: 2417.32 | E34: 2406.63 | F34: 2392.92 | G34: 2382.23 | H34: 2431.03 | I34: 2441.72 | J34: 2455.43 | K34: 2428 | L34: 2403.6 | M34: 0.26448
A35: 25 | B35: APLLTD | C35: 882.95 | D35: 887.97 | E35: 875.98 | F35: 869.02 | G35: 857.03 | H35: 894.93 | I35: 906.92 | J35: 913.88 | K35: 899.95 | L35: 881 | M35: 0.8472
A36: 26 | B36: ALKEM | C36: 5089.7 | D36: 5085.20 | E36: 5055.50 | F36: 5021.30 | G36: 4991.60 | H36: 5119.40 | I36: 5149.10 | J36: 5183.30 | K36: 5114.9 | L36: 5051 | M36: 1.11983
A37: 27 | B37: ALKYLAMINE | C37: 2021.5 | D37: 2018.77 | E37: 2003.53 | F37: 1985.57 | G37: 1970.33 | H37: 2036.73 | I37: 2051.97 | J37: 2069.93 | K37: 2034 | L37: 2000.8 | M37: 0.36467
A38: 28 | B38: ALLCARGO | C38: 65.04 | D38: 65.40 | E38: 63.84 | F38: 62.65 | G38: 61.09 | H38: 66.59 | I38: 68.15 | J38: 69.34 | K38: 66.95 | L38: 64.2 | M38: 53.11433
A39: 29 | B39: ALOKINDS | C39: 27.72 | D39: 27.77 | E39: 27.20 | F39: 26.68 | G39: 26.11 | H39: 28.29 | I39: 28.86 | J39: 29.38 | K39: 28.34 | L39: 27.25 | M39: 107.19945
A40: 30 | B40: ARE&M | C40: 1340.65 | D40: 1346.53 | E40: 1329.12 | F40: 1317.58 | G40: 1300.17 | H40: 1358.07 | I40: 1375.48 | J40: 1387.02 | K40: 1363.95 | L40: 1335 | M40: 13.6824
A41: 31 | B41: AMBER | C41: 4063.5 | D41: 4062.90 | E41: 3982.25 | F41: 3901.00 | G41: 3820.35 | H41: 4144.15 | I41: 4224.80 | J41: 4306.05 | K41: 4143.55 | L41: 3981.65 | M41: 1.99817
A42: 32 | B42: AMBUJACEM | C42: 664.5 | D42: 666.53 | E42: 652.62 | F42: 640.73 | G42: 626.82 | H42: 678.42 | I42: 692.33 | J42: 704.22 | K42: 680.45 | L42: 654.65 | M42: 80.12245
A43: 33 | B43: ANANDRATHI | C43: 3941.1 | D43: 3950.37 | E43: 3920.73 | F43: 3900.37 | G43: 3870.73 | H43: 3970.73 | I43: 4000.37 | J43: 4020.73 | K43: 3980 | L43: 3930 | M43: 0.13286
A44: 34 | B44: ANGELONE | C44: 2628.6 | D44: 2647.53 | E44: 2598.07 | F44: 2567.53 | G44: 2518.07 | H44: 2678.07 | I44: 2727.53 | J44: 2758.07 | K44: 2697 | L44: 2617 | M44: 3.96294
A45: 35 | B45: ANURAS | C45: 783.9 | D45: 784.10 | E45: 776.90 | F45: 769.90 | G45: 762.70 | H45: 791.10 | I45: 798.30 | J45: 805.30 | K45: 791.3 | L45: 777.1 | M45: 1.58937
A46: 36 | B46: APARINDS | C46: 8511.95 | D46: 8447.28 | E46: 8214.67 | F46: 7917.38 | G46: 7684.77 | H46: 8744.57 | I46: 8977.18 | J46: 9274.47 | K46: 8679.9 | L46: 8150 | M46: 3.19887
A47: 37 | B47: APOLLOHOSP | C47: 6206.2 | D47: 6192.25 | E47: 6173.95 | F47: 6141.70 | G47: 6123.40 | H47: 6224.50 | I47: 6242.80 | J47: 6275.05 | K47: 6210.55 | L47: 6160 | M47: 4.01804
A48: 38 | B48: APOLLOTYRE | C48: 476.7 | D48: 478.15 | E48: 474.50 | F48: 472.30 | G48: 468.65 | H48: 480.35 | I48: 484.00 | J48: 486.20 | K48: 481.8 | L48: 475.95 | M48: 16.44139
A49: 39 | B49: APTUS | C49: 344.4 | D49: 342.97 | E49: 339.58 | F49: 334.77 | G49: 331.38 | H49: 347.78 | I49: 351.17 | J49: 355.98 | K49: 346.35 | L49: 338.15 | M49: 9.46887
A50: 40 | B50: ACI | C50: 658.95 | D50: 661.33 | E50: 635.77 | F50: 612.58 | G50: 587.02 | H50: 684.52 | I50: 710.08 | J50: 733.27 | K50: 686.9 | L50: 638.15 | M50: 37.89776
A51: 41 | B51: ASAHIINDIA | C51: 617.05 | D51: 616.63 | E51: 610.27 | F51: 603.48 | G51: 597.12 | H51: 623.42 | I51: 629.78 | J51: 636.57 | K51: 623 | L51: 609.85 | M51: 0.86723
A52: 42 | B52: ASHOKLEY | C52: 236.79 | D52: 237.62 | E52: 234.72 | F52: 232.65 | G52: 229.75 | H52: 239.69 | I52: 242.59 | J52: 244.66 | K52: 240.52 | L52: 235.55 | M52: 91.09087
A53: 43 | B53: ASIANPAINT | C53: 2910 | D53: 2914.67 | E53: 2900.33 | F53: 2890.67 | G53: 2876.33 | H53: 2924.33 | I53: 2938.67 | J53: 2948.33 | K53: 2929 | L53: 2905 | M53: 7.2638
A54: 44 | B54: ASTERDM | C54: 362.9 | D54: 362.77 | E54: 360.63 | F54: 358.37 | G54: 356.23 | H54: 365.03 | I54: 367.17 | J54: 369.43 | K54: 364.9 | L54: 360.5 | M54: 6.14218
A55: 45 | B55: ASTRAZEN | C55: 6373.4 | D55: 6367.68 | E55: 6265.27 | F55: 6157.13 | G55: 6054.72 | H55: 6475.82 | I55: 6578.23 | J55: 6686.37 | K55: 6470.1 | L55: 6259.55 | M55: 0.06031
A56: 46 | B56: ASTRAL | C56: 2236.2 | D56: 2235.78 | E56: 2222.62 | F56: 2209.03 | G56: 2195.87 | H56: 2249.37 | I56: 2262.53 | J56: 2276.12 | K56: 2248.95 | L56: 2222.2 | M56: 2.92695
A57: 47 | B57: ATUL | C57: 6209.35 | D57: 6184.65 | E57: 6145.30 | F57: 6081.25 | G57: 6041.90 | H57: 6248.70 | I57: 6288.05 | J57: 6352.10 | K57: 6224 | L57: 6120.6 | M57: 0.44652
A58: 48 | B58: AUROPHARMA | C58: 1254.65 | D58: 1253.82 | E58: 1246.33 | F58: 1238.02 | G58: 1230.53 | H58: 1262.13 | I58: 1269.62 | J58: 1277.93 | K58: 1261.3 | L58: 1245.5 | M58: 5.56663
A59: 49 | B59: AVANTIFEED | C59: 608.7 | D59: 610.68 | E59: 603.02 | F59: 597.33 | G59: 589.67 | H59: 616.37 | I59: 624.03 | J59: 629.72 | K59: 618.35 | L59: 605 | M59: 5.40924
A60: 50 | B60: DMART | C60: 4656.65 | D60: 4678.88 | E60: 4617.82 | F60: 4578.98 | G60: 4517.92 | H60: 4717.72 | I60: 4778.78 | J60: 4817.62 | K60: 4739.95 | L60: 4640.05 | M60: 2.38268
A61: 51 | B61: AXISBANK | C61: 1174.65 | D61: 1183.37 | E61: 1164.73 | F61: 1154.82 | G61: 1136.18 | H61: 1193.28 | I61: 1211.92 | J61: 1221.83 | K61: 1202 | L61: 1173.45 | M61: 53.21148
A62: 52 | B62: BEML | C62: 4029.2 | D62: 4001.03 | E62: 3947.17 | F62: 3865.13 | G62: 3811.27 | H62: 4083.07 | I62: 4136.93 | J62: 4218.97 | K62: 4054.9 | L62: 3919 | M62: 5.99577
A63: 53 | B63: BLS | C63: 350.9 | D63: 349.35 | E63: 345.55 | F63: 340.20 | G63: 336.40 | H63: 354.70 | I63: 358.50 | J63: 363.85 | K63: 353.15 | L63: 344 | M63: 37.96164
A64: 54 | B64: BSE | C64: 2736.2 | D64: 2729.88 | E64: 2711.17 | F64: 2686.13 | G64: 2667.42 | H64: 2754.92 | I64: 2773.63 | J64: 2798.67 | K64: 2748.6 | L64: 2704.85 | M64: 5.21303
A65: 55 | B65: BAJAJ-AUTO | C65: 9923.4 | D65: 9896.22 | E65: 9852.43 | F65: 9781.47 | G65: 9737.68 | H65: 9967.18 | I65: 10010.97 | J65: 10081.93 | K65: 9940 | L65: 9825.25 | M65: 2.77783
A66: 56 | B66: BAJFINANCE | C66: 7294.95 | D66: 7284.03 | E66: 7243.07 | F66: 7191.18 | G66: 7150.22 | H66: 7335.92 | I66: 7376.88 | J66: 7428.77 | K66: 7325 | L66: 7232.15 | M66: 13.45495
A67: 57 | B67: BAJAJFINSV | C67: 1590.1 | D67: 1588.88 | E67: 1582.22 | F67: 1574.33 | G67: 1567.67 | H67: 1596.77 | I67: 1603.43 | J67: 1611.32 | K67: 1595.55 | L67: 1581 | M67: 10.95701
A68: 58 | B68: BAJAJHLDNG | C68: 8253.45 | D68: 8314.98 | E68: 8164.97 | F68: 8076.48 | G68: 7926.47 | H68: 8403.47 | I68: 8553.48 | J68: 8641.97 | K68: 8465 | L68: 8226.5 | M68: 0.27651
A69: 59 | B69: BALAMINES | C69: 2245.9 | D69: 2225.30 | E69: 2200.60 | F69: 2155.30 | G69: 2130.60 | H69: 2270.60 | I69: 2295.30 | J69: 2340.60 | K69: 2250 | L69: 2180 | M69: 0.86699
A70: 60 | B70: BALKRISIND | C70: 3190.05 | D70: 3205.72 | E70: 3166.48 | F70: 3142.92 | G70: 3103.68 | H70: 3229.28 | I70: 3268.52 | J70: 3292.08 | K70: 3244.95 | L70: 3182.15 | M70: 2.07395
A71: 61 | B71: BALRAMCHIN | C71: 439.15 | D71: 433.52 | E71: 425.63 | F71: 412.12 | G71: 404.23 | H71: 447.03 | I71: 454.92 | J71: 468.43 | K71: 441.4 | L71: 420 | M71: 105.7055
A72: 62 | B72: BANDHANBNK | C72: 194.23 | D72: 195.58 | E72: 192.31 | F72: 190.39 | G72: 187.12 | H72: 197.50 | I72: 200.77 | J72: 202.69 | K72: 198.85 | L72: 193.66 | M72: 88.2065
A73: 63 | B73: BANKBARODA | C73: 282.7 | D73: 283.05 | E73: 280.90 | F73: 279.10 | G73: 276.95 | H73: 284.85 | I73: 287.00 | J73: 288.80 | K73: 285.2 | L73: 281.25 | M73: 143.22702
A74: 64 | B74: BANKINDIA | C74: 124.51 | D74: 124.92 | E74: 123.64 | F74: 122.77 | G74: 121.49 | H74: 125.79 | I74: 127.07 | J74: 127.94 | K74: 126.2 | L74: 124.05 | M74: 100.97817
A75: 65 | B75: MAHABANK | C75: 66.68 | D75: 67.05 | E75: 66.01 | F75: 65.33 | G75: 64.29 | H75: 67.73 | I75: 68.77 | J75: 69.45 | K75: 68.1 | L75: 66.38 | M75: 125.42601
A76: 66 | B76: BATAINDIA | C76: 1468.4 | D76: 1468.80 | E76: 1459.60 | F76: 1450.80 | G76: 1441.60 | H76: 1477.60 | I76: 1486.80 | J76: 1495.60 | K76: 1478 | L76: 1460 | M76: 2.62442
A77: 67 | B77: BAYERCROP | C77: 6134.1 | D77: 6126.70 | E77: 6073.40 | F77: 6012.70 | G77: 5959.40 | H77: 6187.40 | I77: 6240.70 | J77: 6301.40 | K77: 6180 | L77: 6066 | M77: 0.23731
A78: 68 | B78: BERGEPAINT | C78: 501.35 | D78: 501.10 | E78: 497.25 | F78: 493.15 | G78: 489.30 | H78: 505.20 | I78: 509.05 | J78: 513.15 | K78: 504.95 | L78: 497 | M78: 19.71064
A79: 69 | B79: BDL | C79: 1491.1 | D79: 1464.37 | E79: 1428.73 | F79: 1366.37 | G79: 1330.73 | H79: 1526.73 | I79: 1562.37 | J79: 1624.73 | K79: 1500 | L79: 1402 | M79: 42.94918
A80: 70 | B80: BEL | C80: 300.9 | D80: 296.98 | E80: 290.97 | F80: 281.03 | G80: 275.02 | H80: 306.92 | I80: 312.93 | J80: 322.87 | K80: 303 | L80: 287.05 | M80: 495.11492
A81: 71 | B81: BHARATFORG | C81: 1636.95 | D81: 1638.53 | E81: 1622.07 | F81: 1607.18 | G81: 1590.72 | H81: 1653.42 | I81: 1669.88 | J81: 1684.77 | K81: 1655 | L81: 1623.65 | M81: 11.43028
A82: 72 | B82: BHEL | C82: 303.95 | D82: 300.63 | E82: 295.72 | F82: 287.48 | G82: 282.57 | H82: 308.87 | I82: 313.78 | J82: 322.02 | K82: 305.55 | L82: 292.4 | M82: 260.07861
A83: 73 | B83: BPCL | C83: 619.35 | D83: 618.12 | E83: 614.73 | F83: 610.12 | G83: 606.73 | H83: 622.73 | I83: 626.12 | J83: 630.73 | K83: 621.5 | L83: 613.5 | M83: 60.25162
A84: 74 | B84: BHARTIARTL | C84: 1425.75 | D84: 1434.05 | E84: 1412.15 | F84: 1398.55 | G84: 1376.65 | H84: 1447.65 | I84: 1469.55 | J84: 1483.15 | K84: 1455.95 | L84: 1420.45 | M84: 79.90376
A85: 75 | B85: BIKAJI | C85: 714.75 | D85: 712.57 | E85: 697.18 | F85: 679.62 | G85: 664.23 | H85: 730.13 | I85: 745.52 | J85: 763.08 | K85: 727.95 | L85: 695 | M85: 7.11712
A86: 76 | B86: BIOCON | C86: 338.15 | D86: 339.05 | E86: 335.70 | F86: 333.25 | G86: 329.90 | H86: 341.50 | I86: 344.85 | J86: 347.30 | K86: 342.4 | L86: 336.6 | M86: 24.07975
A87: 77 | B87: BIRLACORPN | C87: 1549.8 | D87: 1543.92 | E87: 1533.88 | F87: 1517.97 | G87: 1507.93 | H87: 1559.83 | I87: 1569.87 | J87: 1585.78 | K87: 1553.95 | L87: 1528 | M87: 1.36578
A88: 78 | B88: BSOFT | C88: 683.25 | D88: 686.35 | E88: 672.95 | F88: 662.65 | G88: 649.25 | H88: 696.65 | I88: 710.05 | J88: 720.35 | K88: 699.75 | L88: 676.05 | M88: 66.01573
A89: 79 | B89: BLUEDART | C89: 8095.5 | D89: 8028.43 | E89: 7877.07 | F89: 7658.63 | G89: 7507.27 | H89: 8246.87 | I89: 8398.23 | J89: 8616.67 | K89: 8179.8 | L89: 7810 | M89: 0.41138
A90: 80 | B90: BLUESTARCO | C90: 1687.8 | D90: 1676.10 | E90: 1653.80 | F90: 1619.80 | G90: 1597.50 | H90: 1710.10 | I90: 1732.40 | J90: 1766.40 | K90: 1698.4 | L90: 1642.1 | M90: 3.48579
A91: 81 | B91: BBTC | C91: 1652.7 | D91: 1658.25 | E91: 1634.50 | F91: 1616.30 | G91: 1592.55 | H91: 1676.45 | I91: 1700.20 | J91: 1718.40 | K91: 1682 | L91: 1640.05 | M91: 0.37879
A92: 82 | B92: BORORENEW | C92: 506.05 | D92: 505.83 | E92: 497.67 | F92: 489.28 | G92: 481.12 | H92: 514.22 | I92: 522.38 | J92: 530.77 | K92: 514 | L92: 497.45 | M92: 10.85414
A93: 83 | B93: BOSCHLTD | C93: 32433.15 | D93: 32189.07 | E93: 31694.88 | F93: 30956.62 | G93: 30462.43 | H93: 32927.33 | I93: 33421.52 | J93: 34159.78 | K93: 32683.25 | L93: 31450.8 | M93: 0.56576
A94: 84 | B94: BRIGADE | C94: 1362.75 | D94: 1365.22 | E94: 1343.43 | F94: 1324.12 | G94: 1302.33 | H94: 1384.53 | I94: 1406.32 | J94: 1425.63 | K94: 1387 | L94: 1345.9 | M94: 4.99469
A95: 85 | B95: BRITANNIA | C95: 5379.45 | D95: 5390.37 | E95: 5330.78 | F95: 5282.12 | G95: 5222.53 | H95: 5439.03 | I95: 5498.62 | J95: 5547.28 | K95: 5449.95 | L95: 5341.7 | M95: 4.34594
A96: 86 | B96: MAPMYINDIA | C96: 1969.7 | D96: 1981.55 | E96: 1953.15 | F96: 1936.60 | G96: 1908.20 | H96: 1998.10 | I96: 2026.50 | J96: 2043.05 | K96: 2009.95 | L96: 1965 | M96: 0.4622
A97: 87 | B97: CCL | C97: 608.15 | D97: 606.95 | E97: 600.20 | F97: 592.25 | G97: 585.50 | H97: 614.90 | I97: 621.65 | J97: 629.60 | K97: 613.7 | L97: 599 | M97: 5.36993
A98: 88 | B98: CESC | C98: 150.12 | D98: 149.52 | E98: 148.30 | F98: 146.47 | G98: 145.25 | H98: 151.35 | I98: 152.57 | J98: 154.40 | K98: 150.75 | L98: 147.7 | M98: 38.89263
A99: 89 | B99: CGPOWER | C99: 667.75 | D99: 669.45 | E99: 661.10 | F99: 654.45 | G99: 646.10 | H99: 676.10 | I99: 684.45 | J99: 691.10 | K99: 677.8 | L99: 662.8 | M99: 11.71905
A100: 90 | B100: CIEINDIA | C100: 580.05 | D100: 580.02 | E100: 575.03 | F100: 570.02 | G100: 565.03 | H100: 585.03 | I100: 590.02 | J100: 595.03 | K100: 585 | L100: 575 | M100: 8.35731
A101: 91 | B101: CRISIL | C101: 4152.35 | D101: 4150.82 | E101: 4130.98 | F101: 4109.62 | G101: 4089.78 | H101: 4172.18 | I101: 4192.02 | J101: 4213.38 | K101: 4170.65 | L101: 4129.45 | M101: 0.15093
A102: 92 | B102: CSBBANK | C102: 345.25 | D102: 347.80 | E102: 340.90 | F102: 336.55 | G102: 329.65 | H102: 352.15 | I102: 359.05 | J102: 363.40 | K102: 354.7 | L102: 343.45 | M102: 3.20702
A103: 93 | B103: CAMPUS | C103: 284.25 | D103: 285.42 | E103: 282.13 | F103: 280.02 | G103: 276.73 | H103: 287.53 | I103: 290.82 | J103: 292.93 | K103: 288.7 | L103: 283.3 | M103: 3.63522
A104: 94 | B104: CANFINHOME | C104: 817.35 | D104: 812.42 | E104: 804.98 | F104: 792.62 | G104: 785.18 | H104: 824.78 | I104: 832.22 | J104: 844.58 | K104: 819.85 | L104: 800.05 | M104: 7.80406
A105: 95 | B105: CANBK | C105: 121.92 | D105: 122.77 | E105: 120.55 | F105: 119.17 | G105: 116.95 | H105: 124.15 | I105: 126.37 | J105: 127.75 | K105: 125 | L105: 121.4 | M105: 625.31469
A106: 96 | B106: CAPLIPOINT | C106: 1398.1 | D106: 1420.13 | E106: 1368.42 | F106: 1338.73 | G106: 1287.02 | H106: 1449.82 | I106: 1501.53 | J106: 1531.22 | K106: 1471.85 | L106: 1390.45 | M106: 3.74765
A107: 97 | B107: CGCL | C107: 214.04 | D107: 214.25 | E107: 212.30 | F107: 210.55 | G107: 208.60 | H107: 216.00 | I107: 217.95 | J107: 219.70 | K107: 216.21 | L107: 212.51 | M107: 1.08891
A108: 98 | B108: CARBORUNIV | C108: 1737.5 | D108: 1730.85 | E108: 1712.75 | F108: 1688.00 | G108: 1669.90 | H108: 1755.60 | I108: 1773.70 | J108: 1798.45 | K108: 1748.95 | L108: 1706.1 | M108: 1.25914
A109: 99 | B109: CASTROLIND | C109: 202.5 | D109: 203.83 | E109: 200.67 | F109: 198.83 | G109: 195.67 | H109: 205.67 | I109: 208.83 | J109: 210.67 | K109: 207 | L109: 202 | M109: 24.66847
A110: 100 | B110: CEATLTD | C110: 2539.35 | D110: 2531.53 | E110: 2512.87 | F110: 2486.38 | G110: 2467.72 | H110: 2558.02 | I110: 2576.68 | J110: 2603.17 | K110: 2550.2 | L110: 2505.05 | M110: 0.65533
A111: 101 | B111: CELLO | C111: 877.85 | D111: 874.18 | E111: 864.57 | F111: 851.28 | G111: 841.67 | H111: 887.47 | I111: 897.08 | J111: 910.37 | K111: 883.8 | L111: 860.9 | M111: 2.11448
A112: 102 | B112: CENTRALBK | C112: 65.76 | D112: 66.04 | E112: 64.99 | F112: 64.21 | G112: 63.16 | H112: 66.82 | I112: 67.87 | J112: 68.65 | K112: 67.1 | L112: 65.27 | M112: 132.95899
A113: 103 | B113: CDSL | C113: 2102 | D113: 2108.05 | E113: 2089.50 | F113: 2077.00 | G113: 2058.45 | H113: 2120.55 | I113: 2139.10 | J113: 2151.60 | K113: 2126.6 | L113: 2095.55 | M113: 5.26288
A114: 104 | B114: CENTURYPLY | C114: 679.65 | D114: 680.32 | E114: 672.68 | F114: 665.72 | G114: 658.08 | H114: 687.28 | I114: 694.92 | J114: 701.88 | K114: 687.95 | L114: 673.35 | M114: 0.71254
A115: 105 | B115: CENTURYTEX | C115: 2181.2 | D115: 2159.67 | E115: 2106.83 | F115: 2032.47 | G115: 1979.63 | H115: 2234.03 | I115: 2286.87 | J115: 2361.23 | K115: 2212.5 | L115: 2085.3 | M115: 9.35624
A116: 106 | B116: CERA | C116: 7563 | D116: 7546.98 | E116: 7443.97 | F116: 7324.93 | G116: 7221.92 | H116: 7666.02 | I116: 7769.03 | J116: 7888.07 | K116: 7650 | L116: 7427.95 | M116: 0.10824
A117: 107 | B117: CHALET | C117: 825.2 | D117: 834.28 | E117: 814.07 | F117: 802.93 | G117: 782.72 | H117: 845.42 | I117: 865.63 | J117: 876.77 | K117: 854.5 | L117: 823.15 | M117: 0.76681
A118: 108 | B118: CHAMBLFERT | C118: 434.85 | D118: 432.07 | E118: 427.13 | F118: 419.42 | G118: 414.48 | H118: 439.78 | I118: 444.72 | J118: 452.43 | K118: 437 | L118: 424.35 | M118: 25.29158
A119: 109 | B119: CHEMPLASTS | C119: 555.85 | D119: 552.55 | E119: 530.70 | F119: 505.55 | G119: 483.70 | H119: 577.70 | I119: 599.55 | J119: 624.70 | K119: 574.4 | L119: 527.4 | M119: 16.28263
A120: 110 | B120: CHENNPETRO | C120: 979.85 | D120: 983.25 | E120: 971.60 | F120: 963.35 | G120: 951.70 | H120: 991.50 | I120: 1003.15 | J120: 1011.40 | K120: 994.9 | L120: 975 | M120: 6.0492
A121: 111 | B121: CHOLAHLDNG | C121: 1274.5 | D121: 1266.15 | E121: 1246.30 | F121: 1218.10 | G121: 1198.25 | H121: 1294.35 | I121: 1314.20 | J121: 1342.40 | K121: 1286 | L121: 1237.95 | M121: 4.17646
A122: 112 | B122: CHOLAFIN | C122: 1436.1 | D122: 1413.95 | E122: 1387.95 | F122: 1339.80 | G122: 1313.80 | H122: 1462.10 | I122: 1488.10 | J122: 1536.25 | K122: 1439.95 | L122: 1365.8 | M122: 47.92044
A123: 113 | B123: CIPLA | C123: 1544.55 | D123: 1538.65 | E123: 1526.30 | F123: 1508.05 | G123: 1495.70 | H123: 1556.90 | I123: 1569.25 | J123: 1587.50 | K123: 1551 | L123: 1520.4 | M123: 15.25789
A124: 114 | B124: CUB | C124: 148.27 | D124: 149.02 | E124: 147.19 | F124: 146.12 | G124: 144.29 | H124: 150.09 | I124: 151.92 | J124: 152.99 | K124: 150.84 | L124: 147.94 | M124: 60.29496
A125: 115 | B125: CLEAN | C125: 1370.8 | D125: 1373.72 | E125: 1360.08 | F125: 1349.37 | G125: 1335.73 | H125: 1384.43 | I125: 1398.07 | J125: 1408.78 | K125: 1387.35 | L125: 1363 | M125: 0.62002
A126: 116 | B126: COALINDIA | C126: 487.9 | D126: 488.43 | E126: 482.97 | F126: 478.03 | G126: 472.57 | H126: 493.37 | I126: 498.83 | J126: 503.77 | K126: 493.9 | L126: 483.5 | M126: 74.38571
A127: 117 | B127: COCHINSHIP | C127: 2006.8 | D127: 1971.60 | E127: 1925.20 | F127: 1843.60 | G127: 1797.20 | H127: 2053.20 | I127: 2099.60 | J127: 2181.20 | K127: 2018 | L127: 1890 | M127: 51.14642
A128: 118 | B128: COFORGE | C128: 5273.25 | D128: 5263.75 | E128: 5209.50 | F128: 5145.75 | G128: 5091.50 | H128: 5327.50 | I128: 5381.75 | J128: 5445.50 | K128: 5318 | L128: 5200 | M128: 5.29415
A129: 119 | B129: COLPAL | C129: 2936.2 | D129: 2935.55 | E129: 2904.65 | F129: 2873.10 | G129: 2842.20 | H129: 2967.10 | I129: 2998.00 | J129: 3029.55 | K129: 2966.45 | L129: 2904 | M129: 2.04635
A130: 120 | B130: CAMS | C130: 3665.35 | D130: 3642.55 | E130: 3599.15 | F130: 3532.95 | G130: 3489.55 | H130: 3708.75 | I130: 3752.15 | J130: 3818.35 | K130: 3685.95 | L130: 3576.35 | M130: 3.20303
A131: 121 | B131: CONCORDBIO | C131: 1444.7 | D131: 1444.47 | E131: 1432.23 | F131: 1419.77 | G131: 1407.53 | H131: 1456.93 | I131: 1469.17 | J131: 1481.63 | K131: 1456.7 | L131: 1432 | M131: 0.49398
A132: 122 | B132: CONCOR | C132: 1140.3 | D132: 1140.08 | E132: 1126.77 | F132: 1113.23 | G132: 1099.92 | H132: 1153.62 | I132: 1166.93 | J132: 1180.47 | K132: 1153.4 | L132: 1126.55 | M132: 16.96148
A133: 123 | B133: COROMANDEL | C133: 1498.35 | D133: 1491.77 | E133: 1477.63 | F133: 1456.92 | G133: 1442.78 | H133: 1512.48 | I133: 1526.62 | J133: 1547.33 | K133: 1505.9 | L133: 1471.05 | M133: 4.06115
A134: 124 | B134: CRAFTSMAN | C134: 4417.6 | D134: 4422.53 | E134: 4395.07 | F134: 4372.53 | G134: 4345.07 | H134: 4445.07 | I134: 4472.53 | J134: 4495.07 | K134: 4450 | L134: 4400 | M134: 0.22261
A135: 125 | B135: CREDITACC | C135: 1482.65 | D135: 1482.90 | E135: 1470.80 | F135: 1458.95 | G135: 1446.85 | H135: 1494.75 | I135: 1506.85 | J135: 1518.70 | K135: 1495 | L135: 1471.05 | M135: 0.93216
A136: 126 | B136: CROMPTON | C136: 425.05 | D136: 423.35 | E136: 420.30 | F136: 415.55 | G136: 412.50 | H136: 428.10 | I136: 431.15 | J136: 435.90 | K136: 426.4 | L136: 418.6 | M136: 20.79757
A137: 127 | B137: CUMMINSIND | C137: 3712.5 | D137: 3716.17 | E137: 3679.98 | F137: 3647.47 | G137: 3611.28 | H137: 3748.68 | I137: 3784.87 | J137: 3817.38 | K137: 3752.35 | L137: 3683.65 | M137: 9.7879
A138: 128 | B138: CYIENT | C138: 1906.3 | D138: 1903.07 | E138: 1891.23 | F138: 1876.17 | G138: 1864.33 | H138: 1918.13 | I138: 1929.97 | J138: 1945.03 | K138: 1914.9 | L138: 1888 | M138: 1.86253
A139: 129 | B139: DCMSHRIRAM | C139: 1057.4 | D139: 1037.67 | E139: 1012.58 | F139: 967.77 | G139: 942.68 | H139: 1082.48 | I139: 1107.57 | J139: 1152.38 | K139: 1062.75 | L139: 992.85 | M139: 5.28052
A140: 130 | B140: DLF | C140: 874.05 | D140: 870.90 | E140: 861.35 | F140: 848.65 | G140: 839.10 | H140: 883.60 | I140: 893.15 | J140: 905.85 | K140: 880.45 | L140: 858.2 | M140: 40.81481
A141: 131 | B141: DOMS | C141: 1898.15 | D141: 1915.42 | E141: 1876.83 | F141: 1855.52 | G141: 1816.93 | H141: 1936.73 | I141: 1975.32 | J141: 1996.63 | K141: 1954 | L141: 1894.1 | M141: 0.79994
A142: 132 | B142: DABUR | C142: 609.65 | D142: 604.12 | E142: 593.68 | F142: 577.72 | G142: 567.28 | H142: 620.08 | I142: 630.52 | J142: 646.48 | K142: 614.55 | L142: 588.15 | M142: 79.63596
A143: 133 | B143: DALBHARAT | C143: 1901.8 | D143: 1896.78 | E143: 1883.57 | F143: 1865.33 | G143: 1852.12 | H143: 1915.02 | I143: 1928.23 | J143: 1946.47 | K143: 1910 | L143: 1878.55 | M143: 3.45055
A144: 134 | B144: DATAPATTNS | C144: 2733.55 | D144: 2733.87 | E144: 2700.78 | F144: 2668.02 | G144: 2634.93 | H144: 2766.63 | I144: 2799.72 | J144: 2832.48 | K144: 2766.95 | L144: 2701.1 | M144: 3.69905
A145: 135 | B145: DEEPAKFERT | C145: 599.6 | D145: 599.07 | E145: 594.53 | F145: 589.47 | G145: 584.93 | H145: 604.13 | I145: 608.67 | J145: 613.73 | K145: 603.6 | L145: 594 | M145: 7.44419
A146: 136 | B146: DEEPAKNTR | C146: 2411.05 | D146: 2394.87 | E146: 2368.73 | F146: 2326.42 | G146: 2300.28 | H146: 2437.18 | I146: 2463.32 | J146: 2505.63 | K146: 2421 | L146: 2352.55 | M146: 5.02975
A147: 137 | B147: DELHIVERY | C147: 393.4 | D147: 392.13 | E147: 388.77 | F147: 384.13 | G147: 380.77 | H147: 396.77 | I147: 400.13 | J147: 404.77 | K147: 395.5 | L147: 387.5 | M147: 22.20747
A148: 138 | B148: DEVYANI | C148: 179.98 | D148: 179.08 | E148: 177.95 | F148: 175.93 | G148: 174.80 | H148: 181.10 | I148: 182.23 | J148: 184.25 | K148: 180.2 | L148: 177.05 | M148: 18.5562
A149: 139 | B149: DIVISLAB | C149: 4593.5 | D149: 4569.12 | E149: 4521.23 | F149: 4448.97 | G149: 4401.08 | H149: 4641.38 | I149: 4689.27 | J149: 4761.53 | K149: 4617 | L149: 4496.85 | M149: 12.75865
A150: 140 | B150: DIXON | C150: 10855.7 | D150: 10699.63 | E150: 10510.47 | F150: 10165.23 | G150: 9976.07 | H150: 11044.87 | I150: 11234.03 | J150: 11579.27 | K150: 10888.8 | L150: 10354.4 | M150: 6.26786
A151: 141 | B151: LALPATHLAB | C151: 2777.65 | D151: 2790.80 | E151: 2738.95 | F151: 2700.25 | G151: 2648.40 | H151: 2829.50 | I151: 2881.35 | J151: 2920.05 | K151: 2842.65 | L151: 2752.1 | M151: 4.28217
A152: 142 | B152: DRREDDY | C152: 6095.85 | D152: 6082.42 | E152: 6044.93 | F152: 5994.02 | G152: 5956.53 | H152: 6133.33 | I152: 6170.82 | J152: 6221.73 | K152: 6119.9 | L152: 6031.5 | M152: 4.3823
A153: 143 | B153: EIDPARRY | C153: 720.4 | D153: 718.17 | E153: 703.23 | F153: 686.07 | G153: 671.13 | H153: 735.33 | I153: 750.27 | J153: 767.43 | K153: 733.1 | L153: 701 | M153: 31.98498
A154: 144 | B154: EIHOTEL | C154: 426.9 | D154: 425.25 | E154: 420.60 | F154: 414.30 | G154: 409.65 | H154: 431.55 | I154: 436.20 | J154: 442.50 | K154: 429.9 | L154: 418.95 | M154: 9.75069
A155: 145 | B155: EPL | C155: 192.99 | D155: 193.97 | E155: 191.27 | F155: 189.55 | G155: 186.85 | H155: 195.69 | I155: 198.39 | J155: 200.11 | K155: 196.67 | L155: 192.25 | M155: 7.16139
A156: 146 | B156: EASEMYTRIP | C156: 42.33 | D156: 42.36 | E156: 41.98 | F156: 41.62 | G156: 41.24 | H156: 42.72 | I156: 43.10 | J156: 43.46 | K156: 42.75 | L156: 42.01 | M156: 61.72377
A157: 147 | B157: EICHERMOT | C157: 4801.5 | D157: 4819.70 | E157: 4749.80 | F157: 4698.10 | G157: 4628.20 | H157: 4871.40 | I157: 4941.30 | J157: 4993.00 | K157: 4889.6 | L157: 4768 | M157: 8.4078
A158: 148 | B158: ELECON | C158: 1317.65 | D158: 1314.88 | E158: 1279.77 | F158: 1241.88 | G158: 1206.77 | H158: 1352.77 | I158: 1387.88 | J158: 1425.77 | K158: 1350 | L158: 1277 | M158: 17.23506
A159: 149 | B159: ELGIEQUIP | C159: 657.85 | D159: 641.95 | E159: 620.90 | F159: 583.95 | G159: 562.90 | H159: 678.90 | I159: 699.95 | J159: 736.90 | K159: 663 | L159: 605 | M159: 16.94119
A160: 150 | B160: EMAMILTD | C160: 706.4 | D160: 709.78 | E160: 695.62 | F160: 684.83 | G160: 670.67 | H160: 720.57 | I160: 734.73 | J160: 745.52 | K160: 723.95 | L160: 699 | M160: 3.7273
A161: 151 | B161: ENDURANCE | C161: 2551.1 | D161: 2545.38 | E161: 2505.77 | F161: 2460.43 | G161: 2420.82 | H161: 2590.72 | I161: 2630.33 | J161: 2675.67 | K161: 2585 | L161: 2500.05 | M161: 0.89463
A162: 152 | B162: ENGINERSIN | C162: 253.81 | D162: 254.64 | E162: 249.27 | F162: 244.74 | G162: 239.37 | H162: 259.17 | I162: 264.54 | J162: 269.07 | K162: 260 | L162: 250.1 | M162: 71.39453
A163: 153 | B163: EQUITASBNK | C163: 100.21 | D163: 99.53 | E163: 98.62 | F163: 97.02 | G163: 96.11 | H163: 101.13 | I163: 102.04 | J163: 103.64 | K163: 100.45 | L163: 97.94 | M163: 51.52165
A164: 154 | B164: ERIS | C164: 1023.25 | D164: 1019.33 | E164: 1008.67 | F164: 994.08 | G164: 983.42 | H164: 1033.92 | I164: 1044.58 | J164: 1059.17 | K164: 1030 | L164: 1004.75 | M164: 0.54371
A165: 155 | B165: ESCORTS | C165: 4247.65 | D165: 4210.55 | E165: 4160.65 | F165: 4073.65 | G165: 4023.75 | H165: 4297.55 | I165: 4347.45 | J165: 4434.45 | K165: 4260.45 | L165: 4123.55 | M165: 3.68758
A166: 156 | B166: EXIDEIND | C166: 542.3 | D166: 544.45 | E166: 539.00 | F166: 535.70 | G166: 530.25 | H166: 547.75 | I166: 553.20 | J166: 556.50 | K166: 549.9 | L166: 541.15 | M166: 73.11854
A167: 157 | B167: FDC | C167: 457.3 | D167: 459.12 | E167: 453.23 | F167: 449.17 | G167: 443.28 | H167: 463.18 | I167: 469.07 | J167: 473.13 | K167: 465 | L167: 455.05 | M167: 0.84066
A168: 158 | B168: NYKAA | C168: 167.03 | D168: 168.48 | E168: 165.05 | F168: 163.08 | G168: 159.65 | H168: 170.45 | I168: 173.88 | J168: 175.85 | K168: 171.9 | L168: 166.5 | M168: 32.06622
A169: 159 | B169: FEDERALBNK | C169: 172.26 | D169: 172.99 | E169: 170.87 | F169: 169.49 | G169: 167.37 | H169: 174.37 | I169: 176.49 | J169: 177.87 | K169: 175.1 | L169: 171.6 | M169: 118.00445
A170: 160 | B170: FACT | C170: 772.4 | D170: 775.42 | E170: 762.48 | F170: 752.57 | G170: 739.63 | H170: 785.33 | I170: 798.27 | J170: 808.18 | K170: 788.35 | L170: 765.5 | M170: 8.90729
A171: 161 | B171: FINEORG | C171: 4697.5 | D171: 4688.85 | E171: 4658.70 | F171: 4619.90 | G171: 4589.75 | H171: 4727.65 | I171: 4757.80 | J171: 4796.60 | K171: 4719 | L171: 4650.05 | M171: 0.21249
A172: 162 | B172: FINCABLES | C172: 1566.7 | D172: 1562.57 | E172: 1550.13 | F172: 1533.57 | G172: 1521.13 | H172: 1579.13 | I172: 1591.57 | J172: 1608.13 | K172: 1575 | L172: 1546 | M172: 1.83667
A173: 163 | B173: FINPIPE | C173: 335.8 | D173: 339.32 | E173: 331.68 | F173: 327.57 | G173: 319.93 | H173: 343.43 | I173: 351.07 | J173: 355.18 | K173: 346.95 | L173: 335.2 | M173: 7.71974
A174: 164 | B174: FSL | C174: 204.27 | D174: 204.44 | E174: 201.39 | F174: 198.51 | G174: 195.46 | H174: 207.32 | I174: 210.37 | J174: 213.25 | K174: 207.49 | L174: 201.56 | M174: 55.81718
A175: 165 | B175: FIVESTAR | C175: 797.05 | D175: 804.07 | E175: 785.18 | F175: 773.32 | G175: 754.43 | H175: 815.93 | I175: 834.82 | J175: 846.68 | K175: 822.95 | L175: 792.2 | M175: 4.68695
A176: 166 | B176: FORTIS | C176: 483 | D176: 480.10 | E176: 471.20 | F176: 459.40 | G176: 450.50 | H176: 491.90 | I176: 500.80 | J176: 512.60 | K176: 489 | L176: 468.3 | M176: 13.63028
A177: 167 | B177: GAIL | C177: 219.83 | D177: 218.10 | E177: 216.00 | F177: 212.17 | G177: 210.07 | H177: 221.93 | I177: 224.03 | J177: 227.86 | K177: 220.2 | L177: 214.27 | M177: 263.08017
A178: 168 | B178: GMMPFAUDLR | C178: 1340.65 | D178: 1341.23 | E178: 1328.47 | F178: 1316.28 | G178: 1303.52 | H178: 1353.42 | I178: 1366.18 | J178: 1378.37 | K178: 1354 | L178: 1329.05 | M178: 2.126
A179: 169 | B179: GMRINFRA | C179: 91.73 | D179: 91.19 | E179: 89.89 | F179: 88.04 | G179: 86.74 | H179: 93.04 | I179: 94.34 | J179: 96.19 | K179: 92.5 | L179: 89.35 | M179: 468.60712
A180: 170 | B180: GRSE | C180: 1535.05 | D180: 1487.18 | E180: 1401.37 | F180: 1267.68 | G180: 1181.87 | H180: 1620.87 | I180: 1706.68 | J180: 1840.37 | K180: 1573 | L180: 1353.5 | M180: 56.63976
A181: 171 | B181: GICRE | C181: 390.4 | D181: 392.10 | E181: 385.95 | F181: 381.50 | G181: 375.35 | H181: 396.55 | I181: 402.70 | J181: 407.15 | K181: 398.25 | L181: 387.65 | M181: 17.36005
A182: 172 | B182: GILLETTE | C182: 7777.8 | D182: 7816.53 | E182: 7723.12 | F182: 7668.43 | G182: 7575.02 | H182: 7871.22 | I182: 7964.63 | J182: 8019.32 | K182: 7909.95 | L182: 7761.85 | M182: 0.38516
A183: 173 | B183: GLAND | C183: 1855.8 | D183: 1873.27 | E183: 1832.53 | F183: 1809.27 | G183: 1768.53 | H183: 1896.53 | I183: 1937.27 | J183: 1960.53 | K183: 1914 | L183: 1850 | M183: 2.63703
A184: 174 | B184: GLAXO | C184: 2700.7 | D184: 2679.98 | E184: 2650.72 | F184: 2600.73 | G184: 2571.47 | H184: 2729.97 | I184: 2759.23 | J184: 2809.22 | K184: 2709.25 | L184: 2630 | M184: 1.81775
A185: 175 | B185: GLS | C185: 858.1 | D185: 863.37 | E185: 849.73 | F185: 841.37 | G185: 827.73 | H185: 871.73 | I185: 885.37 | J185: 893.73 | K185: 877 | L185: 855 | M185: 0.47853
A186: 176 | B186: GLENMARK | C186: 1224.85 | D186: 1218.58 | E186: 1204.67 | F186: 1184.48 | G186: 1170.57 | H186: 1238.77 | I186: 1252.68 | J186: 1272.87 | K186: 1232.5 | L186: 1198.4 | M186: 7.65839
A187: 177 | B187: MEDANTA | C187: 1277.4 | D187: 1267.42 | E187: 1251.83 | F187: 1226.27 | G187: 1210.68 | H187: 1292.98 | I187: 1308.57 | J187: 1334.13 | K187: 1283 | L187: 1241.85 | M187: 3.08323
A188: 178 | B188: GPIL | C188: 1063.8 | D188: 1062.33 | E188: 1048.67 | F188: 1033.53 | G188: 1019.87 | H188: 1077.47 | I188: 1091.13 | J188: 1106.27 | K188: 1076 | L188: 1047.2 | M188: 2.72514
A189: 179 | B189: GODFRYPHLP | C189: 3859.7 | D189: 3880.20 | E189: 3819.50 | F189: 3779.30 | G189: 3718.60 | H189: 3920.40 | I189: 3981.10 | J189: 4021.30 | K189: 3940.9 | L189: 3840 | M189: 0.57996
A190: 180 | B190: GODREJCP | C190: 1409.3 | D190: 1403.97 | E190: 1395.33 | F190: 1381.37 | G190: 1372.73 | H190: 1417.93 | I190: 1426.57 | J190: 1440.53 | K190: 1412.6 | L190: 1390 | M190: 8.73993
A191: 181 | B191: GODREJIND | C191: 834.45 | D191: 824.58 | E191: 807.17 | F191: 779.88 | G191: 762.47 | H191: 851.87 | I191: 869.28 | J191: 896.57 | K191: 842 | L191: 797.3 | M191: 7.76833
A192: 182 | B192: GODREJPROP | C192: 3030.75 | D192: 3004.57 | E192: 2961.18 | F192: 2891.62 | G192: 2848.23 | H192: 3074.13 | I192: 3117.52 | J192: 3187.08 | K192: 3047.95 | L192: 2935 | M192: 12.0684
A193: 183 | B193: GRANULES | C193: 462.45 | D193: 466.57 | E193: 456.33 | F193: 450.22 | G193: 439.98 | H193: 472.68 | I193: 482.92 | J193: 489.03 | K193: 476.8 | L193: 460.45 | M193: 8.91393
A194: 184 | B194: GRAPHITE | C194: 577 | D194: 575.10 | E194: 571.40 | F194: 565.80 | G194: 562.10 | H194: 580.70 | I194: 584.40 | J194: 590.00 | K194: 578.8 | L194: 569.5 | M194: 3.60133
A195: 185 | B195: GRASIM | C195: 2458.05 | D195: 2454.53 | E195: 2433.52 | F195: 2408.98 | G195: 2387.97 | H195: 2479.07 | I195: 2500.08 | J195: 2524.62 | K195: 2475.55 | L195: 2430 | M195: 5.1251
A196: 186 | B196: GESHIP | C196: 1188.35 | D196: 1181.45 | E196: 1164.90 | F196: 1141.45 | G196: 1124.90 | H196: 1204.90 | I196: 1221.45 | J196: 1244.90 | K196: 1198 | L196: 1158 | M196: 6.04696
A197: 187 | B197: GRINDWELL | C197: 2711.75 | D197: 2711.28 | E197: 2688.52 | F197: 2665.28 | G197: 2642.52 | H197: 2734.52 | I197: 2757.28 | J197: 2780.52 | K197: 2734.05 | L197: 2688.05 | M197: 0.65577
A198: 188 | B198: GAEL | C198: 150.39 | D198: 150.53 | E198: 149.36 | F198: 148.33 | G198: 147.16 | H198: 151.56 | I198: 152.73 | J198: 153.76 | K198: 151.7 | L198: 149.5 | M198: 5.43076
A199: 189 | B199: FLUOROCHEM | C199: 3290.75 | D199: 3270.92 | E199: 3242.83 | F199: 3194.92 | G199: 3166.83 | H199: 3318.83 | I199: 3346.92 | J199: 3394.83 | K199: 3299 | L199: 3223 | M199: 1.27784
A200: 190 | B200: GUJGASLTD | C200: 636.2 | D200: 630.40 | E200: 616.70 | F200: 597.20 | G200: 583.50 | H200: 649.90 | I200: 663.60 | J200: 683.10 | K200: 644.1 | L200: 610.9 | M200: 25.68931
A201: 191 | B201: GMDCLTD | C201: 386.6 | D201: 387.78 | E201: 383.47 | F201: 380.33 | G201: 376.02 | H201: 390.92 | I201: 395.23 | J201: 398.37 | K201: 392.1 | L201: 384.65 | M201: 7.05215
A202: 192 | B202: GNFC | C202: 689.5 | D202: 688.65 | E202: 682.90 | F202: 676.30 | G202: 670.55 | H202: 695.25 | I202: 701.00 | J202: 707.60 | K202: 694.4 | L202: 682.05 | M202: 7.80124
A203: 193 | B203: GPPL | C203: 200.72 | D203: 201.31 | E203: 198.91 | F203: 197.11 | G203: 194.71 | H203: 203.11 | I203: 205.51 | J203: 207.31 | K203: 203.7 | L203: 199.5 | M203: 16.77177
A204: 194 | B204: GSFC | C204: 223.99 | D204: 224.58 | E204: 221.03 | F204: 218.06 | G204: 214.51 | H204: 227.55 | I204: 231.10 | J204: 234.07 | K204: 228.14 | L204: 221.62 | M204: 34.50314
A205: 195 | B205: GSPL | C205: 303.5 | D205: 303.25 | E205: 299.50 | F205: 295.50 | G205: 291.75 | H205: 307.25 | I205: 311.00 | J205: 315.00 | K205: 307 | L205: 299.25 | M205: 23.97934
A206: 196 | B206: HEG | C206: 2214.05 | D206: 2222.28 | E206: 2196.17 | F206: 2178.28 | G206: 2152.17 | H206: 2240.17 | I206: 2266.28 | J206: 2284.17 | K206: 2248.4 | L206: 2204.4 | M206: 0.74566
... 320 more rows

Sheet Bulk Deals
E6: Back To Main Page
A7: Subject : | B7: BULK DEAL | D7: =Main!B10 -> 2024-06-14
A9: Date | B9: Scrip code | C9: Scrip Name | D9: Client Name | E9: Buy / Sell | F9: Quantity Traded | G9: Trade Price / Wt.Avg.trade price | H9: Exchange
A10: 2024-06-13 | B10: 539562 | C10: AARNAV | D10: SUMIT CHAMPALAL AGARWAL | E10: SELL | F10: 250,000 | G10: 35.03 | H10: BSE
A11: 2024-06-13 | B11: 539562 | C11: AARNAV | D11: CHAMPALAL GOPIRAM AGARWAL | E11: SELL | F11: 250,000 | G11: 35 | H11: BSE
A12: 2024-06-13 | B12: 539661 | C12: ACEMEN | D12: ARDENT VENTURES LLP | E12: BUY | F12: 25,000 | G12: 44.75 | H12: BSE
A13: 2024-06-13 | B13: 539506 | C13: ADCON | D13: HEMANTSINGH NAHARSINGH JHALA | E13: SELL | F13: 1,000,000 | G13: 0.69 | H13: BSE
A14: 2024-06-13 | B14: 538351 | C14: AFEL | D14: SEIFER RICHARD MASCARENHAS | E14: BUY | F14: 500,000 | G14: 9.3 | H14: BSE
A15: 2024-06-13 | B15: 538351 | C15: AFEL | D15: MULTIPLIER SHARE & STOCK ADVISORS PRIVATE LIMITED | E15: SELL | F15: 100,000 | G15: 9.3 | H15: BSE
A16: 2024-06-13 | B16: 538351 | C16: AFEL | D16: PARESH DHIRAJLAL SHAH | E16: SELL | F16: 75,000 | G16: 9.3 | H16: BSE
A17: 2024-06-13 | B17: 538351 | C17: AFEL | D17: SHIVAM JINDAL | E17: BUY | F17: 146,213 | G17: 10.02 | H17: BSE
A18: 2024-06-13 | B18: 538351 | C18: AFEL | D18: SHARE INDIA SECURITIES LIMITED | E18: BUY | F18: 132,071 | G18: 9.38 | H18: BSE
A19: 2024-06-13 | B19: 538351 | C19: AFEL | D19: SHARE INDIA SECURITIES LIMITED | E19: SELL | F19: 5,000 | G19: 9.46 | H19: BSE
A20: 2024-06-13 | B20: 538351 | C20: AFEL | D20: KAUSHAL HITESHBHAI PARIKH | E20: BUY | F20: 100,000 | G20: 9.3 | H20: BSE
A21: 2024-06-13 | B21: 539115 | C21: ALAN SCOTT | D21: KANTA SURESH JAIN | E21: SELL | F21: 11,122 | G21: 66 | H21: BSE
A22: 2024-06-13 | B22: 539115 | C22: ALAN SCOTT | D22: SURESHKUMAR PUKHRAJ JAIN | E22: BUY | F22: 12,500 | G22: 65.96 | H22: BSE
A23: 2024-06-13 | B23: 531300 | C23: AMITINT | D23: VISHAL RAJENDRA GORADIA | E23: SELL | F23: 100,000 | G23: 3.3 | H23: BSE
A24: 2024-06-13 | B24: 531300 | C24: AMITINT | D24: ASHIT MAHENDRA MEHTA | E24: BUY | F24: 160,000 | G24: 3.3 | H24: BSE
A25: 2024-06-13 | B25: 531300 | C25: AMITINT | D25: VIJAY RAMBACHAN RAM | E25: SELL | F25: 199,000 | G25: 3.3 | H25: BSE
A26: 2024-06-13 | B26: 531300 | C26: AMITINT | D26: MULTITONE INVESTRADE PRIVATE LIMITED | E26: BUY | F26: 101,672 | G26: 3.3 | H26: BSE
A27: 2024-06-13 | B27: 539099 | C27: ATHCON | D27: OSIYAN BIOSCIENCE PRIVATE LIMITED | E27: SELL | F27: 55,000 | G27: 6.54 | H27: BSE
A28: 2024-06-13 | B28: 531268 | C28: B2BSOFT | D28: VARMA JANAKIRAMA MEKA | E28: SELL | F28: 60,000 | G28: 29.3 | H28: BSE
A29: 2024-06-13 | B29: 531119 | C29: CEENIK | D29: NARAINNANIKHINGORANI | E29: BUY | F29: 28,934 | G29: 709.8 | H29: BSE
A30: 2024-06-13 | B30: 537707 | C30: ETT | D30: VLS FINANCE LTD. | E30: SELL | F30: 100,000 | G30: 25.72 | H30: BSE
A31: 2024-06-13 | B31: 537707 | C31: ETT | D31: RAKESH SINGH | E31: BUY | F31: 79,220 | G31: 25.72 | H31: BSE
A32: 2024-06-13 | B32: 544156 | C32: GCONNECT | D32: NILESH BABULAL KABRA | E32: BUY | F32: 63,000 | G32: 45.53 | H32: BSE
A33: 2024-06-13 | B33: 544156 | C33: GCONNECT | D33: ASHOKBHAI MADHUBHAI KORAT | E33: BUY | F33: 21,000 | G33: 43.91 | H33: BSE
A34: 2024-06-13 | B34: 531758 | C34: GKCONS | D34: SHRI GANESH INVESTMENTS | E34: BUY | F34: 46,470 | G34: 13.65 | H34: BSE
A35: 2024-06-13 | B35: 501848 | C35: GLOBOFFS | D35: RAJESH H BUDHRANI | E35: SELL | F35: 246,977 | G35: 50 | H35: BSE
A36: 2024-06-13 | B36: 540134 | C36: IISL | D36: BAIJU RAJESHBHAI BUVARIYA HUF | E36: SELL | F36: 48,192 | G36: 7.32 | H36: BSE
A37: 2024-06-13 | B37: 531129 | C37: INANI | D37: MANGLA | E37: BUY | F37: 210,000 | G37: 31.75 | H37: BSE
A38: 2024-06-13 | B38: 544044 | C38: INDIASHLTR | D38: MADISON INDIA OPPORTUNITIES TRUST FUND | E38: SELL | F38: 1,135,000 | G38: 665.11 | H38: BSE
A39: 2024-06-13 | B39: 539175 | C39: INDRAIND | D39: SEIFER RICHARD MASCARENHAS | E39: BUY | F39: 82,652 | G39: 15.1 | H39: BSE
A40: 2024-06-13 | B40: 539175 | C40: INDRAIND | D40: OMPRAKASH PURANLAL TOMAR | E40: SELL | F40: 87,586 | G40: 15.05 | H40: BSE
A41: 2024-06-13 | B41: 539175 | C41: INDRAIND | D41: RDS CORPORATE SERVICES PRIVATE LIMITED | E41: BUY | F41: 108,000 | G41: 15.05 | H41: BSE
A42: 2024-06-13 | B42: 536709 | C42: INDRENEW | D42: ESAAR (INDIA) LIMITED | E42: SELL | F42: 165,139 | G42: 13.5 | H42: BSE
A43: 2024-06-13 | B43: 524614 | C43: INDXTRA | D43: SUNITA SINGH | E43: BUY | F43: 202,475 | G43: 6.66 | H43: BSE
A44: 2024-06-13 | B44: 524614 | C44: INDXTRA | D44: KALPANABEN CHAMPAKLAL SHAH | E44: SELL | F44: 280,000 | G44: 6.65 | H44: BSE
A45: 2024-06-13 | B45: 524614 | C45: INDXTRA | D45: RONIT CHAMPAKLAL SHAH | E45: SELL | F45: 450,881 | G45: 6.63 | H45: BSE
A46: 2024-06-13 | B46: 524614 | C46: INDXTRA | D46: MANALI KIRIT BHUVA | E46: BUY | F46: 300,000 | G46: 6.63 | H46: BSE
A47: 2024-06-13 | B47: 542924 | C47: JANUSCORP | D47: DEEPAK MAHAVEERCHAND JAIN (HUF) | E47: SELL | F47: 70,000 | G47: 6.85 | H47: BSE
A48: 2024-06-13 | B48: 542924 | C48: JANUSCORP | D48: TINA JAIN | E48: BUY | F48: 70,000 | G48: 6.85 | H48: BSE
A49: 2024-06-13 | B49: 533519 | C49: LTF | D49: MORGAN STANLEY ASIA SINGAPORE PTE | E49: BUY | F49: 31,329,540 | G49: 170.6 | H49: BSE
A50: 2024-06-13 | B50: 533519 | C50: LTF | D50: BC ASIA GROWTH INVESTMENTS | E50: SELL | F50: 20,026,502 | G50: 170.6 | H50: BSE
A51: 2024-06-13 | B51: 533519 | C51: LTF | D51: BNP PARIBAS FINANCIAL MARKETS | E51: SELL | F51: 57,869,992 | G51: 170.6 | H51: BSE
A52: 2024-06-13 | B52: 533519 | C52: LTF | D52: BNP PARIBAS FINANCIAL MARKETS | E52: BUY | F52: 8,324,050 | G52: 170.6 | H52: BSE
A53: 2024-06-13 | B53: 533519 | C53: LTF | D53: LARSEN & TOUBRO LIMITED | E53: BUY | F53: 12,500,000 | G53: 170.6 | H53: BSE
A54: 2024-06-13 | B54: 544188 | C54: MAGENTA | D54: GREEN PEAKS ENTERPRISES LLP | E54: BUY | F54: 40,000 | G54: 49.61 | H54: BSE
A55: 2024-06-13 | B55: 539045 | C55: MANAKALUCO | D55: SUNIL KUMAR AGRAWAL | E55: BUY | F55: 464,060 | G55: 30.7 | H55: BSE
A56: 2024-06-13 | B56: 539045 | C56: MANAKALUCO | D56: M P AGRAWAL AND SONS HUF | E56: SELL | F56: 464,060 | G56: 30.7 | H56: BSE
A57: 2024-06-13 | B57: 535910 | C57: MMLF | D57: NITISH PRAFULCHANDRA MEHTA | E57: BUY | F57: 80,000 | G57: 170 | H57: BSE
A58: 2024-06-13 | B58: 535910 | C58: MMLF | D58: SAHIL BIPIN MEHTA | E58: BUY | F58: 220,000 | G58: 168.45 | H58: BSE
A59: 2024-06-13 | B59: 535910 | C59: MMLF | D59: NITISH PRAFULCHANDRA MEHTA | E59: SELL | F59: 17,500 | G59: 174.31 | H59: BSE
A60: 2024-06-13 | B60: 535910 | C60: MMLF | D60: SAHIL BIPIN MEHTA | E60: SELL | F60: 206 | G60: 165.47 | H60: BSE
A61: 2024-06-13 | B61: 535910 | C61: MMLF | D61: PARTH NITINBHAI SINOJIA | E61: BUY | F61: 54,112 | G61: 170.98 | H61: BSE
A62: 2024-06-13 | B62: 535910 | C62: MMLF | D62: PARTH NITINBHAI SINOJIA | E62: SELL | F62: 23,576 | G62: 171.75 | H62: BSE
A63: 2024-06-13 | B63: 535910 | C63: MMLF | D63: SHREEM BRZEE INVESTMENT PRIVATE LIMITED | E63: SELL | F63: 80,006 | G63: 169.96 | H63: BSE
A64: 2024-06-13 | B64: 535910 | C64: MMLF | D64: KARUNA KISHOR KADAM | E64: SELL | F64: 218,650 | G64: 168.46 | H64: BSE
A65: 2024-06-13 | B65: 506122 | C65: PANKAJPIYUS | D65: NIRMAL AGGARWAL | E65: SELL | F65: 3,000 | G65: 150.3 | H65: BSE
A66: 2024-06-13 | B66: 505502 | C66: PSITINFRA | D66: SATABDI TRACOM PRIVATE LIMITED | E66: SELL | F66: 600,000 | G66: 16.4 | H66: BSE
A67: 2024-06-13 | B67: 539669 | C67: RGF | D67: GOURAVKUMAR | E67: SELL | F67: 979,022 | G67: 0.73 | H67: BSE
A68: 2024-06-13 | B68: 531893 | C68: SAWABUSI | D68: MULTIPLIER SHARE & STOCK ADVISORS PRIVATE LIMITED | E68: SELL | F68: 1,558,997 | G68: 1.11 | H68: BSE
A69: 2024-06-13 | B69: 531893 | C69: SAWABUSI | D69: MULTIPLIER SHARE & STOCK ADVISORS PRIVATE LIMITED | E69: BUY | F69: 3,500,000 | G69: 1.11 | H69: BSE
A70: 2024-06-13 | B70: 531893 | C70: SAWABUSI | D70: NIMIT JAYENDRA SHAH | E70: SELL | F70: 5,000,000 | G70: 1.11 | H70: BSE
A71: 2024-06-13 | B71: 531893 | C71: SAWABUSI | D71: NIKHIL RAJESH SINGH | E71: SELL | F71: 2,919,450 | G71: 1.12 | H71: BSE
A72: 2024-06-13 | B72: 531893 | C72: SAWABUSI | D72: NIKHIL RAJESH SINGH | E72: BUY | F72: 1,300,000 | G72: 1.11 | H72: BSE
A73: 2024-06-13 | B73: 543936 | C73: SENCO | D73: SAIF PARTNERS INDIA IV LIMITED | E73: SELL | F73: 4,507,487 | G73: 960.02 | H73: BSE
A74: 2024-06-13 | B74: 543936 | C74: SENCO | D74: INDIA ACORN ICAV | E74: BUY | F74: 633,000 | G74: 960 | H74: BSE
A75: 2024-06-13 | B75: 543936 | C75: SENCO | D75: MOTILAL OSWAL EQUITY OPPORTUNITIES FUND SERIES- II | E75: BUY | F75: 396,000 | G75: 960 | H75: BSE
A76: 2024-06-13 | B76: 543936 | C76: SENCO | D76: APAH CAPITAL MASTER FUND | E76: BUY | F76: 522,500 | G76: 960 | H76: BSE
A77: 2024-06-13 | B77: 512399 | C77: SERA | D77: MUNJAL MAHENDRABHAI PATEL | E77: SELL | F77: 3,712,525 | G77: 14.99 | H77: BSE
A78: 2024-06-13 | B78: 512399 | C78: SERA | D78: MAHENDRABHAI GULABDAS PATEL | E78: SELL | F78: 1,856,175 | G78: 14.99 | H78: BSE
A79: 2024-06-13 | B79: 512399 | C79: SERA | D79: ERISKA INVESTMENT FUND LTD | E79: BUY | F79: 5,500,000 | G79: 14.99 | H79: BSE
A80: 2024-06-13 | B80: 540259 | C80: SHANGAR | D80: SATYA PRAKASH MITTAL HUF | E80: BUY | F80: 207,943 | G80: 7.37 | H80: BSE
A81: 2024-06-13 | B81: 540259 | C81: SHANGAR | D81: SATYA PRAKASH MITTAL HUF | E81: SELL | F81: 1,332 | G81: 7.11 | H81: BSE
A82: 2024-06-13 | B82: 540259 | C82: SHANGAR | D82: SUNITA PYAGE | E82: SELL | F82: 70,000 | G82: 7.38 | H82: BSE
A83: 2024-06-13 | B83: 540259 | C83: SHANGAR | D83: RANJEETKUMARCHAURASIYA | E83: SELL | F83: 62,094 | G83: 7.38 | H83: BSE
A84: 2024-06-13 | B84: 527005 | C84: SHREEPAC | D84: ANANT JAIN | E84: SELL | F84: 21,505 | G84: 220.45 | H84: BSE
A85: 2024-06-13 | B85: 544171 | C85: STAL | D85: RITIK GOYAL | E85: SELL | F85: 67,200 | G85: 179.73 | H85: BSE
A86: 2024-06-13 | B86: 544171 | C86: STAL | D86: RITIK GOYAL | E86: BUY | F86: 67,200 | G86: 179.33 | H86: BSE
A87: 2024-06-13 | B87: 514197 | C87: STCORP | D87: AMRITA JAIN | E87: SELL | F87: 134,425 | G87: 32.82 | H87: BSE
A88: 2024-06-13 | B88: 514197 | C88: STCORP | D88: AMRITA JAIN | E88: BUY | F88: 163,793 | G88: 33.28 | H88: BSE
A89: 2024-06-13 | B89: 514197 | C89: STCORP | D89: AJAYKUMAR SURENDRA SAVAI | E89: SELL | F89: 357,448 | G89: 32.61 | H89: BSE
A90: 2024-06-13 | B90: 543745 | C90: SVS | D90: SUNILKUMAR KAILASHCHANDRA SHARMA | E90: SELL | F90: 348,000 | G90: 8.01 | H90: BSE
A91: 2024-06-13 | B91: 543745 | C91: SVS | D91: MULTIPLIER SHARE & STOCK ADVISORS PRIVATE LIMITED | E91: BUY | F91: 138,000 | G91: 8 | H91: BSE
A92: 2024-06-13 | B92: 543745 | C92: SVS | D92: MULTIPLIER SHARE & STOCK ADVISORS PRIVATE LIMITED | E92: SELL | F92: 120,000 | G92: 7.91 | H92: BSE
A93: 2024-06-13 | B93: 521005 | C93: TITANIN | D93: KOTVAK LOGISTICS LLP | E93: BUY | F93: 255 | G93: 53.56 | H93: BSE
A94: 2024-06-13 | B94: 521005 | C94: TITANIN | D94: KOTVAK LOGISTICS LLP | E94: SELL | F94: 84,461 | G94: 54.63 | H94: BSE
A95: 2024-06-13 | B95: 521005 | C95: TITANIN | D95: GRAI CONSTRUCTIONS LLP | E95: SELL | F95: 118,779 | G95: 54.31 | H95: BSE
A96: 2024-06-13 | B96: 539040 | C96: TTIL | D96: CHAUDHARY KANTILAL | E96: BUY | F96: 190,500 | G96: 22.57 | H96: BSE
A97: 2024-06-13 | B97: 539040 | C97: TTIL | D97: CHAUDHARY KANTILAL | E97: SELL | F97: 20,500 | G97: 23.01 | H97: BSE
A98: 2024-06-13 | B98: 539040 | C98: TTIL | D98: SETU SECURITIES PVT. LTD. | E98: BUY | F98: 335,000 | G98: 22.72 | H98: BSE
A99: 2024-06-13 | B99: 539040 | C99: TTIL | D99: NIKHILESH TRADERS LLP . | E99: SELL | F99: 636,456 | G99: 22.63 | H99: BSE
A100: 2024-06-13 | B100: 537582 | C100: UNISHIRE | D100: BUVANESWARI | E100: BUY | F100: 190,000 | G100: 2.79 | H100: BSE
A101: 2024-06-13 | B101: 537582 | C101: UNISHIRE | D101: PRATIK KIRTI MEHTA | E101: SELL | F101: 180,000 | G101: 2.8 | H101: BSE
A102: 2024-06-13 | B102: 532035 | C102: UNISTRMU | D102: POOJA VIJAY SHAH | E102: BUY | F102: 147,500 | G102: 4.97 | H102: BSE
A103: 2024-06-13 | B103: 532035 | C103: UNISTRMU | D103: RANDEEP SINGH | E103: SELL | F103: 147,913 | G103: 4.96 | H103: BSE
A104: 2024-06-13 | B104: 524661 | C104: WELCURE | D104: VINOD K S | E104: SELL | F104: 102,250 | G104: 6.01 | H104: BSE
A105: 2024-06-13 | B105: 524661 | C105: WELCURE | D105: AMIT MAMODIA | E105: BUY | F105: 100,000 | G105: 6.01 | H105: BSE
A106: 2024-06-13 | B106: 514378 | C106: YARNSYN | D106: DEVI SINGH | E106: BUY | F106: 21,575 | G106: 37.9 | H106: BSE
A107: 2024-06-13 | B107: AJOONI | C107: Ajooni Biotech Limited | D107: RAHUL YASHVANTRAY SHAH | E107: BUY | F107: 75,000 | G107: 5.7 | H107: NSE
A108: 2024-06-13 | B108: ANDHRSUGAR | C108: The Andhra Sugars Ltd | D108: HRTI PRIVATE LIMITED | E108: BUY | F108: 735,394 | G108: 122.85 | H108: NSE
A109: 2024-06-13 | B109: ANDHRSUGAR | C109: The Andhra Sugars Ltd | D109: GRAVITON RESEARCH CAPITAL LLP | E109: BUY | F109: 1,188,909 | G109: 123.43 | H109: NSE
A110: 2024-06-13 | B110: ANTGRAPHIC | C110: Antarctica Graphics Ltd | D110: AZH CONSULTANTS LLP | E110: BUY | F110: 6,550,000 | G110: 1.53 | H110: NSE
A111: 2024-06-13 | B111: ANTGRAPHIC | C111: Antarctica Graphics Ltd | D111: SHRISHTI AGRAWAL | E111: BUY | F111: 1,144,490 | G111: 1.53 | H111: NSE
A112: 2024-06-13 | B112: ASHOKAMET | C112: Ashoka Metcast Limited | D112: YMD FINANCIAL CONSULTANCY PRIVATE LIMITED | E112: BUY | F112: 313,859 | G112: 19.8 | H112: NSE
A113: 2024-06-13 | B113: ASIANTILES | C113: Asian Granito India Limit | D113: SG REALTOR PRIVATE LIMITED | E113: BUY | F113: 1,000,000 | G113: 74.71 | H113: NSE
A114: 2024-06-13 | B114: ASIANTILES | C114: Asian Granito India Limit | D114: GRAVITON RESEARCH CAPITAL LLP | E114: BUY | F114: 878,133 | G114: 73.28 | H114: NSE
A115: 2024-06-13 | B115: AVADHSUGAR | C115: Avadh Sug & Energy Ltd | D115: GRAVITON RESEARCH CAPITAL LLP | E115: BUY | F115: 128,286 | G115: 648.47 | H115: NSE
A116: 2024-06-13 | B116: BAJAJHIND | C116: Bajaj Hindustan Sugar Ltd | D116: GRAVITON RESEARCH CAPITAL LLP | E116: BUY | F116: 14,288,818 | G116: 39.34 | H116: NSE
A117: 2024-06-13 | B117: BAJAJHIND | C117: Bajaj Hindustan Sugar Ltd | D117: HRTI PRIVATE LIMITED | E117: BUY | F117: 25,828,392 | G117: 40.1 | H117: NSE
A118: 2024-06-13 | B118: BAJAJHIND | C118: Bajaj Hindustan Sugar Ltd | D118: QE SECURITIES LLP | E118: BUY | F118: 10,595,125 | G118: 40.06 | H118: NSE
A119: 2024-06-13 | B119: CMMIPL | C119: CMM Infraprojects Limited | D119: SAMTA MUNDRA | E119: BUY | F119: 3,000 | G119: 2 | H119: NSE
A120: 2024-06-13 | B120: DBL | C120: Dilip Buildcon Limited | D120: GRAVITON RESEARCH CAPITAL LLP | E120: BUY | F120: 975,803 | G120: 500.61 | H120: NSE
A121: 2024-06-13 | B121: DELTACORP | C121: Delta Corp Limited | D121: GRAVITON RESEARCH CAPITAL LLP | E121: BUY | F121: 1,731,049 | G121: 131.16 | H121: NSE
A122: 2024-06-13 | B122: DHAMPURSUG | C122: Dhampur Sugar Mills Ltd | D122: GRAVITON RESEARCH CAPITAL LLP | E122: BUY | F122: 420,211 | G122: 249.58 | H122: NSE
A123: 2024-06-13 | B123: DHTL | C123: Docmode Health Tech Ltd | D123: PHOENIX TRADERS | E123: BUY | F123: 23,200 | G123: 149.4 | H123: NSE
A124: 2024-06-13 | B124: DWARKESH | C124: Dwarikesh Sugar Industrie | D124: HRTI PRIVATE LIMITED | E124: BUY | F124: 1,755,580 | G124: 78.36 | H124: NSE
A125: 2024-06-13 | B125: DWARKESH | C125: Dwarikesh Sugar Industrie | D125: GRAVITON RESEARCH CAPITAL LLP | E125: BUY | F125: 1,914,642 | G125: 78.16 | H125: NSE
A126: 2024-06-13 | B126: DWARKESH | C126: Dwarikesh Sugar Industrie | D126: QE SECURITIES LLP | E126: BUY | F126: 979,776 | G126: 78.43 | H126: NSE
A127: 2024-06-13 | B127: GTLINFRA | C127: GTL Infrastructure Limite | D127: MULTIPLIER SHARE & STOCK ADVISORS PRIVATE LIMITED | E127: BUY | F127: 106,705,919 | G127: 2.04 | H127: NSE
A128: 2024-06-13 | B128: HCC | C128: Hindustan Construc Co. | D128: HRTI PRIVATE LIMITED | E128: BUY | F128: 8,234,261 | G128: 48.97 | H128: NSE
A129: 2024-06-13 | B129: HERITGFOOD | C129: Heritage Foods Ltd. | D129: SETU SECURITIES PVT LTD | E129: BUY | F129: 460,765 | G129: 599.38 | H129: NSE
A130: 2024-06-13 | B130: HILTON | C130: Hilton Metal Forging Limi | D130: RAJ RATAN COMMODITIES PRIVATE LIMITED | E130: BUY | F130: 308,454 | G130: 115.5 | H130: NSE
A131: 2024-06-13 | B131: ICEMAKE | C131: Ice Make Refrigerat Ltd | D131: GRAVITON RESEARCH CAPITAL LLP | E131: BUY | F131: 81,894 | G131: 890.77 | H131: NSE
A132: 2024-06-13 | B132: IEX | C132: Indian Energy Exc Ltd | D132: HRTI PRIVATE LIMITED | E132: BUY | F132: 5,975,692 | G132: 179.1 | H132: NSE
A133: 2024-06-13 | B133: IEX | C133: Indian Energy Exc Ltd | D133: GRAVITON RESEARCH CAPITAL LLP | E133: BUY | F133: 6,295,517 | G133: 179.01 | H133: NSE
A134: 2024-06-13 | B134: IRBIT | C134: IRB INFRASTRUCTURE TRUST | D134: CINTRA INVIT INVESTMENTS B.V. | E134: BUY | F134: 267,200,000 | G134: 220.22 | H134: NSE
A135: 2024-06-13 | B135: KAMOPAINTS | C135: Kamdhenu Ventures Limited | D135: HEMALI PATHIK THAKKAR | E135: BUY | F135: 469,569 | G135: 201.56 | H135: NSE
A136: 2024-06-13 | B136: KAMOPAINTS | C136: Kamdhenu Ventures Limited | D136: SKSE SECURITIES LTD | E136: BUY | F136: 322,245 | G136: 199.97 | H136: NSE
A137: 2024-06-13 | B137: KAMOPAINTS | C137: Kamdhenu Ventures Limited | D137: SW CAPITAL PRIVATE LIMITED | E137: BUY | F137: 385,350 | G137: 200.78 | H137: NSE
A138: 2024-06-13 | B138: KAMOPAINTS | C138: Kamdhenu Ventures Limited | D138: GRAVITON RESEARCH CAPITAL LLP | E138: BUY | F138: 437,664 | G138: 200.88 | H138: NSE
A139: 2024-06-13 | B139: KAMOPAINTS | C139: Kamdhenu Ventures Limited | D139: CITADEL SECURITIES INDIA MARKETS PRIVATE LIMITED | E139: BUY | F139: 472,614 | G139: 196.81 | H139: NSE
A140: 2024-06-13 | B140: KAMOPAINTS | C140: Kamdhenu Ventures Limited | D140: HJS SECURITIES PRIVATE LIMITED | E140: BUY | F140: 410,454 | G140: 205.24 | H140: NSE
A141: 2024-06-13 | B141: KAYA | C141: Kaya Limited | D141: INDRA KIRAN VENTURES | E141: BUY | F141: 73,593 | G141: 388.09 | H141: NSE
A142: 2024-06-13 | B142: KAYA | C142: Kaya Limited | D142: SETU SECURITIES PVT LTD | E142: BUY | F142: 155,839 | G142: 389.25 | H142: NSE
A143: 2024-06-13 | B143: KAYA | C143: Kaya Limited | D143: JAINAM BROKING LIMITED | E143: BUY | F143: 131,554 | G143: 385.38 | H143: NSE
A144: 2024-06-13 | B144: KAYA | C144: Kaya Limited | D144: GRAVITON RESEARCH CAPITAL LLP | E144: BUY | F144: 110,944 | G144: 358.63 | H144: NSE
A145: 2024-06-13 | B145: KAYA | C145: Kaya Limited | D145: STOCK VERTEX VENTURES | E145: BUY | F145: 213,824 | G145: 390.57 | H145: NSE
A146: 2024-06-13 | B146: KAYA | C146: Kaya Limited | D146: MANSI SHARE AND STOCK ADVISORS PVT LTD | E146: BUY | F146: 412,500 | G146: 388.1 | H146: NSE
A147: 2024-06-13 | B147: KAYA | C147: Kaya Limited | D147: ARHAM SHARE PRIVATE LIMITED | E147: BUY | F147: 96,490 | G147: 390.58 | H147: NSE
A148: 2024-06-13 | B148: KAYA | C148: Kaya Limited | D148: NK SECURITIES RESEARCH PRIVATE LIMITED | E148: BUY | F148: 96,845 | G148: 375.6 | H148: NSE
A149: 2024-06-13 | B149: KCPSUGIND | C149: KCP Sug & Ind Corp Ltd. | D149: HRTI PRIVATE LIMITED | E149: BUY | F149: 695,936 | G149: 44.64 | H149: NSE
A150: 2024-06-13 | B150: KCPSUGIND | C150: KCP Sug & Ind Corp Ltd. | D150: GRAVITON RESEARCH CAPITAL LLP | E150: BUY | F150: 799,271 | G150: 44.44 | H150: NSE
A151: 2024-06-13 | B151: KMSUGAR | C151: K.M.Sugar Mills Limited | D151: GRAVITON RESEARCH CAPITAL LLP | E151: BUY | F151: 765,732 | G151: 45.03 | H151: NSE
A152: 2024-06-13 | B152: KMSUGAR | C152: K.M.Sugar Mills Limited | D152: HRTI PRIVATE LIMITED | E152: BUY | F152: 903,141 | G152: 45.08 | H152: NSE
A153: 2024-06-13 | B153: KMSUGAR | C153: K.M.Sugar Mills Limited | D153: QE SECURITIES LLP | E153: BUY | F153: 529,829 | G153: 45.19 | H153: NSE
A154: 2024-06-13 | B154: KOPRAN | C154: Kopran Ltd. | D154: GRAVITON RESEARCH CAPITAL LLP | E154: BUY | F154: 273,221 | G154: 256.7 | H154: NSE
A155: 2024-06-13 | B155: KRITI | C155: Kriti Industries Ind Ltd | D155: MULTIPLIER SHARE & STOCK ADVISORS PRIVATE LIMITED | E155: BUY | F155: 300,000 | G155: 179.03 | H155: NSE
A156: 2024-06-13 | B156: KSHITIJPOL | C156: Kshitij Polyline Limited | D156: YMD FINANCIAL CONSULTANCY PRIVATE LIMITED | E156: BUY | F156: 646,205 | G156: 6.94 | H156: NSE
A157: 2024-06-13 | B157: MAHEPC | C157: Mahindra EPC Irrig Ltd | D157: GRAVITON RESEARCH CAPITAL LLP | E157: BUY | F157: 145,477 | G157: 172.08 | H157: NSE
A158: 2024-06-13 | B158: MAWANASUG | C158: Mawana Sugars Limited | D158: GRAVITON RESEARCH CAPITAL LLP | E158: BUY | F158: 267,015 | G158: 118.38 | H158: NSE
A159: 2024-06-13 | B159: NCLIND | C159: NCL Industries Limited | D159: GRAVITON RESEARCH CAPITAL LLP | E159: BUY | F159: 328,535 | G159: 250 | H159: NSE
A160: 2024-06-13 | B160: NDL | C160: Nandan Denim Limited | D160: KANTILAL CHHAGANLAL SECURITIES PVT. LTD. | E160: BUY | F160: 943,424 | G160: 44 | H160: NSE
A161: 2024-06-13 | B161: NDL | C161: Nandan Denim Limited | D161: SAROJ GUPTA | E161: BUY | F161: 50,000 | G161: 43.95 | H161: NSE
A162: 2024-06-13 | B162: OMINFRAL | C162: OM INFRA LIMITED | D162: VIDHUL GUPTA | E162: BUY | F162: 500,000 | G162: 171.14 | H162: NSE
A163: 2024-06-13 | B163: ORIENTPPR | C163: Orient Paper & Ind Ltd | D163: HRTI PRIVATE LIMITED | E163: BUY | F163: 1,409,943 | G163: 50.5 | H163: NSE
A164: 2024-06-13 | B164: ORIENTPPR | C164: Orient Paper & Ind Ltd | D164: GRAVITON RESEARCH CAPITAL LLP | E164: BUY | F164: 1,070,898 | G164: 50.63 | H164: NSE
A165: 2024-06-13 | B165: OSIAHYPER | C165: Osia Hyper Retail Ltd | D165: SAHASTRAA ADVISORS PRIVATE LIMITED | E165: BUY | F165: 1,902,000 | G165: 22.68 | H165: NSE
A166: 2024-06-13 | B166: OSIAHYPER | C166: Osia Hyper Retail Ltd | D166: TOPGAIN FINANCE PRIVATE LIMITED | E166: BUY | F166: 2,910,200 | G166: 22.55 | H166: NSE
A167: 2024-06-13 | B167: OSIAHYPER | C167: Osia Hyper Retail Ltd | D167: MULTIPLIER SHARE & STOCK ADVISORS PRIVATE LIMITED | E167: BUY | F167: 1,000,000 | G167: 21.41 | H167: NSE
A168: 2024-06-13 | B168: PARAS | C168: Paras Def and Spce Tech L | D168: ADROIT FINANCIAL SERVICES PVT LTD | E168: BUY | F168: 346,360 | G168: 948.43 | H168: NSE
A169: 2024-06-13 | B169: PARAS | C169: Paras Def and Spce Tech L | D169: PRRSAAR COMMODITIES PVT LTD | E169: BUY | F169: 605,817 | G169: 946.28 | H169: NSE
A170: 2024-06-13 | B170: PARAS | C170: Paras Def and Spce Tech L | D170: NK SECURITIES RESEARCH PRIVATE LIMITED | E170: BUY | F170: 199,411 | G170: 948.92 | H170: NSE
A171: 2024-06-13 | B171: PARAS | C171: Paras Def and Spce Tech L | D171: HRTI PRIVATE LIMITED | E171: BUY | F171: 228,835 | G171: 948.49 | H171: NSE
A172: 2024-06-13 | B172: PARAS | C172: Paras Def and Spce Tech L | D172: GRAVITON RESEARCH CAPITAL LLP | E172: BUY | F172: 344,385 | G172: 945.07 | H172: NSE
A173: 2024-06-13 | B173: PARAS | C173: Paras Def and Spce Tech L | D173: QE SECURITIES LLP | E173: BUY | F173: 490,450 | G173: 948.24 | H173: NSE
A174: 2024-06-13 | B174: PONNIERODE | C174: Ponni Sugars (Erode) Limi | D174: GRAVITON RESEARCH CAPITAL LLP | E174: BUY | F174: 51,342 | G174: 485.54 | H174: NSE
A175: 2024-06-13 | B175: RAJSREESUG | C175: Rajshree Sugars & Chem | D175: NK SECURITIES RESEARCH PRIVATE LIMITED | E175: BUY | F175: 184,027 | G175: 80.45 | H175: NSE
A176: 2024-06-13 | B176: RANASUG | C176: Rana Sugars Ltd | D176: HRTI PRIVATE LIMITED | E176: BUY | F176: 1,824,185 | G176: 25.95 | H176: NSE
A177: 2024-06-13 | B177: RANASUG | C177: Rana Sugars Ltd | D177: GRAVITON RESEARCH CAPITAL LLP | E177: BUY | F177: 1,070,682 | G177: 25.87 | H177: NSE
A178: 2024-06-13 | B178: REFRACTORY | C178: Refractory Shapes Limited | D178: VISHAL BIPINKUMAR DOSHI | E178: BUY | F178: 40,000 | G178: 210.45 | H178: NSE
A179: 2024-06-13 | B179: RENUKA | C179: Shree Renuka Sugars Limit | D179: QE SECURITIES LLP | E179: BUY | F179: 11,407,776 | G179: 48.21 | H179: NSE
A180: 2024-06-13 | B180: RENUKA | C180: Shree Renuka Sugars Limit | D180: HRTI PRIVATE LIMITED | E180: BUY | F180: 21,145,008 | G180: 48.3 | H180: NSE
A181: 2024-06-13 | B181: RENUKA | C181: Shree Renuka Sugars Limit | D181: GRAVITON RESEARCH CAPITAL LLP | E181: BUY | F181: 21,107,561 | G181: 48.08 | H181: NSE
A182: 2024-06-13 | B182: RIIL | C182: Reliance Indl Infra Ltd | D182: GRAVITON RESEARCH CAPITAL LLP | E182: BUY | F182: 97,973 | G182: 1359.98 | H182: NSE
A183: 2024-06-13 | B183: SAKHTISUG | C183: Sakthi Sugars Ltd. | D183: GRAVITON RESEARCH CAPITAL LLP | E183: BUY | F183: 743,401 | G183: 39.42 | H183: NSE
A184: 2024-06-13 | B184: SAKHTISUG | C184: Sakthi Sugars Ltd. | D184: HRTI PRIVATE LIMITED | E184: BUY | F184: 802,102 | G184: 39.33 | H184: NSE
A185: 2024-06-13 | B185: SAKSOFT | C185: Saksoft Limited | D185: GRAVITON RESEARCH CAPITAL LLP | E185: BUY | F185: 577,742 | G185: 294.6 | H185: NSE
A186: 2024-06-13 | B186: SAKUMA | C186: Sakuma Exports Limited | D186: SHUBHAM ASHOKBHAI PATEL | E186: BUY | F186: 1,786,488 | G186: 29.17 | H186: NSE
A187: 2024-06-13 | B187: SANGINITA | C187: Sanginita Chemicals Limit | D187: NK SECURITIES RESEARCH PRIVATE LIMITED | E187: BUY | F187: 229,695 | G187: 19.21 | H187: NSE
A188: 2024-06-13 | B188: SELAN | C188: Selan Exploration Technol | D188: ARHAM SHARE PRIVATE LIMITED | E188: BUY | F188: 107,513 | G188: 754.99 | H188: NSE
A189: 2024-06-13 | B189: SELAN | C189: Selan Exploration Technol | D189: SILVER LINE VENTURES PRIVATE LIMITED | E189: BUY | F189: 87,500 | G189: 751.46 | H189: NSE
A190: 2024-06-13 | B190: SELAN | C190: Selan Exploration Technol | D190: BOFA SECURITIES EUROPE SA | E190: BUY | F190: 98,327 | G190: 731.15 | H190: NSE
A191: 2024-06-13 | B191: SELAN | C191: Selan Exploration Technol | D191: STOCK VERTEX VENTURES | E191: BUY | F191: 97,151 | G191: 752.21 | H191: NSE
A192: 2024-06-13 | B192: SHUBHLAXMI | C192: Shubhlaxmi Jewel Art Ltd | D192: MANSI SHARE AND STOCK ADVISORS PVT LTD | E192: BUY | F192: 89,000 | G192: 33.1 | H192: NSE
A193: 2024-06-13 | B193: SHUBHLAXMI | C193: Shubhlaxmi Jewel Art Ltd | D193: F3 ADVISORS PRIVATE LIMITED | E193: BUY | F193: 90,000 | G193: 33.1 | H193: NSE
A194: 2024-06-13 | B194: SUULD | C194: Suumaya Industries Ltd | D194: VIKRAMKUMAR KARANRAJ SAKARIA HUF DAKSH CORPORATION | E194: BUY | F194: 301,827 | G194: 7 | H194: NSE
A195: 2024-06-13 | B195: TGBHOTELS | C195: Bhagwati Banquets And Hot | D195: AMRITA JAIN | E195: BUY | F195: 198,622 | G195: 16.75 | H195: NSE
A196: 2024-06-13 | B196: USK | C196: Udayshivakumar Infra Ltd | D196: GRAVITON RESEARCH CAPITAL LLP | E196: BUY | F196: 310,596 | G196: 71.25 | H196: NSE
A197: 2024-06-13 | B197: UTTAMSUGAR | C197: Uttam Sugar Mills Limited | D197: GRAVITON RESEARCH CAPITAL LLP | E197: BUY | F197: 200,884 | G197: 368.19 | H197: NSE
A198: 2024-06-13 | B198: VENUSREM | C198: Venus Remedies Limited | D198: GRAVITON RESEARCH CAPITAL LLP | E198: BUY | F198: 68,957 | G198: 376.56 | H198: NSE
A199: 2024-06-13 | B199: VISHWARAJ | C199: Vishwaraj Sugar Ind Ltd | D199: HRTI PRIVATE LIMITED | E199: BUY | F199: 884,345 | G199: 17.19 | H199: NSE
A200: 2024-06-13 | B200: WILLAMAGOR | C200: Williamson Magor & Co | D200: SILVER LINE VENTURES PRIVATE LIMITED | E200: BUY | F200: 75,000 | G200: 41.39 | H200: NSE
A201: 2024-06-13 | B201: AJOONI | C201: Ajooni Biotech Limited | D201: RAHUL YASHVANTRAY SHAH | E201: SELL | F201: 676,463 | G201: 5.53 | H201: NSE
A202: 2024-06-13 | B202: ANDHRSUGAR | C202: The Andhra Sugars Ltd | D202: GRAVITON RESEARCH CAPITAL LLP | E202: SELL | F202: 1,188,909 | G202: 123.52 | H202: NSE
A203: 2024-06-13 | B203: ANDHRSUGAR | C203: The Andhra Sugars Ltd | D203: HRTI PRIVATE LIMITED | E203: SELL | F203: 842,103 | G203: 122.74 | H203: NSE
A204: 2024-06-13 | B204: ANTGRAPHIC | C204: Antarctica Graphics Ltd | D204: JYOTI KUTHARI | E204: SELL | F204: 7,433,333 | G204: 1.53 | H204: NSE
A205: 2024-06-13 | B205: ANTGRAPHIC | C205: Antarctica Graphics Ltd | D205: SHRISHTI AGRAWAL | E205: SELL | F205: 217,412 | G205: 1.53 | H205: NSE
A206: 2024-06-13 | B206: ASHOKAMET | C206: Ashoka Metcast Limited | D206: YMD FINANCIAL CONSULTANCY PRIVATE LIMITED | E206: SELL | F206: 313,859 | G206: 19.18 | H206: NSE
... 95 more rows

Sheet Call Tracker (Equity & F&O)
M5: Back To Main Page
A6: Retail Research Technical Calls & Fundamental Performance Report for the month of June-2024
M7: =Main!B10 -> 2024-06-14
B8: Positional Call
A9: Sr.no | B9: Date | D9: Company | E9: Rec | F9: Rec Price | G9: Stop Loss*** | H9: Call Closed At | I9: Target | J9: Remark | K9: Profit / Loss per Share | L9: All charges | M9: Net Gain / Loss % | N9: Status | O9: Closed Date | P9: Market Closing Price | Q9: Second Buying Date
A10: 1 | B10: 2024-03-22 | D10: TCS | E10: Accu <> | F10: 3752-3852 | G10: 3612 | I10: 4072-4172 | J10: Open | P10: =VLOOKUP(D10,'MidCap Intra'!$B$11:$C$571,2,0) -> 3878.15 | R10: H
A11: 2 | B11: 2024-05-02 | D11: HCLTECH | E11: Accu <> | F11: 1317 | G11: 1267 | H11: 1393 | I11: 1417-1492 | J11: Profit of Rs.76/- | K11: =H11-F11 -> 76 | L11: =(F11*-0.3)/100 -> -3.95 | M11: =(K11+L11)/F11 -> 5.47% | N11: Successful | O11: 2024-06-06 | R11: H
A12: 3 | B12: 2024-05-07 | D12: ITC | E12: Accu | F12: 424.5-434.5 | G12: 408.5 | I12: 468-495 | J12: Open | P12: =VLOOKUP(D12,'MidCap Intra'!$B$11:$C$571,2,0) -> 430.30 | R12: H
A13: 4 | B13: 2024-05-16 | D13: HINDUNILVR | E13: Accu | F13: 2307.5 | G13: 2185 | H13: 2425 | I13: 2500-2600 | J13: Profit of Rs.117.5/- | K13: =H13-F13 -> 117.5 | L13: =(F13*-0.3)/100 -> -6.92 | M13: =(K13+L13)/F13 -> 4.79% | N13: Successful | O13: 2024-06-04 | R13: H
A14: 5 | B14: 2024-05-22 | D14: BPCL | E14: Accu | F14: 628 | G14: 588 | H14: 662.5 | I14: 680-720 | J14: Profit of Rs.34.5/- | K14: =H14-F14 -> 34.5 | L14: =(F14*-0.3)/100 -> -1.88 | M14: =(K14+L14)/F14 -> 5.19% | N14: Successful | O14: 2024-06-03 | R14: H
A15: 6 | B15: 2024-05-24 | D15: ACC | E15: Accu | F15: 2570 | G15: 2460 | H15: 2370 | I15: 2750-2850 | J15: Loss of Rs.200/- | K15: -200 | L15: -7.71 | M15: -8.08% | N15: Unsuccessful | O15: 2024-06-04 | R15: H
A16: 7 | B16: 2024-05-30 | D16: ZYDUSLIFE | E16: Accu | F16: 1022.5 | G16: 965 | H16: 1065 | I16: 1115-1200 | J16: Profit of Rs.42.5/- | K16: 42.5 | L16: =(F16*-0.3)/100 -> -3.07 | M16: 3.86% | N16: Successful | O16: 2024-06-10 | R16: H
A17: 8 | B17: 2024-05-30 | D17: RELIANCE | E17: Accu | F17: 2860 | G17: 2720 | H17: 2955 | I17: 3000-3150 | J17: Profit of Rs.95/- | K17: =H17-F17 -> 95 | L17: =(F17*-0.3)/100 -> -8.58 | M17: =(K17+L17)/F17 -> 3.02% | N17: Successful | O17: 2024-06-03 | R17: H
A18: 9 | B18: 2024-05-30 | D18: GAIL | E18: Accu | F18: 199 | G18: 185 | H18: 216.5 | I18: 215-230 | J18: Profit of Rs.17.5/- | K18: =H18-F18 -> 17.5 | L18: =(F18*-0.3)/100 -> -0.60 | M18: =(K18+L18)/F18 -> 8.49% | N18: Successful | O18: 2024-06-03 | R18: K
A19: 10 | B19: 2024-06-03 | D19: GUJGASLTD | E19: Accu | F19: 561 | G19: 534 | H19: 530 | I19: 615-645 | J19: Loss of Rs.31/- | K19: -31 | L19: -1.68 | M19: -5.83% | N19: Unsuccessful | O19: 2024-06-04 | R19: H
A20: 11 | B20: 2024-06-04 | D20: RELIANCE | E20: Accu | F20: 2815-2915 | G20: 2740 | I20: 3100-3200 | J20: Open | P20: =VLOOKUP(D20,'MidCap Intra'!$B$11:$C$571,2,0) -> 2930.50 | R20: H
A21: 12 | B21: 2024-06-04 | D21: HDFCBANK | E21: Accu | F21: 1520 | G21: 1360 | H21: 1585 | I21: 1680-1800 | J21: Profit of Rs.65/- | K21: =H21-F21 -> 65 | L21: =(F21*-0.3)/100 -> -4.56 | M21: =(K21+L21)/F21 -> 3.98% | N21: Successful | O21: 2024-06-13 | R21: H
A22: 13 | B22: 2024-06-04 | D22: COALINDIA | E22: Accu | F22: 467.5 | G22: 445 | H22: 440 | I22: 510-540 | J22: Loss of Rs.27.5/- | K22: =H22-F22 -> -27.5 | L22: =(F22*-0.3)/100 -> -1.40 | M22: =(K22+L22)/F22 -> -6.18% | N22: Unsuccessful | O22: 2024-06-04 | R22: H
A23: 14 | B23: 2024-06-04 | D23: IOC | E23: Accu | F23: 158.25 | G23: 150 | H23: 164.5 | I23: 180-190 | J23: Profit of Rs.6.25/- | K23: 6.25 | L23: =(F23*-0.3)/100 -> -0.47 | M23: 3.65% | N23: Successful | O23: 2024-06-10 | R23: H
A24: 15 | B24: 2024-06-05 | D24: BEL | E24: Accu | F24: 239.5 | G24: 219 | H24: 258.5 | I24: 265-290 | J24: Profit of Rs.19/- | K24: =H24-F24 -> 19 | L24: =(F24*-0.03)/100 -> -0.07 | M24: =(K24+L24)/F24 -> 7.90% | N24: Successful | O24: 2024-06-05 | R24: H
A25: 16 | B25: 2024-06-05 | D25: VBL | E25: Accu | F25: 1425 | G25: 1320 | H25: 1502.5 | I25: 1530-1630 | J25: Profit of Rs.77.5/- | K25: =H25-F25 -> 77.5 | L25: =(F25*-0.03)/100 -> -0.43 | M25: =(K25+L25)/F25 -> 5.41% | N25: Successful | O25: 2024-06-05 | R25: H
A26: 17 | B26: 2024-06-05 | D26: DATAPATTNS | E26: Accu | F26: 2490 | G26: 2290 | H26: 2635 | I26: 2700-2900 | J26: Profit of Rs.145/- | K26: =H26-F26 -> 145 | L26: =(F26*-0.3)/100 -> -7.47 | M26: =(K26+L26)/F26 -> 5.52% | N26: Successful | O26: 2024-06-07 | R26: H
A27: 18 | B27: 2024-06-05 | D27: RKFORGE | E27: Accu | F27: 649 | G27: 595 | H27: 692 | I27: 720-780 | J27: Profit of Rs.43/- | K27: =H27-F27 -> 43 | L27: =(F27*-0.3)/100 -> -1.95 | M27: =(K27+L27)/F27 -> 6.33% | N27: Successful | O27: 2024-06-07 | R27: H
A28: 19 | B28: 2024-06-06 | D28: BEL | E28: Accu | F28: 268 | G28: 248 | H28: 282 | I28: 290-310 | J28: Profit of Rs.14/- | K28: =H28-F28 -> 14 | L28: =(F28*-0.3)/100 -> -0.80 | M28: =(K28+L28)/F28 -> 4.92% | N28: Successful | O28: 2024-06-07 | R28: H
A29: 20 | B29: 2024-06-06 | D29: TATACONSUM | E29: Accu | F29: 1080-1120 | G29: 1045 | I29: 1220-1280 | J29: Open | P29: =VLOOKUP(D29,'MidCap Intra'!$B$11:$C$571,2,0) -> 1114.60 | R29: H
A30: 21 | B30: 2024-06-06 | D30: KPITTECH | E30: Accu | F30: 1390-1470 | G30: 1340 | I30: 1600-1750 | J30: Open | P30: =VLOOKUP(D30,'MidCap Intra'!$B$11:$C$571,2,0) -> 1487.40 | R30: H
A31: 22 | B31: 2024-06-07 | D31: SRF | E31: Accu | F31: 2295 | G31: 2090 | H31: 2397.5 | I31: 2500-2700 | J31: Profit of Rs.102.5/- | K31: =H31-F31 -> 102.5 | L31: =(F31*-0.3)/100 -> -6.89 | M31: =(K31+L31)/F31 -> 4.17% | N31: Successful | O31: 2024-06-13 | R31: N
A32: 23 | B32: 2024-06-07 | D32: TATAMOTORS | E32: Accu | F32: 915-955 | G32: 890 | I32: 1020-1100 | J32: Open | P32: =VLOOKUP(D32,'MidCap Intra'!$B$11:$C$571,2,0) -> 985.85 | R32: K
A33: 24 | B33: 2024-06-11 | D33: AARTIIND | E33: Accu | F33: 640-660 | G33: 615 | I33: 705-750 | J33: Open | P33: =VLOOKUP(D33,'MidCap Intra'!$B$11:$C$571,2,0) -> 675.25 | R33: H
A34: 25 | B34: 2024-06-11 | D34: CASTROLIND | E34: Accu | F34: 196-201 | G34: 189 | I34: 214-230 | J34: Open | P34: =VLOOKUP(D34,'MidCap Intra'!$B$11:$C$571,2,0) -> 202.50 | R34: H
A35: 26 | B35: 2024-06-13 | D35: CAPLIPOINT | E35: Accu | F35: 1355-1395 | G35: 1290 | I35: 1530-1630 | J35: Open | P35: =VLOOKUP(D35,'MidCap Intra'!$B$11:$C$571,2,0) -> 1398.10
A40: CLBS = Closing Basis ***
A41: Dividend adjusted <> | F41: Reinitiated $
A42: Part book {} | D42: s | F42: Revised stoploss #
A46: Master Trade High Risk
A47: Sr.no | B47: Date | D47: Company | E47: Rec | F47: Rec Price | G47: Stop Loss | H47: Call Closed At | I47: Target | J47: Remark | K47: Profit / Loss per share | L47: All charges | M47: Gain / Loss per Lot | N47: Lot | O47: Status | P47: Closed Date
A48: 1 | B48: 2024-06-03 | D48: MARUTI JUNE FUT | E48: Buy | F48: 12550 | G48: 12300 | H48: 12300 | I48: 12800-13000 | J48: Loss of Rs.250/- | K48: =H48-F48 -> -250 | L48: =(H48*N48)*0.03% -> 184.50 | M48: =(K48*N48)-L48 -> -12684.5 | N48: 50 | O48: Unsuccessful | P48: 2024-06-04 | R48: K
A49: 2 | B49: 2024-06-03 | D49: GRASIM JUNE FUT | E49: Buy | F49: 2381.5 | G49: 2355 | H49: 2355 | I49: 2410-2435 | J49: Loss of Rs.26.5/- | K49: -26.5 | L49: =(H49*N49)*0.03% -> 337.00 | M49: =(K49*N49)-L49 -> -12977.5 | N49: 477 | O49: Unsuccessful | P49: 2024-06-04 | R49: N
A50: 3 | B50: 2024-06-03 | D50: LT JUNE FUT | E50: Buy | F50: 3879.5 | G50: 3810 | H50: 3755 | I50: 3950-4020 | J50: Loss of Rs.124.5/- | K50: -124.5 | L50: =(H50*N50)*0.03% -> 168.98 | M50: =(K50*N50)-L50 -> -18844.0 | N50: 150 | O50: Unsuccessful | P50: 2024-06-04 | R50: H
A51: 4 | B51: 2024-06-05 | D51: TITAN JUNE FUT | E51: Buy | F51: 3260 | G51: 3195 | H51: 3322.5 | I51: 3330-3390 | J51: Profit of Rs.62.5/- | K51: 62.5 | L51: =(H51*N51)*0.03% -> 174.43 | M51: =(K51*N51)-L51 -> 10763.1 | N51: 175 | O51: Successful | P51: 2024-06-05 | R51: N
A52: 5 | B52: 2024-06-05 | D52: DRREDDY JUNE FUT | E52: Buy | F52: 5835 | G52: 5740 | H52: 5915 | I52: 5934-6018 | J52: Profit of Rs.80/- | K52: 80 | L52: =(H52*N52)*0.03% -> 221.81 | M52: =(K52*N52)-L52 -> 9778.2 | N52: 125 | O52: Successful | P52: 2024-06-06 | R52: N
A53: 6 | B53: 2024-06-05 | D53: ASTRAL JUNE FUT | E53: Buy | F53: 2067.5 | G53: 2035 | H53: 2093 | I53: 2100-2130 | J53: Profit of Rs.25.5/- | K53: 25.5 | L53: =(H53*N53)*0.03% -> 230.44 | M53: =(K53*N53)-L53 -> 9128.1 | N53: 367 | O53: Successful | P53: 2024-06-05 | R53: N
A54: 7 | B54: 2024-06-05 | D54: HAVELLS JUNE FUT | E54: Buy | F54: 1787.5 | G54: 1762 | H54: 1809.5 | I54: 1814-1835 | J54: Profit of Rs.22/- | K54: 22 | L54: =(H54*N54)*0.03% -> 271.43 | M54: =(K54*N54)-L54 -> 10728.6 | N54: 500 | O54: Successful | P54: 2024-06-05 | R54: N
A55: 8 | B55: 2024-06-05 | D55: TCS JUNE FUT | E55: Buy | F55: 3755 | G55: 3690 | H55: 3802.5 | I55: 3825-3885 | J55: Profit of Rs.47.5/- | K55: 47.5 | L55: =(H55*N55)*0.03% -> 199.63 | M55: =(K55*N55)-L55 -> 8112.9 | N55: 175 | O55: Successful | P55: 2024-06-06 | R55: N
A56: 9 | B56: 2024-06-05 | D56: BRITANNIA JUNE FUT | E56: Buy | F56: 5500 | G56: 5440 | H56: 5440 | I56: 5563-5615 | J56: Loss of Rs.60/- | K56: -60 | L56: =(H56*N56)*0.03% -> 326.40 | M56: =(K56*N56)-L56 -> -12326.4 | N56: 200 | O56: Unsuccessful | P56: 2024-06-06 | R56: N
A57: 10 | B57: 2024-06-06 | D57: ABBOTINDIA JUNE FUT | E57: Buy | F57: 27200 | G57: 26700 | H57: 27590 | I57: 27725-28250 | J57: Profit of Rs.390/- | K57: =H57-F57 -> 390 | L57: 165.54 | M57: 7634.5 | N57: 20 | O57: Successful | P57: 2024-06-07 | R57: K
A58: 11 | B58: 2024-06-06 | D58: TORNTPHARM JUNE FUT | E58: Buy | F58: 2795 | G58: 2748 | H58: 2830 | I58: 2844-2885 | J58: Profit of Rs.35/- | K58: =H58-F58 -> 35 | L58: =(H58*N58)*0.03% -> 212.25 | M58: =(K58*N58)-L58 -> 8537.8 | N58: 250 | O58: Successful | P58: 2024-06-07 | R58: N
A59: 12 | B59: 2024-06-06 | D59: LTTS JUNE FUT | E59: Buy | F59: 4665 | G59: 4550 | H59: 4752.5 | I59: 4785-4890 | J59: Profit of Rs.87.5/- | K59: =H59-F59 -> 87.5 | L59: =(H59*N59)*0.03% -> 142.58 | M59: =(K59*N59)-L59 -> 8607.4 | N59: 100 | O59: Successful | P59: 2024-06-07 | R59: N
A60: 13 | B60: 2024-06-07 | D60: METROPOLIS JUNE FUT | E60: Sell | F60: 2034 | G60: 2060 | H60: 2014 | I60: 2008-1982 | J60: Profit of Rs.20/- | K60: =F60-H60 -> 20 | L60: =(H60*N60)*0.03% -> 241.68 | M60: =(K60*N60)-L60 -> 7758.3 | N60: 400 | O60: Successful | P60: 2024-06-07 | R60: K
A61: 14 | B61: 2024-06-07 | D61: ASTRAL JUNE FUT | E61: Buy | F61: 2165 | G61: 2135 | H61: 2175 | I61: 2195-2225 | J61: Profit of Rs.10/- | K61: =H61-F61 -> 10 | L61: 239.47 | M61: 3430.5 | N61: 367 | O61: Successful | P61: 2024-06-10 | R61: N
A62: 15 | B62: 2024-06-07 | D62: MPHASIS JUNE FUT | E62: Buy | F62: 2470 | G62: 2430 | H62: 2450 | I62: 2512-2550 | J62: Loss of Rs.20/- | K62: -20 | L62: 202.13 | M62: -5702.1 | N62: 275 | O62: Unsuccessful | P62: 2024-06-10 | R62: N
A63: 16 | B63: 2024-06-07 | D63: WIPRO JUNE FUT | E63: Buy | F63: 484 | G63: 477 | H63: 477.5 | I63: 492-500 | J63: Loss of Rs.6.5/- | K63: =H63-F63 -> -6.5 | L63: =(H63*N63)*0.03% -> 214.88 | M63: =(K63*N63)-L63 -> -9964.9 | N63: 1500 | O63: Unsuccessful | P63: 2024-06-10 | R63: H
A64: 17 | B64: 2024-06-10 | D64: PIIND JUNE FUT | E64: Buy | F64: 3627.5 | G64: 3580 | H64: 3662.5 | I64: 3680-3730 | J64: Profit of Rs.35/- | K64: 35 | L64: 274.69 | M64: 8475.3 | N64: 250 | O64: Successful | P64: 2024-06-11 | R64: N
A65: 18 | B65: 2024-06-11 | D65: PIIND JUNE FUT | E65: Buy | F65: 3615.5 | G65: 3568 | H65: 3652.5 | I65: 3670-3720 | J65: Profit of Rs.37/- | K65: 37 | L65: 273.94 | M65: 8976.1 | N65: 250 | O65: Successful | P65: 2024-06-11 | R65: N
A66: 19 | B66: 2024-06-11 | D66: PIDILITIND JUNE FUT | E66: Buy | F66: 3182.5 | G66: 3135 | H66: 3135 | I66: 3235-3275 | J66: Loss of Rs.47.5/- | K66: =H66-F66 -> -47.5 | L66: =(H66*N66)*0.03% -> 235.13 | M66: =(K66*N66)-L66 -> -12110.1 | N66: 250 | O66: Unsuccessful | P66: 2024-06-12 | R66: N
A67: 20 | B67: 2024-06-11 | D67: COLPAL JUNE FUT | E67: Buy | F67: 2957.5 | G67: 2925 | H67: 2925 | I67: 2983-3025 | J67: Loss of Rs.32.5/- | K67: =H67-F67 -> -32.5 | L67: =(H67*N67)*0.03% -> 307.13 | M67: =(K67*N67)-L67 -> -11682.1 | N67: 350 | O67: Unsuccessful | P67: 2024-06-13 | R67: N
A73: Master Trade Medium Risk
A74: Sr.no | B74: Date | D74: Company | E74: Rec | F74: Rec Price | G74: Stop Loss | H74: Call Closed At | I74: Target | J74: Remark | K74: Profit/ Loss per lot | L74: All charges | M74: Gain / Loss per Lot | N74: Lot | O74: Status | P74: Closed Date
A75: 1 | B75: 2024-05-31 | D75: NIFTY 22500 PE 06 JUNE | E75: Buy | F75: 335 | H75: 535 | J75: Profit of Rs.65/- | K75: =H75-F75 -> 200 | L75: 50.00 | M75: =(65*25)-100 -> 1525.0 | N75: 25 | O75: Successful | P75: 2024-06-04 | R75: H
D76: NIFTY 22000 PE 06 JUNE | E76: Sell | F76: 180 | H76: 315 | K76: =F76-H76 -> -135 | L76: 50.00
A77: 2 | B77: 2024-05-31 | D77: FINNIFTY 21600 PE 04 JUNE | E77: Sell | F77: 325 | H77: 205 | J77: Loss of Rs.7.5/- | K77: =F77-H77 -> 120 | L77: 50.00 | M77: -500.0 | N77: 40 | O77: Unsuccessful | P77: 2024-06-04 | R77: N
D78: FINNIFTY 21600 CE 04 JUNE | E78: Sell | F78: 360 | H78: 500 | K78: =F78-H78 -> -140 | L78: 50.00
D79: FINNIFTY 21300 PE 04 JUNE | E79: Buy | F79: 202.5 | H79: 125 | K79: =H79-F79 -> -77.5 | L79: 50.00
D80: FINNIFTY 21900 CE 04 JUNE | E80: Buy | F80: 232.5 | H80: 322.5 | K80: =H80-F80 -> 90 | L80: 50.00
A81: 3 | B81: 2024-05-31 | D81: TATACONSUM 1080 CE JUNE | E81: Buy | F81: 29.5 | H81: 31.5 | J81: Profit of Rs.2.25/- | K81: =H81-F81 -> 2 | L81: 50.00 | M81: =(2.25*450)-100 -> 912.5 | N81: 450 | O81: Successful | P81: 2024-06-04 | R81: H
D82: TATACONSUM 1120 CE JUNE | E82: Sell | F82: 15.25 | H82: 15 | K82: =F82-H82 -> 0.25 | L82: 50.00
A83: 4 | B83: 2024-05-31 | D83: MIDCPNIFTY 11300 PE 03 JUNE | E83: Buy | F83: 147.5 | H83: 0 | J83: Loss of Rs.45/- | K83: =H83-F83 -> -147.5 | L83: 50.00 | M83: =-(45*75)-100 -> -3475.0 | N83: 75 | O83: Unsuccessful | P83: 2024-06-03 | R83: N
D84: MIDCPNIFTY 11150 PE 03 JUNE | E84: Sell | F84: 102.5 | H84: 0 | K84: =F84-H84 -> 102.5 | L84: 50.00
A85: 5 | B85: 2024-06-03 | D85: RELIANCE 3020 CE JUNE | E85: Buy | F85: 96 | H85: 21 | J85: Loss of Rs.30/- | K85: =H85-F85 -> -75 | L85: 50.00 | M85: -7600.0 | N85: 250 | O85: Unsuccessful | P85: 2024-06-07 | R85: H
D86: RELIANCE 3100 CE JUNE | E86: Sell | F86: 64 | H86: 19 | K86: =F86-H86 -> 45 | L86: 50.00 | N86: 250
A87: 6 | B87: 2024-06-03 | D87: NIFTY 24200 CE 27 JUNE | E87: Sell | F87: 165 | G87: 265 | H87: 55 | I87: 40-1 | J87: Profit of Rs.110/- | K87: =F87-H87 -> 110 | L87: 50.00 | M87: =(K87*N87)-L87 -> 2700.0 | N87: 25 | O87: Successful | P87: 2024-06-04 | R87: H
A88: 7 | B88: 2024-06-04 | D88: FINNIFTY 22000 CE 04 JUNE | E88: Buy | F88: 285 | H88: 0 | J88: Loss of Rs.157.5/- | K88: -285 | L88: 25.00 | M88: -6375.0 | N88: 40 | O88: Unsuccessful | P88: 2024-06-04 | R88: N
D89: FINNIFTY 22500 CE 04 JUNE | E89: Sell | F89: 140 | H89: 12.5 | K89: =F89-H89 -> 127.5 | L89: 50.00 | N89: 40
A90: 8 | B90: 2024-05-05 | D90: MARUTI 12600 CE JUNE | E90: Buy | F90: 270 | H90: 332.5 | J90: Profit of Rs.52.5/- | K90: =H90-F90 -> 62.5 | L90: 50.00 | M90: 2525.0 | N90: 50 | O90: Successful | P90: 2024-06-07 | R90: H
D91: MARUTI 13000 CE JUNE | E91: Sell | F91: 130 | H91: 140 | K91: =F91-H91 -> -10 | L91: 50.00 | N91: 50
A92: 9 | B92: 2024-06-06 | D92: NIFTY 22800 CE 13-JUNE | E92: Buy | F92: 255 | H92: 262.5 | J92: Profit of Rs.47.4/- | K92: =H92-F92 -> 7.5 | L92: 50.00 | M92: 1085.0 | N92: 25 | O92: Successful | P92: 2024-06-06 | R92: H
D93: NIFTY 22850 CE 6-JUNE | E93: Sell | F93: 40 | H93: 0.1 | K93: =F93-H93 -> 39.9 | L93: 50.00 | N93: 25
A94: 10 | B94: 2024-06-06 | D94: NIFTY 22700 CE 6-JUNE | E94: Buy | F94: 47.5 | G94: 0 | H94: 82.5 | I94: 100-140 | J94: Profit of Rs.35/- | K94: =H94-F94 -> 35 | L94: 50.00 | M94: =(K94*N94)-L94 -> 825.0 | N94: 25 | O94: Successful | P94: 2024-06-06 | R94: N
A95: 11 | B95: 2024-06-06 | D95: NIFTY 22700 CE 6-JUNE | E95: Buy | F95: 32 | G95: 0 | H95: 56 | I95: 60-90 | J95: Profit of Rs.24/- | K95: =H95-F95 -> 24 | L95: 50.00 | M95: =(K95*N95)-L95 -> 550.0 | N95: 25 | O95: Successful | P95: 2024-06-06 | R95: N
A96: 12 | B96: 2024-06-07 | D96: NIFTY 23000 PE 27-JUNE | E96: Buy | F96: 332.5 | J96: Open | R96: H
D97: NIFTY 22500 PE 27-JUNE | E97: Sell | F97: 170
A98: 13 | B98: 2024-06-07 | D98: NIFTY 23200 PE 13-JUNE | E98: Buy | F98: 222.5 | G98: 120 | H98: 172.5 | I98: 330-420 | J98: Loss of Rs.50/- | K98: =H98-F98 -> -50 | L98: 50.00 | M98: =(K98*N98)-L98 -> -1300.0 | N98: 25 | O98: Unsuccessful | P98: 2024-06-07 | R98: N
A99: 14 | B99: 2024-06-10 | D99: BANKNIFTY 49000 PE 26-JUNE | E99: Buy | F99: 440 | H99: 495 | J99: Profit of Rs.80/- | K99: =H99-F99 -> 55 | L99: 50.00 | M99: =(80*15)-100 -> 1100.0 | N99: 15 | O99: Successful | P99: 2024-06-10 | R99: H
D100: BANKNIFTY 48500 PE 12-JUNE | E100: Sell | F100: 80 | H100: 55 | K100: =F100-H100 -> 25 | L100: 50.00 | N100: 15
A101: 15 | B101: 2024-06-13 | D101: NIFTY 23400 PE 13-JUNE | E101: Buy | F101: 50 | G101: 0 | H101: 72.5 | I101: 100-140 | J101: Profit of Rs.22.5/- | K101: =H101-F101 -> 22.5 | L101: 50.00 | M101: =(K101*N101)-L101 -> 512.5 | N101: 25 | O101: Successful | P101: 2024-06-13
A102: 16 | B102: 2024-06-13 | D102: BANKNIFTY 49000 PE 26-JUNE | E102: Buy | F102: 200 | G102: 80 | H102: 237.5 | I102: 350-450 | J102: Profit of Rs.37.5/- | K102: =H102-F102 -> 37.5 | L102: 50.00 | M102: =(K102*N102)-L102 -> 512.5 | N102: 15 | O102: Successful | P102: 2024-06-13
A103: 17 | B103: 2024-06-13 | D103: NIFTY 23400 PE 13-JUNE | E103: Buy | F103: 28 | G103: 0 | H103: 10 | I103: 60-90 | J103: Loss of Rs.18/- | K103: =H103-F103 -> -18 | L103: 50.00 | M103: =(K103*N103)-L103 -> -500.0 | N103: 25 | O103: Unsuccessful | P103: 2024-06-13
A105: Techno -Funda (positional)
A106: Sr.no | B106: Date | D106: Company | E106: Rec | F106: Rec Price | G106: Stop Loss*** | H106: Call Closed At | I106: Target | J106: Remark | K106: Profit / Loss per Share/Lot | L106: All charges | M106: Net Gain / Loss % | N106: Status | O106: Closed Date | P106: Market Closing Price | Q106: Second Buying Date
A107: 1 | B107: 2024-03-05 | D107: TRIDENT | E107: Accu <> | F107: 38.94 | G107: 34.64 | I107: 47.64-51.64 | J107: Open | P107: =VLOOKUP(D107,'MidCap Intra'!$B$11:$C$571,2,0) -> 40.03 | R107: H
A108: 2 | B108: 2024-04-08 | D108: NILKAMAL | E108: Accu | F108: 1880 | G108: 1770 | H108: 1770 | I108: 2150-2350 | J108: Loss of Rs.110/- | K108: =H108-F108 -> -110 | L108: =(F108*-0.3)/100 -> -5.64 | M108: =(K108+L108)/F108 -> -6.15% | N108: Unsuccessful | O108: 2024-06-05 | R108: H
A109: 3 | B109: 2024-05-24 | D109: INDUSTOWER | E109: Accu | F109: 312.5-352 | G109: 290 | I109: 450-500 | J109: Open | P109: =VLOOKUP(D109,'MidCap Intra'!$B$11:$C$571,2,0) -> 339.50 | R109: H
A112: CLBS = Closing Basis *** | F112: Reinitiated $
A113: Dividend adjusted <> | F113: Revised stoploss # | H113: .................
B122: Investment Idea
A123: Sr.no | B123: Date | D123: Company | E123: Rec | F123: Rec Price | G123: Point of Review | H123: Close Rate | I123: Target | J123: Remark | K123: Profit / Loss per Share | L123: Gain / Loss % | M123: Status | N123: Closed Date
A124: 1 | B124: 2013-11-01 | D124: L&T Finance Holding | E124: Accu | F124: 82.00 | G124: - | H124: 100 | I124: 100.00 | J124: Target Achieved | K124: =H124-F124 -> 18.00 | L124: =K124/F124 -> 21.95% | M124: Successful | N124: 2016-10-14
A125: 2 | B125: 2014-06-04 | D125: Finolex Inds | E125: Buy | F125: 257.00 | G125: - | H125: 300 | I125: 300.00 | J125: Target Achieved | K125: 43.00 | L125: 16.73% | M125: Successful | N125: 2014-07-02
A126: 3 | B126: 2014-07-08 | D126: JK Cement | E126: Buy | F126: 393.00 | G126: - | H126: 468 | I126: 468.00 | J126: Target Achieved | K126: 75.00 | L126: 19.08% | M126: Successful | N126: 2014-08-12
A127: 4 | B127: 2014-08-06 | D127: Finolex Cables | E127: Buy | F127: 205.00 | G127: - | H127: 275 | I127: 250.00 | J127: Target Achieved | K127: 70.00 | L127: 34.15% | M127: Successful | N127: 2014-11-19
A128: 5 | B128: 2014-09-04 | D128: Exide Inds | E128: Buy | F128: 162.00 | G128: - | H128: 190 | I128: 190.00 | J128: Target Achieved | K128: 28.00 | L128: 17.28% | M128: Successful | N128: 2015-01-02
A129: 6 | B129: 2014-09-04 | D129: Deepak Nitrite | E129: Buy | F129: 75.00 | G129: - | H129: 91.5 | I129: 95-100 | J129: Profit of Rs.16.50/- | K129: 16.50 | L129: 22.00% | M129: Successful | N129: 2014-11-11
A130: 7 | B130: 2014-10-01 | D130: Mercks | E130: Buy | F130: 850.00 | G130: - | H130: 982.5 | I130: 1050.00 | J130: Profit of Rs.132.50/- | K130: 132.50 | L130: 15.59% | M130: Successful | N130: 2015-02-04
A131: 8 | B131: 2014-10-01 | D131: Grindwell Norton | E131: Buy | F131: 475.00 | G131: - | H131: 515 | I131: 600.00 | J131: Profit of Rs.40/- | K131: 40.00 | L131: 8.42% | M131: Successful | N131: 2014-10-27
A132: 9 | B132: 2014-10-01 | D132: Snowman Logistics | E132: Buy | F132: 86.00 | G132: - | H132: 99 | I132: 140.00 | J132: Profit of Rs.13.00/- | K132: 13.00 | L132: 15.12% | M132: Successful | N132: 2014-10-27
A133: 10 | B133: 2014-10-14 | D133: Birla Corp | E133: Buy | F133: 496.60 | G133: - | H133: 621 | I133: 580.00 | J133: Target Achieved | K133: 124.40 | L133: 25.05% | M133: Successful | N133: 2016-08-23
A134: 11 | B134: 2014-10-14 | D134: Ultratech Cem | E134: Buy | F134: 2481.90 | G134: - | H134: 2840 | I134: 2870.00 | J134: Profit of Rs.358.10/- | K134: 358.10 | L134: 14.43% | M134: Successful | N134: 2015-01-13
A135: 12 | B135: 2014-10-16 | D135: Sintex Inds | E135: Buy | F135: 84.50 | G135: - | H135: 93 | I135: 110.00 | J135: Profit of Rs.8.50/- | K135: 8.50 | L135: 10.06% | M135: Successful | N135: 2014-10-27
A136: 13 | B136: 2014-10-16 | D136: HSIL | E136: Buy | F136: 401.00 | G136: - | H136: 428 | I136: 450.00 | J136: Profit of Rs.27.00/- | K136: 27.00 | L136: 6.73% | M136: Successful | N136: 2015-01-16
A137: 14 | B137: 2014-10-16 | D137: Eveready Inds | E137: Buy | F137: 101.00 | G137: - | H137: 112 | I137: 120.00 | J137: Profit of Rs.11.00/- | K137: 11.00 | L137: 10.89% | M137: Successful | N137: 2014-10-27
A138: 15 | B138: 2014-11-11 | D138: Pennar Inds | E138: Buy | F138: 59.00 | G138: - | H138: 76 | I138: 76.00 | J138: Target Achieved | K138: 17.00 | L138: 28.81% | M138: Successful | N138: 2017-10-24
A139: 16 | B139: 2014-11-11 | D139: Snowman Logistics | E139: Buy | F139: 99.00 | G139: - | H139: 120 | I139: 120.00 | J139: Profit of Rs.21/- | K139: 21.00 | L139: 21.21% | M139: Successful | N139: 2014-11-17
A140: 17 | B140: 2014-11-13 | D140: Dharamsi Morarji Chem | E140: Buy | F140: 22.00 | G140: - | H140: 33.55 | I140: 32.00 | J140: Profit of Rs 11.55/- | K140: 11.55 | L140: 52.50% | M140: Successful | N140: 2015-07-03
A141: 18 | B141: 2014-12-03 | D141: Tatachem | E141: Buy | F141: 440.00 | G141: - | H141: 520 | I141: 520.00 | J141: Profit of Rs 80.00/- | K141: 80.00 | L141: 18.18% | M141: Successful | N141: 2015-07-23
A142: 19 | B142: 2014-12-03 | D142: Advanta | E142: Buy | F142: 360.00 | G142: - | H142: 427 | I142: 425.00 | J142: Profit of Rs.67.00/- | K142: 67.00 | L142: 18.61% | M142: Successful | N142: 2015-02-23
A143: 20 | B143: 2015-01-08 | D143: GDL | E143: Buy | F143: 360.00 | G143: - | H143: 455 | I143: 420.00 | J143: Profit of Rs.95.00/- | K143: 95.00 | L143: 26.39% | M143: Successful | N143: 2015-01-20
A144: 21 | B144: 2015-01-08 | D144: NRB Bearing | E144: Buy | F144: 130.00 | H144: 175.5 | I144: 165.00 | J144: Profit of Rs 45.50/- | K144: 45.50 | L144: 35.00% | M144: Successful | N144: 2017-12-19
A145: 22 | B145: 2015-02-05 | D145: GSFC | E145: Accu | F145: 98.00 | H145: 120 | I145: 120.00 | J145: Target Achieved | K145: 22.00 | L145: 22.45% | M145: Successful | N145: 2017-01-18
A146: 23 | B146: 2015-02-05 | D146: Sundrmfast | E146: Accu | F146: 196.00 | H146: 262 | I146: 255.00 | J146: Target Achieved | K146: 66.00 | L146: 33.67% | M146: Successful | N146: 2016-08-17
A147: 24 | B147: 2015-03-04 | D147: GPPL | E147: Accu | F147: 235 | H147: 77.00 | I147: 280-285 | J147: Loss of Rs.158/- | K147: -158.00 | L147: -67.23% | M147: Unsuccessful | N147: 2019-02-26
A148: 25 | B148: 2015-03-04 | D148: ORIENTCEM | E148: Accu | F148: 185.00 | H148: 224 | I148: 220-225 | J148: Target Achieved | K148: 39.00 | L148: 21.08% | M148: Successful | N148: 2016-10-04
A149: 26 | B149: 2015-03-27 | D149: PFS | E149: Accu | F149: 49.5 | H149: 15.85 | I149: 67.00 | J149: Loss of Rs.33.65/- | K149: -33.65 | L149: -68% | M149: Unsuccessful | N149: 2019-06-11
A150: 27 | B150: 2015-03-30 | D150: Walchandnagar Ind Ltd | E150: Accu | F150: 183.50 | H150: 219 | I150: 218.00 | J150: Profit of Rs.35.50/- | K150: 35.50 | L150: 19.35% | M150: Successful | N150: 2015-04-09
A151: 28 | B151: 2015-04-20 | D151: Kalpataru Power Transmission Ltd | E151: Accu | F151: =(227+237)/2 -> 232.00 | H151: 298 | I151: 298.00 | J151: Target Achieved | K151: 66.00 | L151: 28.45% | M151: Successful | N151: 2017-03-29
A152: 29 | B152: 2015-05-04 | D152: Mastek Ltd | E152: Buy | F152: 385.00 | H152: =212.5+331 -> 543.5 | I152: 510.00 | J152: Profit of Rs 158.50/- | K152: 158.50 | L152: 41.17% | M152: Successful | N152: 2015-08-19
A153: 30 | B153: 2015-05-04 | D153: Suprajit Eng | E153: Buy | F153: 115.50 | H153: 146 | I153: 142.00 | J153: Profit of Rs 30.50/- | K153: 30.50 | L153: 26.41% | M153: Successful | N153: 2015-07-17
A154: 31 | B154: 2015-05-27 | D154: TCI | E154: Buy | F154: 237.50 | H154: 279.5 | I154: 278.00 | J154: Target Achieved | K154: 42.00 | L154: 17.68% | M154: Successful | N154: 2015-08-06
A155: 32 | B155: 2015-06-19 | D155: HSIL | E155: Accu | F155: 340.00 | H155: 448 | I155: 448.00 | J155: Target Achieved | K155: 108.00 | L155: 31.76% | M155: Successful | N155: 2017-10-10
A156: 33 | B156: 2015-07-06 | D156: Capital First | E156: Accu | F156: 390.00 | H156: 460 | I156: 460.00 | J156: Target Achieved | K156: =H156-F156 -> 70.00 | L156: =K156/F156 -> 17.95% | M156: Successful | N156: 2016-04-18
A157: 34 | B157: 2015-07-10 | D157: Dolphin OffShore | E157: Accu | F157: 122.5 | H157: 61.00 | I157: 172.00 | J157: Loss of Rs.61.50/- | K157: -61.50 | L157: -50.20% | M157: Unsuccessful | N157: 2018-08-21
A158: 35 | B158: 2015-08-03 | D158: Allcargo logistics | E158: Accu | F158: 297.50 | H158: 350 | I158: 360.00 | J158: Profit of Rs 52.50/- | K158: 52.50 | L158: 17.65% | M158: Successful | N158: 2015-08-16
A159: 36 | B159: 2015-08-03 | D159: Camline Fine | E159: Accu | F159: 115.50 | H159: 149 | I159: 140.00 | J159: Profit of Rs 33.50/- | K159: 33.50 | L159: 29.00% | M159: Successful | N159: 2017-01-05
A160: 37 | B160: 2015-09-04 | D160: TCI | E160: Accu | F160: 226.00 | H160: 292 | I160: 292.00 | J160: Target Achieved | K160: 66.00 | L160: 29.20% | M160: Successful | N160: 2015-10-09
A161: 38 | B161: 2015-09-07 | D161: Kalpataru Power Transmission Ltd | E161: Accu | F161: 232.50 | H161: 312.5 | I161: 310.00 | J161: Target Achieved | K161: 80.00 | L161: 34.41% | M161: Successful | N161: 2017-03-29
A162: 39 | B162: 2015-09-21 | D162: LLOYD ELECTRIC & ENG LTD | E162: Accu | F162: 196.50 | H162: 238 | I162: 238.00 | J162: Target Achieved | K162: 41.50 | L162: 21.12% | M162: Successful | N162: 2015-10-14
A163: 40 | B163: 2015-09-24 | D163: L&T Finance Holding | E163: Accu | F163: 65.00 | H163: 82 | I163: 82.00 | J163: Target Achieved | K163: 17.00 | L163: 26.15% | M163: Successful | N163: 2016-07-27
A164: 41 | B164: 2015-10-14 | D164: KEC International ltd | E164: Accu | F164: 144.00 | H164: 182.5 | I164: 181.00 | J164: Target Achieved | K164: 38.50 | L164: 26.74% | M164: Successful | N164: 2017-03-23
A165: 42 | B165: 2015-10-14 | D165: Gruh Finance | E165: Accu | F165: 264.00 | H165: 311 | I165: 311.00 | J165: Target Achieved | K165: 47.00 | L165: 17.80% | M165: Successful | N165: 2016-08-22
A166: 43 | B166: 2015-11-10 | D166: Pidilitind | E166: Buy | F166: 549.50 | H166: 630 | I166: 630.00 | J166: Target Achieved | K166: 80.50 | L166: 14.65% | M166: Successful | N166: 2016-02-19
A167: 44 | B167: 2015-12-04 | D167: Zensar Technology | E167: Accu | F167: 1027.50 | H167: 1315 | I167: 1250.00 | J167: Target Achieved | K167: 287.50 | L167: 27.98% | M167: Successful | N167: 2018-05-24
A168: 45 | B168: 2015-12-29 | D168: Vinati Organics Ltd | E168: Accu | F168: 465.00 | H168: 540 | I168: 540.00 | J168: Target Achieved | K168: 75.00 | L168: 16.13% | M168: Successful | N168: 2016-06-09
A169: 46 | B169: 2016-01-11 | D169: GSFC | E169: Buy | F169: 81.00 | H169: 110 | I169: 110.00 | J169: Target Achieved | K169: 29.00 | L169: 35.80% | M169: Successful | N169: 2017-01-10
A170: 47 | B170: 2016-01-13 | D170: SSWL | E170: Buy | F170: 417.50 | H170: 547 | I170: 535.00 | J170: Target Achieved | K170: 129.50 | L170: 31.02% | M170: Successful | N170: 2016-07-27
A171: 48 | B171: 2016-02-08 | D171: Persistent System Ltd | E171: Accu | F171: 650.00 | H171: 800 | I171: 800.00 | J171: Target Achieved | K171: 150.00 | L171: 23.08% | M171: Successful | N171: 2018-02-23
A172: 49 | B172: 2016-03-04 | D172: UPL | E172: Accu | F172: 437.50 | H172: 504.5 | I172: 522.00 | J172: Profit of Rs.67/- | K172: 67.00 | L172: 15.31% | M172: Successful | N172: 2016-04-20
A173: 50 | B173: 2016-03-09 | D173: Ashoka Buildcon Ltd | E173: Accu | F173: 189.50 | H173: 218 | I173: 218.00 | J173: Target Achieved | K173: 28.50 | L173: 15.04% | M173: Successful | N173: 2017-10-26
A174: 51 | B174: 2016-04-11 | D174: PTC INDIA FIN SERV LTD | E174: Accu | F174: 36.5 | H174: 15.85 | I174: 60.00 | J174: Loss of Rs.20.65/- | K174: -20.65 | L174: -56.58% | M174: Unsuccessful | N174: 2019-06-11
A175: 52 | B175: 2016-04-12 | D175: CAMLINFINE $ | E175: Accu | F175: 93.00 | H175: 149 | I175: 140.00 | J175: Profit of Rs 56/- | K175: 56.00 | L175: 60.22% | M175: Successful | N175: 2017-01-05
A176: 53 | B176: 2016-04-12 | D176: Greaves Cotton Ltd. | E176: Accu | F176: 130.00 | H176: 150 | I176: 150-155 | J176: Target Achieved | K176: 20.00 | L176: 15.38% | M176: Successful | N176: 2016-07-13
A177: 54 | B177: 2016-04-13 | D177: DHFL | E177: Accu | F177: 196.00 | H177: 299 | I177: 299.00 | J177: Target Achieved | K177: 103.00 | L177: 52.55% | M177: Successful | N177: 2016-09-07
A178: 55 | B178: 2016-04-13 | D178: Magma | E178: Accu | F178: 88.00 | H178: 103 | I178: 103.00 | J178: Target Achieved | K178: 15.00 | L178: 17.05% | M178: Successful | N178: 2016-06-09
A179: 56 | B179: 2016-05-02 | D179: KEC International ltd $ | E179: Accu | F179: 127.50 | H179: 148 | I179: 148-150 | J179: Target Achieved | K179: =H179-F179 -> 20.50 | L179: =K179/F179 -> 16.08% | M179: Successful | N179: 2016-07-13
A180: 57 | B180: 2016-05-03 | D180: Mindtree | E180: Accu | F180: 675.00 | H180: 815 | I180: 790-800 | J180: Target Achieved | K180: =H180-F180 -> 140.00 | L180: =K180/F180 -> 20.74% | M180: Successful | N180: 2018-02-23
A181: 58 | B181: 2016-06-01 | D181: Atulauto | E181: Accu | F181: 500 | H181: 232.50 | I181: 565-570 | J181: Loss of Rs.267.50 /- | K181: =H181-F181 -> -267.50 | L181: =K181/F181 -> -53.50% | M181: Unsuccessful | N181: 2019-09-27
A182: 59 | B182: 2016-06-06 | D182: TRITURBINE | E182: Accu | F182: 110.00 | H182: 126.5 | I182: 125.00 | J182: Profit of Rs.16.50/- | K182: =H182-F182 -> 16.50 | L182: =K182/F182 -> 15.00% | M182: Successful | N182: 2016-07-01
A183: 60 | B183: 2016-06-17 | D183: Pennar Industries Ltd | E183: Accu | F183: 44.00 | H183: 69.5 | I183: 69.50 | J183: Profit of Rs.25.50/- | K183: =H183-F183 -> 25.50 | L183: =K183/F183 -> 57.95% | M183: Successful | N183: 2017-08-30
A184: 61 | B184: 2016-06-28 | D184: EVEREADY | E184: Accu | F184: 262.50 | H184: 340 | I184: 333.00 | J184: Profit of Rs.77.50/- | K184: 77.50 | L184: 29.52% | M184: Successful | N184: 2017-10-09
A185: 62 | B185: 2016-06-28 | D185: FIEMIND | E185: Accu | F185: 840.00 | H185: 1230 | I185: 1230.00 | J185: Target Achieved | K185: 390.00 | L185: 46.43% | M185: Successful | N185: 2016-10-06
A186: 63 | B186: 2016-07-05 | D186: Bajaj Corp Ltd | E186: Accu | F186: 395 | H186: =(468.5+342.5)/2 -> 405.50 | I186: 510.00 | J186: Profit of Rs.10.50/- | K186: =H186-F186 -> 10.50 | L186: =K186/F186 -> 3% | M186: Neutral | N186: 2019-05-21
A187: 64 | B187: 2016-08-02 | D187: GPPL $ | E187: Buy | F187: =169.5-12.8 -> 156.7 | H187: 77.00 | I187: 198-200 | J187: Loss of Rs.79.7/- | K187: -79.70 | L187: -50.86% | M187: Unsuccessful | N187: 2019-02-26
A188: 65 | B188: 2016-08-04 | D188: WONDERLA HOLIDAYS LTD | E188: Accu | F188: 400 | H188: 305.00 | I188: 475.00 | J188: Loss of Rs.95/- | K188: -95.00 | L188: -23.75% | M188: Unsuccessful | N188: 2019-05-21
A189: 66 | B189: 2016-08-11 | D189: CAMLINFINE | E189: Accu | F189: 86.50 | H189: 130 | I189: 130.00 | J189: Profit of Rs.43.50/- | K189: 43.50 | L189: 50.29% | M189: Successful | N189: 2017-12-22
A190: 67 | B190: 2016-08-18 | D190: GRANULES | E190: Accu | F190: 133.5 | H190: 126.50 | I190: 178.00 | J190: Exit | K190: -7.00 | L190: -5.24% | M190: Unsuccessful | N190: 2016-09-02
A191: 68 | B191: 2016-08-31 | D191: VA TECH WABAG | E191: Accu | F191: 560.00 | H191: 725 | I191: 725.00 | J191: Target Achieved | K191: 165.00 | L191: 29.46% | M191: Successful | N191: 2016-03-27
A192: 69 | B192: 2016-09-01 | D192: SKIPPER LIMITED | E192: Accu | F192: 160.50 | H192: 210 | I192: 210.00 | J192: Target Achieved | K192: 49.50 | L192: 30.84% | M192: Successful | N192: 2017-05-16
A193: 70 | B193: 2016-10-03 | D193: IFBIND | E193: Accu | F193: 430.00 | H193: 596 | I193: 575.00 | J193: Profit of Rs.166/- | K193: 166.00 | L193: 38.60% | M193: Successful | N193: 2017-02-03
A194: 71 | B194: 2016-10-14 | D194: ASIANTILES | E194: Accu | F194: 280.00 | H194: 345 | I194: 345.00 | J194: Target Achieved | K194: =H194-F194 -> 65.00 | L194: =K194/F194 -> 23.21% | M194: Successful | N194: 2017-03-20
A195: 72 | B195: 2016-10-14 | D195: DEEPIND | E195: Accu | F195: 245.00 | H195: 325.5 | I195: 330.00 | J195: Profit of Rs.80.5/- | K195: 80.50 | L195: =K195/F195 -> 32.86% | M195: Successful | N195: 2017-02-03
A196: 73 | B196: 2016-10-17 | D196: DCBBANK | E196: Accu | F196: 125.00 | H196: 160 | I196: 160.00 | J196: Target Achieved | K196: 35.00 | L196: 28.00% | M196: Successful | N196: 2017-03-09
A197: 74 | B197: 2016-10-17 | D197: ORIENTREF | E197: Accu | F197: 114.00 | H197: 145 | I197: 145.00 | J197: Target Achieved | K197: 31.00 | L197: =K197/F197 -> 27.19% | M197: Successful | N197: 2017-05-04
A198: 75 | B198: 2016-10-17 | D198: GANECOS | E198: Accu | F198: 212.00 | H198: 280 | I198: 276.00 | J198: Profit of Rs.68/- | K198: 68.00 | L198: =K198/F198 -> 32.08% | M198: Successful | N198: 2017-05-03
A199: 76 | B199: 2016-11-04 | D199: NBCC | E199: Accu | F199: 155.00 | H199: 210 | I199: 210.00 | J199: Profit of Rs.55/- | K199: 55.00 | L199: =K199/F199 -> 35.48% | M199: Successful | N199: 2017-07-28
A200: 77 | B200: 2016-12-06 | D200: PRECAM | E200: Accu | F200: 150.5 | H200: 72.50 | I200: 174.00 | J200: Loss of Rs.78/- | K200: -78.00 | L200: -51.83% | M200: Unsuccessful | N200: 2018-08-21
A201: 78 | B201: 2016-12-08 | D201: INFRATEL | E201: Accu | F201: 380.00 | H201: 478 | I201: 468.00 | J201: Target Achieved | K201: =H201-F201 -> 98.00 | L201: =K201/F201 -> 25.79% | M201: Successful | N201: 2017-10-17
A202: 79 | B202: 2016-12-30 | D202: GODREJPROP | E202: Accu | F202: 305.00 | H202: 375 | I202: 375.00 | J202: Target Achieved | K202: =H202-F202 -> 70.00 | L202: =K202/F202 -> 22.95% | M202: Successful | N202: 2017-02-02
A203: 80 | B203: 2017-01-04 | D203: DEEPAKNTR | E203: Accu | F203: 99.50 | H203: 158 | I203: 158.00 | J203: Target Achieved | K203: =H203-F203 -> 58.50 | L203: =K203/F203 -> 58.79% | M203: Successful | N203: 2017-06-12
A204: 81 | B204: 2017-01-04 | D204: DEEPAKNTR | E204: Accu | F204: 99.50 | H204: 158 | I204: 158.00 | J204: Target Achieved | K204: 58.50 | L204: 58.79% | M204: Successful | N204: 2017-06-12
A205: 82 | B205: 2017-02-20 | D205: RECLTD | E205: Accu | F205: 140.50 | H205: 220 | I205: 220.00 | J205: Target Achieved | K205: =H205-F205 -> 79.50 | L205: =K205/F205 -> 56.58% | M205: Successful | N205: 2017-05-09
A206: 83 | B206: 2017-02-20 | D206: SUBROS | E206: Accu | F206: 202.50 | H206: 234 | I206: 234.00 | J206: Target Achieved | K206: 31.50 | L206: 15.56% | M206: Successful | N206: 2017-04-11
A207: 84 | B207: 2017-03-24 | D207: VRLLOG | E207: Accu | F207: 300.50 | H207: 417.5 | I207: 420.00 | J207: Profit of Rs.117/- | K207: =H207-F207 -> 117.00 | L207: =K207/F207 -> 38.94% | M207: Successful | N207: 2017-12-01
A208: 85 | B208: 2017-03-24 | D208: FIEMIND | E208: Accu | F208: 850.00 | H208: 1042.5 | I208: 1023.00 | J208: Profit of Rs 192.50/- | K208: 192.50 | L208: 22.65% | M208: Successful | N208: 2017-04-05
A209: 86 | B209: 2017-04-05 | D209: RATNAMANI | E209: Accu | F209: 785.00 | H209: 930 | I209: 920.00 | J209: Profit of Rs.145/- | K209: =H209-F209 -> 145.00 | L209: =K209/F209 -> 18.47% | M209: Successful | N209: 2017-08-29
A210: 87 | B210: 2017-04-06 | D210: ZEEMEDIA | E210: Accu | F210: 40 | H210: 13.10 | I210: 60.00 | J210: Loss of Rs.26.9/- | K210: -26.90 | L210: -67.25% | M210: Unsuccessful | N210: 2018-02-07
A211: 88 | B211: 2017-04-12 | D211: DABUR | E211: Accu | F211: 289.50 | H211: 354 | I211: 360.00 | J211: Profit of Rs.64.5/- | K211: =H211-F211 -> 64.50 | L211: =K211/F211 -> 22.28% | M211: Successful | N211: 2017-11-01
A212: 89 | B212: 2017-04-20 | D212: KPRMILL | E212: Accu | F212: 700.00 | H212: 840 | I212: 840.00 | J212: Profit of Rs.140/- | K212: 140.00 | L212: 20.00% | M212: Successful | N212: 2017-06-07
A213: 90 | B213: 2017-06-01 | D213: ESSELPACK | E213: Accu | F213: 130.00 | H213: 144.25 | I213: 170.00 | J213: Profit of Rs.14.25/- | K213: 14.25 | L213: 10.96% | M213: Successful | N213: 2019-07-29
A214: 91 | B214: 2017-06-15 | D214: KEI | E214: Accu | F214: 214.50 | H214: 262 | I214: 262.00 | J214: Profit of Rs.47.5/- | K214: 47.50 | L214: 22.14% | M214: Successful | N214: 2017-08-30
A215: 92 | B215: 2017-07-17 | D215: MAYURUNIQ | E215: Accu | F215: 370.00 | H215: 447.5 | I215: 450.00 | J215: Target Achieved | K215: 77.50 | L215: 20.95% | M215: Successful | N215: 2017-10-27
A216: 93 | B216: 2017-07-27 | D216: RAMCOCEM | E216: Accu | F216: 657.50 | H216: 825 | I216: 820.00 | J216: Target Achieved | K216: 167.50 | L216: 25.48% | M216: Successful | N216: 2017-12-21
A217: 94 | B217: 2017-08-17 | D217: FINPIPE | E217: Accu | F217: 605.00 | H217: 750 | I217: 750.00 | J217: Profit of Rs.145/- | K217: 145.00 | L217: 23.97% | M217: Successful | N217: 2017-10-19
A218: 95 | B218: 2017-09-01 | D218: SHK | E218: Accu | F218: 255 | H218: 217.25 | I218: 320.00 | J218: Loss of Rs.37.75/- | K218: -37.75 | L218: -15% | M218: Unsuccessful | N218: 2019-07-15
A219: 96 | B219: 2017-09-19 | D219: SKIPPER | E219: Accu | F219: 215.00 | H219: 258 | I219: 258.00 | J219: Target Achieved | K219: 43.00 | L219: 20.00% | M219: Successful | N219: 2017-11-01
A220: 97 | B220: 2017-09-19 | D220: SKIPPER | E220: Accu | F220: 215.00 | H220: 258 | I220: 258.00 | J220: Target Achieved | K220: 43.00 | L220: 20.00% | M220: Successful | N220: 2017-11-01
A221: 98 | B221: 2017-09-20 | D221: CAMLINFINE$ | E221: Accu | F221: 75.00 | H221: 90 | I221: 90.00 | J221: Profit of Rs.15.00/- | K221: =H221-F221 -> 15.00 | L221: =K221/F221 -> 20.00% | M221: Successful | N221: 2017-10-11
A222: 99 | B222: 2017-10-03 | D222: GNA | E222: Accu | F222: 315.00 | H222: 392 | I222: 384.00 | J222: Profit of Rs.77/- | K222: 77.00 | L222: 24.44% | M222: Successful | N222: 2017-10-09
A223: 100 | B223: 2017-10-05 | D223: NOCIL | E223: Accu | F223: 145.00 | H223: 179 | I223: 180.00 | J223: Profit of Rs.34/- | K223: 34.00 | L223: 23.45% | M223: Successful | N223: 2017-10-17
A224: 101 | B224: 2017-10-06 | D224: CENTURYPLY | E224: Accu | F224: 256.00 | H224: 323 | I224: 320.00 | J224: Target Achieved | K224: 67.00 | L224: 26.17% | M224: Successful | N224: 2017-11-28
A225: 102 | B225: 2017-10-09 | D225: EIHOTEL | E225: Accu | F225: 137.50 | H225: 184 | I225: 183.00 | J225: Profit of Rs.46.5/- | K225: 46.50 | L225: 33.82% | M225: Successful | N225: 2018-01-08
A226: 103 | B226: 2017-10-10 | D226: NRBBEARING | E226: Accu | F226: 125.50 | H226: 158 | I226: 155.00 | J226: Profit of Rs.32.5/- | K226: 32.50 | L226: 25.90% | M226: Successful | N226: 2017-11-28
A227: 104 | B227: 2017-10-10 | D227: BOROSIL | E227: Accu | F227: 895.00 | H227: 1122.5 | I227: 1078.00 | J227: Profit of Rs.227.5/- | K227: 227.50 | L227: 25.42% | M227: Successful | N227: 2018-01-17
... 111 more rows
